Workbook

Sheet Calculator
B1: The NatureServe Climate Change Vulnerability Index
B2: Release: | C2: 3.0 | D2: 15 April 2015
E5: * = Required field
D7: Geographic Area Assessed: | E7: US | I7: *
D9: Assessor: | E9: MV & JD
B11: Species Scientific Name: | E11: Lithobates catesbeianus | I11: * | J11: English Name: | L11: American Bullfrog
B13: Major Taxonomic Group: | E13: Amphibian | I13: *
K14: G-Rank:
B15: Check if the species is an obligate of caves or groundwater systems: | K15: S-Rank:
B17: Check if species is migratory and you wish to enter exposure data for the migratory range that lies outside of the assessment area:
B19: Assessment Notes (to document special methods and data sources)
B25: Section A: Exposure to Local Climate Change (Calculate for species' range within assessment area)
B27: Temperature * | I27: Hamon AET:PET Moisture Metric *
C29: Severity | E29: Scope (percent of range) | I29: Severity | K29: Scope (percent of range)
D30: >6.0° F (3.3° C) warmer | E30: 44.08452624 | J30: < -0.119 | K30: 3.229061554
D31: 5.6-6.0° F (3.2-3.3° C) warmer | E31: 29.31152011 | J31: -0.097 - -0.119 | K31: 3.130880628
D32: 5.1-5.5° F (2.8-3.1° C) warmer | E32: 19.5064758 | J32: -0.074 - -0.096 | K32: 7.069026645
D33: 4.5-5.0° F (2.5-2.7° C) warmer | E33: 5.837764145 | J33: -0.051 - -0.073 | K33: 10.06354488
D34: 3.9-4.4° F (2.2-2.4° C) warmer | E34: 1.180640763 | J34: -0.028 - -0.050 | K34: 18.68983009
D35: < 3.9° F (2.2° C) warmer | E35: 0.07907293797 | J35: >-0.028 | K35: 57.8176562
D36: Total: | E36: =SUM(E30:E35) -> 100 | F36: (Must sum to 100) | J36: Total: | K36: =SUM(K30:K35) -> 100 | L36: (Must sum to 100)
B38: Migratory Exposure -- Climate Change Exposure Index
C40: Severity | E40: Scope (percent of range)
D41: >7
D42: 6-7
D43: 4-5
D44: <4
D45: Total: | E45: =SUM(E41:E44) -> 0 | F45: (Must sum to 100)
B48: Section B: Indirect Exposure to Climate Change (Evaluate for specific geographical area under consideration)
A50: Mark an "X" in all boxes that apply.
B51: Effect on Vulnerability | I51: Factors that influence vulnerability (* at least three required)
B52: Greatly increase | C52: Increase | D52: Somewhat increase | E52: Neutral | F52: Unknown | G52: Comments
E53: X | F53: =IF(COUNTIF(B53:E53,"x")>0,"","X") ->  | I53: 1) Exposure to sea level rise
I54: 2) Distribution relative to barriers
E55: X | F55: =IF(COUNTIF(B55:E55,"x")>0,"","X") ->  | I55: a) Natural barriers
E56: X | F56: =IF(COUNTIF(B56:E56,"x")>0,"","X") ->  | I56: b) Anthropogenic barriers
E57: X | F57: =IF(COUNTIF(B57:E57,"x")>0,"","X") ->  | I57: 3) Predicted impact of land use changes resulting from human responses to climate change
B60: Section C: Sensitivity and Adaptive Capacity
A62: Mark an "X" in all boxes that apply.
B63: Effect on Vulnerability | J63: Factors that influence vulnerability (* at least 10 required)
B64: Greatly increase | C64: Increase | D64: Somewhat increase | E64: Neutral | F64: Unknown | G64: Comments | J64: Check up to three boxes per factor.
E65: X | F65: =IF(COUNTIF(B65:E65,"x")>0,"","X") ->  | I65: 1) Dispersal and movements
I66: 2) Predicted sensitivity to temperature and moisture changes
I67: a) Predicted sensitivity to changes in temperature
D68: X | F68: =IF(COUNTIF(B68:E68,"x")>0,"","X") ->  | J68: i) historical thermal niche
E69: X | F69: =IF(COUNTIF(B69:E69,"x")>0,"","X") ->  | J69: ii) physiological thermal niche
I70: b) Predicted sensitivity to changes in precipitation, hydrology, or moisture regime
E71: X | F71: =IF(COUNTIF(B71:E71,"x")>0,"","X") ->  | J71: i) historical hydrological niche
D72: X | J72: ii) physiological hydrological niche
E73: X | I73: c) Dependence on a specific disturbance regime likely to be impacted by climate change
E74: X | I74: d) Dependence on ice, ice-edge, or snow-cover habitats
E75: X | I75: 3) Restriction to uncommon landscape/geological features or derivatives
I76: 4) Interspecific interactions
D77: X | E77: X | F77: =IF(COUNTIF(B77:E77,"x")>0,"","X") ->  | I77: a) Dependence on other species to generate required habitat
E78: X | F78: =IF(COUNTIF(B78:E78,"x")>0,"","X") ->  | I78: b) Dietary versatility (animals only)
F79: =IF(COUNTIF(B79:E79,"x")>0,"","X") -> X | I79: c) Pollinator versatility (plants only)
E80: X | F80: =IF(COUNTIF(B80:E80,"x")>0,"","X") ->  | I80: d) Dependence on other species for propagule dispersal
D81: X | F81: =IF(COUNTIF(B81:E81,"x")>0,"","X") ->  | I81: e) Sensitivity to pathogens or natural enemies
E82: X | I82: f) Sensitivity to competition from native or non-native species
E83: X | F83: =IF(COUNTIF(B83:E83,"x")>0,"","X") ->  | I83: g) Forms part of an interspecific interaction not covered by 5a-f
I84: 5) Genetic factors
F85: =IF(COUNTIF(B85:E85,"x")>0,"","X") -> X | I85: a) Measured genetic variation
E86: X | F86: =IF(COUNTIF(B86:E86,"x")>0,"","X") ->  | I86: b) Occurrence of bottlenecks in recent evolutionary history (use only if 5a is "unknown")
F87: =IF(COUNTIF(B87:E87,"x")>0,"","X") -> X | I87: c) Reproductive system (plants only; use only if C5a and C5b are “unknown”)
E88: X | F88: =IF(COUNTIF(B88:E88,"x")>0,"","X") ->  | I88: 6) Phenological response to changing seasonal temperature and precipitation dynamics
B91: Section D: Documented or Modeled Response to Climate Change (Optional; May apply across the range of a species)
A93: Mark an "X" in all boxes that apply.
B94: Effect on Vulnerability | J94: (Optional)
B95: Greatly increase | C95: Increase | D95: Somewhat increase | E95: Neutral | F95: Unknown | G95: Comments
F96: =IF(COUNTIF(B96:E96,"x")>0,"","X") -> X | I96: 1) Documented response to recent climate change
F97: =IF(COUNTIF(B97:E97,"x")>0,"","X") -> X | I97: 2) Modeled future (2050) change in population or range size
F98: =IF(COUNTIF(B98:E98,"x")>0,"","X") -> X | I98: 3) Overlap of modeled future (2050) range with current range
F99: =IF(COUNTIF(B99:E99,"x")>0,"","X") -> X | I99: 4) Occurrence of protected areas in modeled future (2050) distribution
C102: Climate Change Vulnerability Index
B103: =IF(E7<>"",IF(E11<>"",CONCATENATE("for ",E11," in ",E7),""),"") -> for Lithobates catesbeianus in US
J104: Confidence in Vulnerability Index Score | N104: Data Completeness
C105: =IF(Calculations!L38="ie","Insufficient Evidence",IF(Calculations!L38="EV","Extremely Vulnerable",IF(Calculations!L38="HV","Highly Vulnerable",IF(Calculations!L38="MV","Moderately Vulnerable","Less Vulnerable")))) -> Less Vulnerable | N105: Section B: | O105: =CONCATENATE(Calculations!H37,"/",Calculations!G2," factors") -> 4/4 factors
J106: =IF(Calculations!L38<>"ie",IF('Monte carlo1'!E13>90,"Very High",IF('Monte carlo1'!E13>80,"High",IF('Monte carlo1'!E13>60,"Moderate","Low"))),"—-") -> Low | N106: Section C: | O106: =IF(Group="","0/19 factors",IF(PlantAnimal="P",CONCATENATE(Calculations!H38,"/",Calculations!B38," factors"),IF(PlantAnimal="A",CONCATENATE(Calculations!H38,"/",Calculations!B39," factors"),CONCATENATE(Calculations!H38,"/",Calculations!B40," factors")))) -> 16/16 factors
C107: =IF(Calculations!K46=FALSE,"Error, check no more than 3 boxes per factor","") ->  | N107: Section D: | O107: =CONCATENATE(Calculations!H39,"/",Calculations!K2," factors") -> 0/4 factors
E108: Climate Exposure in Migratory Range | N108: Scores are less reliable with more unscored factors
E110: =Calculations!K58 -> --
J122: Results of a Monte Carlo simulation (1000 runs) of the data entered in the Index.
B123: Definitions of Index Values
B124: Extremely Vulnerable (EV): Abundance and/or range extent within geographical area assessed extremely likely to substantially decrease or disappear by 2050.
B126: Highly Vulnerable (HV): Abundance and/or range extent within geographical area assessed likely to decrease significantly by 2050.
B128: Moderately Vulnerable (MV): Abundance and/or range extent within geographical area assessed likely to decrease by 2050.
B130: Less Vulnerable (LV): Available evidence does not suggest that abundance and/or range extent within the geographical area assessed will change (increase/decrease) substantially by 2050. Actual range boundaries may change.
B132: Insufficient Evidence (IE): Information entered about a species' vulnerability is inadequate to calculate an Index score.

Sheet Calculations
E2: Number of Factors: | F2: B: | G2: 4 | H2: C: | I2: 19 | J2: D: | K2: 4
E4: =Calculator!B51 -> Effect on Vulnerability | P4: Percent of Range
A5: Factor | B5: Boxes checked | C5: Expo-sure | D5: Score | E5: =Calculator!B52 -> Greatly increase | F5: =Calculator!C52 -> Increase | G5: =Calculator!D52 -> Somewhat increase | H5: =Calculator!E52 -> Neutral | I5: =Calculator!F52 -> Unknown | N5: Temperature | Q5: Hamon Moisture Metric
A6: B1 | B6: =SUM(E6:H6) -> 1 | C6: 1 | D6: =IF(I6<1,C6*SUM(3*E6,2*F6,1*G6)/B6,0) -> 0 | E6: =IF(Calculator!B53="x",1,0) -> 0 | F6: =IF(Calculator!C53="x",1,0) -> 0 | G6: =IF(Calculator!D53="x",1,0) -> 0 | H6: =IF(Calculator!E53="x",1,0) -> 1 | I6: =IF(Calculator!F53="x",1,0) -> 0 | N6: Very High | O6: =Calculator!E30/100 -> 0.4408452624 | Q6: Very High | R6: =Calculator!K30/100 -> 0.03229061554
A7: B2a | B7: 1 | C7: =$L$13 -> 1.135 | D7: =IF(I7<1,C7*SUM(3*E7,2*F7,1*G7)/B7,0) -> 0 | E7: =IF(Calculator!B55="x",1,0) -> 0 | F7: =IF(Calculator!C55="x",1,0) -> 0 | G7: =IF(Calculator!D55="x",1,0) -> 0 | H7: =IF(Calculator!E55="x",1,0) -> 1 | I7: =IF(Calculator!F55="x",1,0) -> 0 | K7: Exposure | N7: High | O7: =Calculator!E31/100 -> 0.2931152011 | Q7: High | R7: =Calculator!K31/100 -> 0.03130880628
A8: B2b | B8: 1 | C8: =$L$13 -> 1.135 | D8: 0 | E8: =IF(Calculator!B56="x",1,0) -> 0 | F8: =IF(Calculator!C56="x",1,0) -> 0 | G8: =IF(Calculator!D56="x",1,0) -> 0 | H8: =IF(Calculator!E56="x",1,0) -> 1 | I8: =IF(Calculator!F56="x",1,0) -> 0 | K8: Temp: | L8: =IF(O12="Very High",2.4,IF(O12="High",2,IF(O12="med high",1.6,IF(O12="Med Low",1.2,IF(O12="low",0.8,0.4))))) -> 1.6 | N8: Med High | O8: =Calculator!E32/100 -> 0.195064758 | Q8: Med High | R8: =Calculator!K32/100 -> 0.07069026645
A9: B3 | B9: 1 | C9: =$L$13 -> 1.135 | D9: 0 | F9: =IF(Calculator!C57="x",1,0) -> 0 | G9: =IF(Calculator!D57="x",1,0) -> 0 | H9: =IF(Calculator!E57="x",1,0) -> 1 | I9: =IF(Calculator!F57="x",1,0) -> 0 | K9: T cave adj: | L9: =IF(Calculator!H15="X",Calculations!L8/3,Calculations!L8) -> 1.6 | N9: Med Low | O9: =Calculator!E33/100 -> 0.05837764145 | Q9: Med Low | R9: =Calculator!K33/100 -> 0.1006354488
A10: C1 | B10: 1 | C10: =$L$13 -> 1.135 | D10: 0 | E10: =IF(Calculator!B65="x",1,0) -> 0 | F10: =IF(Calculator!C65="x",1,0) -> 0 | G10: =IF(Calculator!D65="x",1,0) -> 0 | H10: =IF(Calculator!E65="x",1,0) -> 1 | I10: =IF(Calculator!F65="x",1,0) -> 0 | K10: Moist: | L10: =IF(R12="Very High",2,IF(R12="High",1.67,IF(R12="Med High",1.33,IF(R12="Med Low",1,IF(R12="Low",0.67,0.33))))) -> 0.67 | N10: Low | O10: =Calculator!E34/100 -> 0.01180640763 | Q10: Low | R10: =Calculator!K34/100 -> 0.1868983009
A11: C2ai | B11: 1 | C11: =$L$9 -> 1.6 | D11: 1.6 | E11: =IF(Calculator!B68="x",1,0) -> 0 | F11: =IF(Calculator!C68="x",1,0) -> 0 | G11: =IF(Calculator!D68="x",1,0) -> 1 | H11: =IF(Calculator!E68="x",1,0) -> 0 | I11: =IF(Calculator!F68="x",1,0) -> 0 | K11: M cave adj: | L11: =IF(Calculator!H15="X",Calculations!L10/3,Calculations!L10) -> 0.67 | N11: Insig | O11: =Calculator!E35/100 -> 0.0007907293797 | Q11: Insig | R11: =Calculator!K35/100 -> 0.578176562
A12: C2aii | B12: 1 | C12: =$L$9 -> 1.6 | D12: 0 | E12: =IF(Calculator!B69="x",1,0) -> 0 | F12: =IF(Calculator!C69="x",1,0) -> 0 | G12: =IF(Calculator!D69="x",1,0) -> 0 | H12: =IF(Calculator!E69="x",1,0) -> 1 | I12: =IF(Calculator!F69="x",1,0) -> 0 | K12: Comb: | L12: =AVERAGE(L8,L10) -> 1.135 | N12: Overall: | O12: =IF(O6>0.5,"Very High",IF(SUM(O6,O7)>=0.75,"High",IF(SUM(O6:O8)>=0.6,"Med High",IF(SUM(O6:O9)>=0.4,"Med Low",IF(SUM(O6:O10)>=0.2,"Low","Insig"))))) -> Med High | Q12: Overall: | R12: =IF(R6>=0.8,"Very High",IF(SUM(R6:R7)>=0.64,"High",IF(SUM(R6:R8)>=0.48,"Med High",IF(SUM(R6:R9)>=0.32,"Med Low",IF(SUM(R6:R10)>=0.16,"Low","Insig"))))) -> Low
A13: C2bi | B13: 1 | C13: =$L$11 -> 0.67 | D13: 0 | E13: =IF(Calculator!B71="x",1,0) -> 0 | F13: =IF(Calculator!C71="x",1,0) -> 0 | G13: =IF(Calculator!D71="x",1,0) -> 0 | H13: =IF(Calculator!E71="x",1,0) -> 1 | I13: =IF(Calculator!F71="x",1,0) -> 0 | K13: C cave adj: | L13: =IF(Calculator!H15="X",Calculations!L12/3,Calculations!L12) -> 1.135
A14: C2bii | B14: 1 | C14: =$L$11 -> 0.67 | D14: 0.67 | E14: =IF(Calculator!B72="x",1,0) -> 0 | F14: =IF(Calculator!C72="x",1,0) -> 0 | G14: =IF(Calculator!D72="x",1,0) -> 1 | H14: =IF(Calculator!E72="x",1,0) -> 0 | I14: =IF(Calculator!F72="x",1,0) -> 0
A15: C2c | B15: 1 | C15: =$L$13 -> 1.135 | D15: 0 | F15: =IF(Calculator!C73="x",1,0) -> 0 | G15: =IF(Calculator!D73="x",1,0) -> 0 | H15: =IF(Calculator!E73="x",1,0) -> 1 | I15: =IF(Calculator!F73="x",1,0) -> 0
A16: C2d | B16: 1 | C16: 1.135 | D16: 0 | E16: =IF(Calculator!B74="x",1,0) -> 0 | F16: =IF(Calculator!C74="x",1,0) -> 0 | G16: =IF(Calculator!D74="x",1,0) -> 0 | H16: =IF(Calculator!E74="x",1,0) -> 1 | I16: =IF(Calculator!F74="x",1,0) -> 0
A17: C3 | B17: 1 | C17: 1.135 | D17: 0 | F17: =IF(Calculator!C75="x",1,0) -> 0 | G17: =IF(Calculator!D75="x",1,0) -> 0 | H17: =IF(Calculator!E75="x",1,0) -> 1 | I17: =IF(Calculator!F75="x",1,0) -> 0
A18: C4a | B18: 2 | C18: 1.135 | D18: 0.5675 | F18: =IF(Calculator!C77="x",1,0) -> 0 | G18: =IF(Calculator!D77="x",1,0) -> 1 | H18: =IF(Calculator!E77="x",1,0) -> 1 | I18: =IF(Calculator!F77="x",1,0) -> 0
A19: C4b | B19: 1 | C19: 1.135 | D19: =IF(PlantAnimal="A",IF(I19<1,C19*SUM(2*F19,1*G19)/B19,0),0) -> 0 | F19: =IF(Calculator!C78="x",1,0) -> 0 | G19: =IF(Calculator!D78="x",1,0) -> 0 | H19: =IF(Calculator!E78="x",1,0) -> 1 | I19: =IF(Calculator!F78="x",1,0) -> 0 | J19: Animals
A20: C4c | B20: 0 | C20: 1.135 | D20: =IF(PlantAnimal="P",IF(I20<1,C20*SUM(2*F20,1*G20)/B20,0),0) -> 0 | F20: =IF(Calculator!C79="x",1,0) -> 0 | G20: =IF(Calculator!D79="x",1,0) -> 0 | H20: =IF(Calculator!E79="x",1,0) -> 0 | I20: =IF(Calculator!F79="x",1,0) -> 1 | J20: Plants | L20: Table for Calculating Combined Index
A21: C4d | B21: 1 | C21: 1.135 | D21: =IF(I21<1,C21*SUM(3*E21,2*F21,1*G21)/B21,0) -> 0 | F21: =IF(Calculator!C80="x",1,0) -> 0 | G21: =IF(Calculator!D80="x",1,0) -> 0 | H21: =IF(Calculator!E80="x",1,0) -> 1 | I21: =IF(Calculator!F80="x",1,0) -> 0 | P21: B-C
A22: C4e | B22: 1 | C22: 1.135 | D22: 1.135 | F22: =IF(Calculator!C81="x",1,0) -> 0 | G22: =IF(Calculator!D81="x",1,0) -> 1 | H22: =IF(Calculator!E81="x",1,0) -> 0 | I22: =IF(Calculator!F81="x",1,0) -> 0 | N22: EV | O22: HV | P22: MV | Q22: LV | R22: IE
A23: C4f | B23: =SUM(E23:H23) -> 1 | C23: 1.135 | D23: 0 | F23: =IF(Calculator!C82="x",1,0) -> 0 | G23: =IF(Calculator!D82="x",1,0) -> 0 | H23: =IF(Calculator!E82="x",1,0) -> 1 | I23: =IF(Calculator!F82="x",1,0) -> 0 | M23: EV | N23: EV | O23: EV | P23: HV | Q23: HV | R23: EV
A24: C4g | B24: 1 | C24: 1.135 | D24: 0 | F24: =IF(Calculator!C83="x",1,0) -> 0 | G24: =IF(Calculator!D83="x",1,0) -> 0 | H24: =IF(Calculator!E83="x",1,0) -> 1 | I24: =IF(Calculator!F83="x",1,0) -> 0 | M24: HV | N24: EV | O24: HV | P24: HV | Q24: MV | R24: HV
A25: C5a | B25: 0 | C25: 1.135 | D25: 0 | F25: =IF(Calculator!C85="x",1,0) -> 0 | G25: =IF(Calculator!D85="x",1,0) -> 0 | H25: =IF(Calculator!E85="x",1,0) -> 0 | I25: =IF(Calculator!F85="x",1,0) -> 1 | L25: D | M25: MV | N25: HV | O25: HV | P25: MV | Q25: LV | R25: MV
A26: C5b | B26: 1 | C26: 1.135 | D26: =IF(I25=1,IF(I26<1,C26*SUM(3*E26,2*F26,1*G26)/B26,0),0) -> 0 | F26: =IF(Calculator!C86="x",1,0) -> 0 | G26: =IF(Calculator!D86="x",1,0) -> 0 | H26: =IF(Calculator!E86="x",1,0) -> 1 | I26: =IF(Calculator!F86="x",1,0) -> 0 | J26: Only if 6a is unk | M26: LV | N26: HV | O26: MV | P26: MV | Q26: LV | R26: LV
A27: C5c | B27: =SUM(E27:H27) -> 0 | C27: 1.135 | D27: =IF(PlantAnimal="P",IF(I25=1,IF(I26=1,IF(I27<1,C27*SUM(3*E27,2*F27,1*G27)/B27,0),0),0),0) -> 0 | F27: =IF(Calculator!C87="x",1,0) -> 0 | G27: =IF(Calculator!D87="x",1,0) -> 0 | H27: =IF(Calculator!E87="x",1,0) -> 0 | I27: =IF(Calculator!F87="x",1,0) -> 1 | J27: Plants; Only if 6a/b are unk | M27: IE | N27: EV | O27: HV | P27: MV | Q27: LV | R27: IE
A28: C6 | B28: 1 | C28: 1.135 | D28: =IF(I28<1,C28*SUM(3*E28,2*F28,1*G28)/B28,0) -> 0 | F28: =IF(Calculator!C88="x",1,0) -> 0 | G28: =IF(Calculator!D88="x",1,0) -> 0 | H28: =IF(Calculator!E88="x",1,0) -> 1 | I28: =IF(Calculator!F88="x",1,0) -> 0
C29: B-C Subscore: | D29: =SUM(D6:D28) -> 3.9725
A30: D1 | B30: =SUM(E30:H30) -> 0 | C30: 1 | D30: =IF(I30<1,SUM(3*E30,2*F30,1*G30)/COUNTIF(Calculator!B96:E96,"x"),0) -> 0 | E30: =IF(Calculator!B96="x",1,0) -> 0 | F30: =IF(Calculator!C96="x",1,0) -> 0 | G30: =IF(Calculator!D96="x",1,0) -> 0 | H30: =IF(Calculator!E96="x",1,0) -> 0 | I30: =IF(Calculator!F96="x",1,0) -> 1
A31: D2 | B31: =SUM(E31:H31) -> 0 | C31: 1 | D31: =IF(I31<1,SUM(3*E31,2*F31,1*G31)/COUNTIF(Calculator!B97:E97,"x"),0) -> 0 | E31: =IF(Calculator!B97="x",1,0) -> 0 | F31: =IF(Calculator!C97="x",1,0) -> 0 | G31: =IF(Calculator!D97="x",1,0) -> 0 | H31: =IF(Calculator!E97="x",1,0) -> 0 | I31: =IF(Calculator!F97="x",1,0) -> 1
A32: D3 | B32: =SUM(E32:H32) -> 0 | C32: 1 | D32: =IF(I32<1,SUM(3*E32,2*F32,1*G32)/COUNTIF(Calculator!B98:E98,"x"),0) -> 0 | E32: =IF(Calculator!B98="x",1,0) -> 0 | F32: =IF(Calculator!C98="x",1,0) -> 0 | G32: =IF(Calculator!D98="x",1,0) -> 0 | H32: =IF(Calculator!E98="x",1,0) -> 0 | I32: =IF(Calculator!F98="x",1,0) -> 1
A33: D4 | B33: =SUM(E33:H33) -> 0 | C33: 1 | D33: =IF(I33<1,SUM(3*E33,2*F33,1*G33)/COUNTIF(Calculator!B99:E99,"x"),0) -> 0 | F33: =IF(Calculator!C99="x",1,0) -> 0 | G33: =IF(Calculator!D99="x",1,0) -> 0 | H33: =IF(Calculator!E99="x",1,0) -> 0 | I33: =IF(Calculator!F99="x",1,0) -> 1
C34: D Subscore: | D34: =SUM(D30:D33) -> 0
J35: Combine B-C and D scores | Q35: Taxonomic Groups List | R35: Plant/Animal | T35: Entry Values
J36: Index for Factors B-C: | L36: =IF(H37<3,"IE",IF(H38<10,"IE",IF(D29>G42,"EV",IF(D29>G43,"HV",IF(D29>G44,"MV","LV"))))) -> LV | Q36: Vascular Plant | R36: P | T36: X
A37: Number of C Factors | E37: Number of B Factors with Data: | H37: =G2-COUNTIF(I6:I9,1) -> 4 | J37: Index for Factor D: | L37: =IF(H39<1,"IE",IF(D34>=H42,"EV",IF(D34>=H43,"HV",IF(D34>=H44,"MV","LV")))) -> IE | M37: =IF(F54=TRUE,1,IF(L37="EV",1,IF(L37="HV",2,IF(L37="MV",3,IF(L37="LV",4,5))))) -> 5 | Q37: Nonvascular Plant | R37: P | T37: x
A38: Plants: | B38: 16 | E38: Number of C Factors with Data: | H38: =IF(Group="",0,I2-COUNTIF(I10:I28,1)+IF(AND(PlantAnimal="P",I19=0),-1,0)+IF(AND(PlantAnimal="A",I20=0),-1,0)+IF(AND(I25=0,I26=0),-1,0)+IF(AND(OR(PlantAnimal="A",I25=0,I26=0), I27=0),-1,0)+IF(AND(PlantAnimal="L",I19=0),-1,0)+IF(AND(PlantAnimal="L",I20=0),-1,0)) -> 16 | J38: Combined Index: | L38: =IF(F54=TRUE, "EV",IF(K47=TRUE,HLOOKUP(L36,N22:R27,M37+1,FALSE),"IE")) -> LV | Q38: Lichen | R38: L
A39: Animals: | B39: 16 | E39: Number of D Factors with Data: | H39: =K2-COUNTIF(I30:I33,1) -> 0 | Q39: Invert-Insect | R39: A
A40: Lichens: | B40: 15 | J40: Sufficient data? | Q40: Invert-Mollusk | R40: A | T40: Relation between Species' Range and Assessment Area
E41: Threshold scores | G41: B-C | H41: D | J41: Clim Data: | K41: =IF(Calculator!E36=100,IF(Calculator!K36=100,TRUE,FALSE),FALSE) -> TRUE | Q41: Invert-Other | R41: A | T41: Southern edge of range
E42: Extremely Vulnerable | G42: 10 | H42: 6 | J42: B-C Data: | K42: =IF(H37>2,IF(H38>9,TRUE,FALSE),FALSE) -> TRUE | Q42: Fish | R42: A | T42: Northern edge of range
E43: Highly Vulnerable | G43: 7 | H43: 4 | J43: Geo Area: | K43: =IF(Area="",FALSE,TRUE) -> TRUE | Q43: Amphibian | R43: A | T43: Center of range
E44: Moderately Vulnerable | G44: 4 | H44: 2 | J44: Sp Name: | K44: =IF(Species="",FALSE,TRUE) -> TRUE | Q44: Reptile | R44: A | T44: Entire range
E45: Less Vulnerable | J45: Tax grp: | K45: =IF(Group="",FALSE,TRUE) -> TRUE | Q45: Mammal | R45: A | T45: East/west edge of range
J46: <4 boxes: | K46: =IF(COUNTIF(B6:B28,4)<>0,FALSE,IF(COUNTIF(B30:B33,4)<>0,FALSE,TRUE)) -> TRUE | Q46: Bird | R46: A
J47: Suf data? | K47: =IF(COUNTIF(K41:K46,FALSE)>0,FALSE,TRUE) -> TRUE | T47: Relation to Specific Climate Envelope
E48: SLR/Barriers/Poor dispersal | Q48: Plant/Animal: | R48: =IF(ISBLANK(Calculator!E13),"",VLOOKUP(Calculator!E13,TaxaLookup,2,FALSE)) -> A | T48: Tightly linked
E49: SLR | F49: =IF(E6=1,TRUE,FALSE) -> FALSE | T49: Moderately linked
E50: Natl Barr | F50: =IF(E7+F7>=1,TRUE,FALSE) -> FALSE | T50: Loosely linked
E51: Anth Barr | F51: =IF(E8+F8>=1,TRUE,FALSE) -> FALSE
E52: Sig Barr? | F52: =OR(F50:F51) -> FALSE | J52: Exposure on Migratory Range | Q52: Effect on Vulnerability Levels
E53: Dispersal | F53: =IF(E10+F10>=1,TRUE,FALSE) -> FALSE | J53: Eligible? | K53: =OR(Group="Bird",Group="Mammal",Group="Invert-Insect") -> FALSE | Q53: 1 | R53: GI | S53: Greatly increase | T53: 1
E54: SLR Vul? | F54: =AND(F49,F52,F53) -> FALSE | J54: Mig chkoff? | K54: =IF(Calculator!H17="x",TRUE,FALSE) -> FALSE | L54: >7 | M54: =IF(Calculator!E41="",0,Calculator!E41) -> 0 | Q54: 2 | R54: Inc | S54: Increase | T54: 2
J55: Sum=100? | K55: =IF(Calculator!E45=100,TRUE,FALSE) -> FALSE | L55: 6-7 | M55: =IF(Calculator!E42="",0,Calculator!E42) -> 0 | Q55: 3 | R55: SI | S55: Somewhat increase | T55: 3
J56: Calculate? | K56: =AND(K53:K55) -> FALSE | L56: 4-5 | M56: =IF(Calculator!E43="",0,Calculator!E43) -> 0 | Q56: 4 | R56: N | S56: Neutral | T56: 4
J57: Exp score: | K57: =7*M54/100+5*M55/100+3*M56/100+M57/100 -> 0 | L57: <4 | M57: =IF(Calculator!E44="",0,Calculator!E44) -> 0 | Q57: 5 | R57: U | S57: Unknown | T57: 5
J58: Exp cat: | K58: =IF(K56=TRUE,IF(K57>=4,"High",IF(K57>=2,"Moderate","Low")),"--") -> --
Q61: Confidence
Q62: Very High | R62: VH
Q63: High | R63: High
Q64: Moderate | R64: Mod
Q65: Low | R65: Low
Q66: —- | R66: —-

Sheet MC3
A1: ***Simulation Runs - Does not require checked boxes to be sequential***
A3: Factor | B3: Rnd | C3: cut-off | D3: 1st checked box | E3: Score 1st chk box | F3: 2nd range to check for checked box | G3: 2nd chk box | H3: score 2nd chk box | I3: 3rd range to check for checked box | J3: 3rd chk box | K3: Score 3rd chk box | L3: Monte Carlo Score | M3: # Boxes checked | N3: Exposure | O3: Averaged Score
A4: B1 | B4: =RAND() -> 0.3284588777 | C4: =1/M4 -> 1 | D4: =MATCH(1,Calculations!$E$6:$H$6,0) -> 4 | E4: =IF(D4=1,3,IF(D4=2,2,IF(D4=3,1,0))) -> 0 | F4: =CONCATENATE(ADDRESS(6,5+'MC3'!D4,1,TRUE,"calculations"),":h6") -> calculations!$I$6:h6 | G4: =D4+MATCH(1,INDIRECT(F4),0) -> 5 | H4: =IF(M4>1,IF(G4=2,2,IF(G4=3,1,0)),0) -> 0 | I4: =CONCATENATE(ADDRESS(6,5+'MC3'!G4,1,TRUE,"calculations"),":h6") -> calculations!$J$6:h6 | J4: =G4+MATCH(1,INDIRECT(I4),0) -> 6 | K4: =IF(M4=3,IF(J4=3,1,0),0) -> 0 | L4: =IF(M4>1,IF(M4=2,IF(B4<C4,E4*N4,H4*N4),IF(B4<C4,E4*N4,IF(B4<2*C4,H4*N4,K4*N4))),O4) -> 0 | M4: =SUM(Calculations!$E$6:$H$6) -> 1 | N4: 1 | O4: =Calculations!$D$6 -> 0
A5: B2a | B5: 0.2568723246 | C5: 1 | D5: =MATCH(1,Calculations!$E$7:$H$7,0) -> 4 | E5: =IF(D5=1,3,IF(D5=2,2,IF(D5=3,1,0))) -> 0 | F5: =CONCATENATE(ADDRESS(7,5+'MC3'!D5,1,TRUE,"calculations"),":h7") -> calculations!$I$7:h7 | G5: 5 | H5: =IF(M5>1,IF(G5=2,2,IF(G5=3,1,0)),0) -> 0 | I5: =CONCATENATE(ADDRESS(7,5+'MC3'!G5,1,TRUE,"calculations"),":h7") -> calculations!$J$7:h7 | J5: 6 | K5: =IF(M5=3,IF(J5=3,1,0),0) -> 0 | L5: =IF(M5>1,IF(M5=2,IF(B5<C5,E5*N5,H5*N5),IF(B5<C5,E5*N5,IF(B5<2*C5,H5*N5,K5*N5))),O5) -> 0 | M5: =SUM(Calculations!$E$7:$H$7) -> 1 | N5: =Calculations!$L$13 -> 1.135 | O5: =Calculations!$D$7 -> 0
A6: B2b | B6: 0.02200193837 | C6: 1 | D6: =MATCH(1,Calculations!$E$8:$H$8,0) -> 4 | E6: 0 | F6: =CONCATENATE(ADDRESS(8,5+'MC3'!D6,1,TRUE,"calculations"),":h8") -> calculations!$I$8:h8 | G6: 5 | H6: 0 | I6: =CONCATENATE(ADDRESS(8,5+'MC3'!G6,1,TRUE,"calculations"),":h8") -> calculations!$J$8:h8 | J6: 6 | K6: 0 | L6: 0 | M6: =SUM(Calculations!$E$8:$H$8) -> 1 | N6: =Calculations!$L$13 -> 1.135 | O6: =Calculations!$D$8 -> 0
A7: B3 | B7: 0.5862755748 | C7: =1/M7 -> 1 | D7: =MATCH(1,Calculations!$E$9:$H$9,0) -> 4 | E7: 0 | F7: =CONCATENATE(ADDRESS(9,5+'MC3'!D7,1,TRUE,"calculations"),":h9") -> calculations!$I$9:h9 | G7: =D7+MATCH(1,INDIRECT(F7),0) -> 5 | H7: 0 | I7: =CONCATENATE(ADDRESS(9,5+'MC3'!G7,1,TRUE,"calculations"),":h9") -> calculations!$J$9:h9 | J7: =G7+MATCH(1,INDIRECT(I7),0) -> 6 | K7: 0 | L7: 0 | M7: =SUM(Calculations!$E$9:$H$9) -> 1 | N7: =Calculations!$L$13 -> 1.135 | O7: =Calculations!$D$9 -> 0
A8: C1 | B8: 0.7696185511 | C8: 1 | D8: =MATCH(1,Calculations!$E$10:$H$10,0) -> 4 | E8: 0 | F8: =CONCATENATE(ADDRESS(10,5+'MC3'!D8,1,TRUE,"calculations"),":h10") -> calculations!$I$10:h10 | G8: 5 | H8: 0 | I8: =CONCATENATE(ADDRESS(10,5+'MC3'!G8,1,TRUE,"calculations"),":h10") -> calculations!$J$10:h10 | J8: 6 | K8: 0 | L8: 0 | M8: =SUM(Calculations!$E$10:$H$10) -> 1 | N8: =Calculations!$L$13 -> 1.135 | O8: =Calculations!$D$10 -> 0
A9: C2ai | B9: 0.3495516495 | C9: 1 | D9: =MATCH(1,Calculations!$E$11:$H$11,0) -> 3 | E9: 1 | F9: =CONCATENATE(ADDRESS(11,5+'MC3'!D9,1,TRUE,"calculations"),":h11") -> calculations!$H$11:h11 | H9: 0 | I9: =CONCATENATE(ADDRESS(11,5+'MC3'!G9,1,TRUE,"calculations"),":h11") ->  | K9: 0 | L9: 1.6 | M9: =SUM(Calculations!$E$11:$H$11) -> 1 | N9: =Calculations!$L$9 -> 1.6 | O9: =Calculations!$D$11 -> 1.6
A10: C2aii | B10: 0.3433778196 | C10: 1 | D10: =MATCH(1,Calculations!$E$12:$H$12,0) -> 4 | E10: 0 | F10: =CONCATENATE(ADDRESS(12,5+'MC3'!D10,1,TRUE,"calculations"),":h12") -> calculations!$I$12:h12 | G10: 5 | H10: 0 | I10: =CONCATENATE(ADDRESS(12,5+'MC3'!G10,1,TRUE,"calculations"),":h12") -> calculations!$J$12:h12 | J10: 6 | K10: 0 | L10: 0 | M10: =SUM(Calculations!$E$12:$H$12) -> 1 | N10: =Calculations!$L$9 -> 1.6 | O10: =Calculations!$D$12 -> 0
A11: C2bi | B11: 0.02208244672 | C11: 1 | D11: =MATCH(1,Calculations!$E$13:$H$13,0) -> 4 | E11: 0 | F11: =CONCATENATE(ADDRESS(13,5+'MC3'!D11,1,TRUE,"calculations"),":h13") -> calculations!$I$13:h13 | G11: 5 | H11: 0 | I11: =CONCATENATE(ADDRESS(13,5+'MC3'!G11,1,TRUE,"calculations"),":h13") -> calculations!$J$13:h13 | J11: 6 | K11: 0 | L11: 0 | M11: =SUM(Calculations!$E$13:$H$13) -> 1 | N11: =Calculations!$L$11 -> 0.67 | O11: =Calculations!$D$13 -> 0
A12: C2bii | B12: 0.9955681188 | C12: 1 | D12: =MATCH(1,Calculations!$E$14:$H$14,0) -> 3 | E12: 1 | F12: =CONCATENATE(ADDRESS(14,5+'MC3'!D12,1,TRUE,"calculations"),":h14") -> calculations!$H$14:h14 | H12: 0 | I12: =CONCATENATE(ADDRESS(14,5+'MC3'!G12,1,TRUE,"calculations"),":h14") ->  | K12: 0 | L12: 0.67 | M12: =SUM(Calculations!$E$14:$H$14) -> 1 | N12: =Calculations!$L$11 -> 0.67 | O12: =Calculations!$D$14 -> 0.67
A13: C2c | B13: 0.3449947476 | C13: 1 | D13: =MATCH(1,Calculations!$E$15:$H$15,0) -> 4 | E13: 0 | F13: =CONCATENATE(ADDRESS(15,5+'MC3'!D13,1,TRUE,"calculations"),":h15") -> calculations!$I$15:h15 | G13: 5 | H13: 0 | I13: =CONCATENATE(ADDRESS(15,5+'MC3'!G13,1,TRUE,"calculations"),":h15") -> calculations!$J$15:h15 | J13: 6 | K13: 0 | L13: 0 | M13: =SUM(Calculations!$E$15:$H$15) -> 1 | N13: =Calculations!$L$13 -> 1.135 | O13: =Calculations!$D$15 -> 0
A14: C2d | B14: 0.09274281626 | C14: 1 | D14: =MATCH(1,Calculations!$E$16:$H$16,0) -> 4 | E14: 0 | F14: =CONCATENATE(ADDRESS(16,5+'MC3'!D14,1,TRUE,"calculations"),":h16") -> calculations!$I$16:h16 | G14: 5 | H14: 0 | I14: =CONCATENATE(ADDRESS(16,5+'MC3'!G14,1,TRUE,"calculations"),":h16") -> calculations!$J$16:h16 | J14: 6 | K14: 0 | L14: 0 | M14: =SUM(Calculations!$E$16:$H$16) -> 1 | N14: =Calculations!$L$13 -> 1.135 | O14: =Calculations!$D$16 -> 0
A15: C3 | B15: 0.9573688375 | C15: 1 | D15: =MATCH(1,Calculations!$E$17:$H$17,0) -> 4 | E15: 0 | F15: =CONCATENATE(ADDRESS(17,5+'MC3'!D15,1,TRUE,"calculations"),":h17") -> calculations!$I$17:h17 | G15: 5 | H15: 0 | I15: =CONCATENATE(ADDRESS(17,5+'MC3'!G15,1,TRUE,"calculations"),":h17") -> calculations!$J$17:h17 | J15: 6 | K15: 0 | L15: 0 | M15: =SUM(Calculations!$E$17:$H$17) -> 1 | N15: =Calculations!$L$13 -> 1.135 | O15: =Calculations!$D$17 -> 0
A16: C4a | B16: 0.9774159233 | C16: 0.5 | D16: =MATCH(1,Calculations!$E$18:$H$18,0) -> 3 | E16: 1 | F16: =CONCATENATE(ADDRESS(18,5+'MC3'!D16,1,TRUE,"calculations"),":h18") -> calculations!$H$18:h18 | G16: =D16+MATCH(1,INDIRECT(F16),0) -> 4 | H16: 0 | I16: =CONCATENATE(ADDRESS(18,5+'MC3'!G16,1,TRUE,"calculations"),":h18") -> calculations!$I$18:h18 | J16: =G16+MATCH(1,INDIRECT(I16),0) -> 5 | K16: 0 | L16: 0 | M16: =SUM(Calculations!$E$18:$H$18) -> 2 | N16: =Calculations!$L$13 -> 1.135 | O16: =Calculations!$D$18 -> 0.5675
A17: C4b | B17: 0.5955204642 | C17: 1 | D17: =MATCH(1,Calculations!$E$19:$H$19,0) -> 4 | E17: 0 | F17: =CONCATENATE(ADDRESS(19,5+'MC3'!D17,1,TRUE,"calculations"),":h19") -> calculations!$I$19:h19 | G17: =D17+MATCH(1,INDIRECT(F17),0) -> 5 | H17: 0 | I17: =CONCATENATE(ADDRESS(19,5+'MC3'!G17,1,TRUE,"calculations"),":h19") -> calculations!$J$19:h19 | J17: 6 | K17: 0 | L17: =IF(PlantAnimal="A",IF(M17>1,IF(M17=2,IF(B17<C17,E17*N17,H17*N17),IF(B17<C17,E17*N17,IF(B17<2*C17,H17*N17,K17*N17))),O17),0) -> 0 | M17: =SUM(Calculations!$E$19:$H$19) -> 1 | N17: =Calculations!$L$13 -> 1.135 | O17: =Calculations!$D$19 -> 0 | P17: Animals
A18: C4c | B18: 0.4104779712 | D18: =MATCH(1,Calculations!$E$20:$H$20,0) ->  | F18: =CONCATENATE(ADDRESS(20,5+'MC3'!D18,1,TRUE,"calculations"),":h20") ->  | H18: 0 | I18: =CONCATENATE(ADDRESS(20,5+'MC3'!G18,1,TRUE,"calculations"),":h20") ->  | K18: 0 | L18: =IF(PlantAnimal="P",IF(M18>1,IF(M18=2,IF(B18<C18,E18*N18,H18*N18),IF(B18<C18,E18*N18,IF(B18<2*C18,H18*N18,K18*N18))),O18),0) -> 0 | M18: =SUM(Calculations!$E$20:$H$20) -> 0 | N18: =Calculations!$L$13 -> 1.135 | O18: =Calculations!$D$20 -> 0 | P18: Plants
A19: C4d | B19: 0.1075085451 | C19: 1 | D19: =MATCH(1,Calculations!$E$21:$H$21,0) -> 4 | E19: 0 | F19: =CONCATENATE(ADDRESS(21,5+'MC3'!D19,1,TRUE,"calculations"),":h21") -> calculations!$I$21:h21 | G19: 5 | H19: 0 | I19: =CONCATENATE(ADDRESS(21,5+'MC3'!G19,1,TRUE,"calculations"),":h21") -> calculations!$J$21:h21 | J19: 6 | K19: 0 | L19: 0 | M19: =SUM(Calculations!$E$21:$H$21) -> 1 | N19: =Calculations!$L$13 -> 1.135 | O19: =Calculations!$D$21 -> 0
A20: C4e | B20: 0.124379298 | C20: 1 | D20: =MATCH(1,Calculations!$E$22:$H$22,0) -> 3 | E20: 1 | F20: =CONCATENATE(ADDRESS(22,5+'MC3'!D20,1,TRUE,"calculations"),":h22") -> calculations!$H$22:h22 | H20: 0 | I20: =CONCATENATE(ADDRESS(22,5+'MC3'!G20,1,TRUE,"calculations"),":h22") ->  | K20: 0 | L20: 1.135 | M20: =SUM(Calculations!$E$22:$H$22) -> 1 | N20: =Calculations!$L$13 -> 1.135 | O20: =Calculations!$D$22 -> 1.135
A21: C4f | B21: 0.1024123059 | C21: 1 | D21: =MATCH(1,Calculations!$E$23:$H$23,0) -> 4 | E21: 0 | F21: =CONCATENATE(ADDRESS(23,5+'MC3'!D21,1,TRUE,"calculations"),":h23") -> calculations!$I$23:h23 | G21: =D21+MATCH(1,INDIRECT(F21),0) -> 5 | H21: 0 | I21: =CONCATENATE(ADDRESS(23,5+'MC3'!G21,1,TRUE,"calculations"),":h23") -> calculations!$J$23:h23 | J21: =G21+MATCH(1,INDIRECT(I21),0) -> 6 | K21: 0 | L21: 0 | M21: =SUM(Calculations!$E$23:$H$23) -> 1 | N21: =Calculations!$L$13 -> 1.135 | O21: =Calculations!$D$23 -> 0
A22: C4g | B22: 0.8375592955 | C22: 1 | D22: =MATCH(1,Calculations!$E$24:$H$24,0) -> 4 | E22: 0 | F22: =CONCATENATE(ADDRESS(24,5+'MC3'!D22,1,TRUE,"calculations"),":h24") -> calculations!$I$24:h24 | G22: 5 | H22: 0 | I22: =CONCATENATE(ADDRESS(24,5+'MC3'!G22,1,TRUE,"calculations"),":h24") -> calculations!$J$24:h24 | J22: 6 | K22: 0 | L22: 0 | M22: =SUM(Calculations!$E$24:$H$24) -> 1 | N22: =Calculations!$L$13 -> 1.135 | O22: =Calculations!$D$24 -> 0
A23: C5a | B23: 0.01583589724 | D23: =MATCH(1,Calculations!$E$25:$H$25,0) ->  | F23: =CONCATENATE(ADDRESS(25,5+'MC3'!D23,1,TRUE,"calculations"),":h25") ->  | H23: 0 | I23: =CONCATENATE(ADDRESS(25,5+'MC3'!G23,1,TRUE,"calculations"),":h25") ->  | K23: 0 | L23: 0 | M23: =SUM(Calculations!$E$25:$H$25) -> 0 | N23: =Calculations!$L$13 -> 1.135 | O23: =Calculations!$D$25 -> 0
A24: C5b | B24: 0.9852265383 | C24: 1 | D24: =MATCH(1,Calculations!$E$26:$H$26,0) -> 4 | E24: 0 | F24: =CONCATENATE(ADDRESS(26,5+'MC3'!D24,1,TRUE,"calculations"),":h26") -> calculations!$I$26:h26 | G24: 5 | H24: 0 | I24: =CONCATENATE(ADDRESS(26,5+'MC3'!G24,1,TRUE,"calculations"),":h26") -> calculations!$J$26:h26 | J24: 6 | K24: 0 | L24: =IF(M23=0,IF(M24>1,IF(M24=2,IF(B24<C24,E24*N24,H24*N24),IF(B24<C24,E24*N24,IF(B24<2*C24,H24*N24,K24*N24))),O24),0) -> 0 | M24: =SUM(Calculations!$E$26:$H$26) -> 1 | N24: =Calculations!$L$13 -> 1.135 | O24: =Calculations!$D$26 -> 0 | P24: Score only if C6a is unknown
A25: C5c | B25: 0.9913755378 | D25: =MATCH(1,Calculations!$E$27:$H$27,0) ->  | F25: =CONCATENATE(ADDRESS(27,5+'MC3'!D25,1,TRUE,"calculations"),":h27") ->  | G25: =D25+MATCH(1,INDIRECT(F25),0) ->  | H25: 0 | I25: =CONCATENATE(ADDRESS(27,5+'MC3'!G25,1,TRUE,"calculations"),":h27") ->  | J25: =G25+MATCH(1,INDIRECT(I25),0) ->  | K25: 0 | L25: =IF(PlantAnimal="P",IF(M23=0,IF(M24=0,IF(M25>1,IF(M25=2,IF(B25<C25,E25*N25,H25*N25),IF(B25<C25,E25*N25,IF(B25<2*C25,H25*N25,K25*N25))),O25),0),0),0) -> 0 | M25: =SUM(Calculations!$E$27:$H$27) -> 0 | N25: =Calculations!$L$13 -> 1.135 | O25: =Calculations!$D$27 -> 0 | P25: Plants, only if 6a/b unknown
A26: C6 | B26: 0.4161484474 | C26: 1 | D26: =MATCH(1,Calculations!$E$28:$H$28,0) -> 4 | E26: 0 | F26: =CONCATENATE(ADDRESS(28,5+'MC3'!D26,1,TRUE,"calculations"),":h28") -> calculations!$I$28:h28 | G26: 5 | H26: 0 | I26: =CONCATENATE(ADDRESS(28,5+'MC3'!G26,1,TRUE,"calculations"),":h28") -> calculations!$J$28:h28 | J26: 6 | K26: 0 | L26: 0 | M26: =SUM(Calculations!$E$28:$H$28) -> 1 | N26: =Calculations!$L$13 -> 1.135 | O26: =Calculations!$D$28 -> 0
L27: =SUM(L4:L26) -> 3.405 | N27: B-C Subscore: | O27: =Calculations!$D$29 -> 3.9725
A28: D1 | B28: =RAND() -> 0.2358884744 | C28: =1/M28 ->  | D28: =MATCH(1,Calculations!$E$30:$H$30,0) ->  | F28: =CONCATENATE(ADDRESS(30,5+'MC3'!D28,1,TRUE,"calculations"),":h30") ->  | G28: =D28+MATCH(1,INDIRECT(F28),0) ->  | H28: 0 | I28: =CONCATENATE(ADDRESS(30,5+'MC3'!G28,1,TRUE,"calculations"),":h30") ->  | J28: =G28+MATCH(1,INDIRECT(I28),0) ->  | K28: =IF(J28=3,1,IF(J28=4,0,IF(J28=5,-1,-2))) ->  | L28: 0 | M28: =SUM(Calculations!$E$30:$H$30) -> 0 | N28: 1 | O28: =Calculations!$D$30 -> 0
A29: D2 | B29: 0.6 | C29: =1/M29 ->  | D29: =MATCH(1,Calculations!$E$31:$H$31,0) ->  | F29: =CONCATENATE(ADDRESS(31,5+'MC3'!D29,1,TRUE,"calculations"),":h31") ->  | G29: =D29+MATCH(1,INDIRECT(F29),0) ->  | H29: 0 | I29: =CONCATENATE(ADDRESS(31,5+'MC3'!G29,1,TRUE,"calculations"),":h31") ->  | J29: =G29+MATCH(1,INDIRECT(I29),0) ->  | K29: =IF(J29=3,1,IF(J29=4,0,IF(J29=5,-1,-2))) ->  | L29: 0 | M29: =SUM(Calculations!$E$31:$H$31) -> 0 | N29: 1 | O29: =Calculations!$D$31 -> 0
A30: D3 | B30: =RAND() -> 0.9215507145 | C30: =1/M30 ->  | D30: =MATCH(1,Calculations!$E$32:$H$32,0) ->  | F30: =CONCATENATE(ADDRESS(32,5+'MC3'!D30,1,TRUE,"calculations"),":h32") ->  | G30: =D30+MATCH(1,INDIRECT(F30),0) ->  | H30: 0 | I30: =CONCATENATE(ADDRESS(32,5+'MC3'!G30,1,TRUE,"calculations"),":h32") ->  | J30: =G30+MATCH(1,INDIRECT(I30),0) ->  | K30: =IF(J30=3,1,IF(J30=4,0,IF(J30=5,-1,-2))) ->  | L30: 0 | M30: =SUM(Calculations!$E$32:$H$32) -> 0 | N30: 1 | O30: =Calculations!$D$32 -> 0
A31: D4 | B31: =RAND() -> 0.9871408466 | C31: =1/M31 ->  | D31: =MATCH(1,Calculations!$E$33:$H$33,0) ->  | F31: =CONCATENATE(ADDRESS(33,5+'MC3'!D31,1,TRUE,"calculations"),":h33") ->  | G31: =D31+MATCH(1,INDIRECT(F31),0) ->  | H31: 0 | I31: =CONCATENATE(ADDRESS(33,5+'MC3'!G31,1,TRUE,"calculations"),":h33") ->  | J31: =G31+MATCH(1,INDIRECT(I31),0) ->  | K31: =IF(J31=3,1,IF(J31=4,0,IF(J31=5,-1,-2))) ->  | L31: 0 | M31: =SUM(Calculations!$E$33:$H$33) -> 0 | N31: 1 | O31: =Calculations!$D$33 -> 0
L32: =SUM(L28:L31) -> 0 | N32: D Subscore: | O32: =Calculations!$D$34 -> 0
M34: Monte carlo
L35: Index for Factors B-C: | M35: =IF(Calculations!$K$47=FALSE,"IE",IF(L27>Calculations!$G$42,"EV",IF(L27>Calculations!$G$43,"HV",IF(L27>Calculations!$G$44,"MV","LV")))) -> LV
L36: Index for Factor D: | M36: =IF(Calculations!$H$39<1,"IE",IF(L32>=Calculations!$H$42,"EV",IF(L32>=Calculations!$H$43,"HV",IF(L32>=Calculations!$H$44,"MV","LV")))) -> IE | N36: =IF(Calculations!$F$54=TRUE,1,IF(M36="EV",1,IF(M36="HV",2,IF(M36="MV",3,IF(M36="LV",4,5))))) -> 5
L37: Combined Index: | M37: =HLOOKUP(M35,Calculations!$N$22:$R$27,N36+1,FALSE) -> LV
A39: Factor | B39: Rnd | C39: cut-off | D39: 1st checked box | E39: Score 1st chk box | F39: 2nd range to check for checked box | G39: 2nd chk box | H39: score 2nd chk box | I39: 3rd range to check for checked box | J39: 3rd chk box | K39: Score 3rd chk box | L39: Monte Carlo Score | M39: # Boxes checked | N39: Exposure | O39: Averaged Score
A40: B1 | B40: =RAND() -> 0.003690773533 | C40: =1/M40 -> 1 | D40: =MATCH(1,Calculations!$E$6:$H$6,0) -> 4 | E40: =IF(D40=1,3,IF(D40=2,2,IF(D40=3,1,0))) -> 0 | F40: =CONCATENATE(ADDRESS(6,5+'MC3'!D40,1,TRUE,"calculations"),":h6") -> calculations!$I$6:h6 | G40: =D40+MATCH(1,INDIRECT(F40),0) -> 5 | H40: =IF(M40>1,IF(G40=2,2,IF(G40=3,1,0)),0) -> 0 | I40: =CONCATENATE(ADDRESS(6,5+'MC3'!G40,1,TRUE,"calculations"),":h6") -> calculations!$J$6:h6 | J40: =G40+MATCH(1,INDIRECT(I40),0) -> 6 | K40: =IF(M40=3,IF(J40=3,1,0),0) -> 0 | L40: =IF(M40>1,IF(M40=2,IF(B40<C40,E40*N40,H40*N40),IF(B40<C40,E40*N40,IF(B40<2*C40,H40*N40,K40*N40))),O40) -> 0 | M40: =SUM(Calculations!$E$6:$H$6) -> 1 | N40: 1 | O40: =Calculations!$D$6 -> 0
A41: B2a | B41: 0.4352852008 | C41: 1 | D41: =MATCH(1,Calculations!$E$7:$H$7,0) -> 4 | E41: =IF(D41=1,3,IF(D41=2,2,IF(D41=3,1,0))) -> 0 | F41: =CONCATENATE(ADDRESS(7,5+'MC3'!D41,1,TRUE,"calculations"),":h7") -> calculations!$I$7:h7 | G41: 5 | H41: =IF(M41>1,IF(G41=2,2,IF(G41=3,1,0)),0) -> 0 | I41: =CONCATENATE(ADDRESS(7,5+'MC3'!G41,1,TRUE,"calculations"),":h7") -> calculations!$J$7:h7 | J41: 6 | K41: =IF(M41=3,IF(J41=3,1,0),0) -> 0 | L41: =IF(M41>1,IF(M41=2,IF(B41<C41,E41*N41,H41*N41),IF(B41<C41,E41*N41,IF(B41<2*C41,H41*N41,K41*N41))),O41) -> 0 | M41: =SUM(Calculations!$E$7:$H$7) -> 1 | N41: =Calculations!$L$13 -> 1.135 | O41: =Calculations!$D$7 -> 0
A42: B2b | B42: 0.3604241861 | C42: 1 | D42: =MATCH(1,Calculations!$E$8:$H$8,0) -> 4 | E42: 0 | F42: =CONCATENATE(ADDRESS(8,5+'MC3'!D42,1,TRUE,"calculations"),":h8") -> calculations!$I$8:h8 | G42: 5 | H42: 0 | I42: =CONCATENATE(ADDRESS(8,5+'MC3'!G42,1,TRUE,"calculations"),":h8") -> calculations!$J$8:h8 | J42: 6 | K42: 0 | L42: 0 | M42: =SUM(Calculations!$E$8:$H$8) -> 1 | N42: =Calculations!$L$13 -> 1.135 | O42: =Calculations!$D$8 -> 0
A43: B3 | B43: 0.3664153598 | C43: =1/M43 -> 1 | D43: =MATCH(1,Calculations!$E$9:$H$9,0) -> 4 | E43: 0 | F43: =CONCATENATE(ADDRESS(9,5+'MC3'!D43,1,TRUE,"calculations"),":h9") -> calculations!$I$9:h9 | G43: =D43+MATCH(1,INDIRECT(F43),0) -> 5 | H43: 0 | I43: =CONCATENATE(ADDRESS(9,5+'MC3'!G43,1,TRUE,"calculations"),":h9") -> calculations!$J$9:h9 | J43: =G43+MATCH(1,INDIRECT(I43),0) -> 6 | K43: 0 | L43: 0 | M43: =SUM(Calculations!$E$9:$H$9) -> 1 | N43: =Calculations!$L$13 -> 1.135 | O43: =Calculations!$D$9 -> 0
A44: C1 | B44: 0.07304417705 | C44: =1/M44 -> 1 | D44: =MATCH(1,Calculations!$E$10:$H$10,0) -> 4 | E44: 0 | F44: =CONCATENATE(ADDRESS(10,5+'MC3'!D44,1,TRUE,"calculations"),":h10") -> calculations!$I$10:h10 | G44: =D44+MATCH(1,INDIRECT(F44),0) -> 5 | H44: 0 | I44: =CONCATENATE(ADDRESS(10,5+'MC3'!G44,1,TRUE,"calculations"),":h10") -> calculations!$J$10:h10 | J44: =G44+MATCH(1,INDIRECT(I44),0) -> 6 | K44: 0 | L44: 0 | M44: =SUM(Calculations!$E$10:$H$10) -> 1 | N44: =Calculations!$L$13 -> 1.135 | O44: =Calculations!$D$10 -> 0
A45: C2ai | B45: 0.2584026696 | C45: 1 | D45: =MATCH(1,Calculations!$E$11:$H$11,0) -> 3 | E45: 1 | F45: =CONCATENATE(ADDRESS(11,5+'MC3'!D45,1,TRUE,"calculations"),":h11") -> calculations!$H$11:h11 | H45: 0 | I45: =CONCATENATE(ADDRESS(11,5+'MC3'!G45,1,TRUE,"calculations"),":h11") ->  | K45: 0 | L45: 1.6 | M45: =SUM(Calculations!$E$11:$H$11) -> 1 | N45: =Calculations!$L$9 -> 1.6 | O45: =Calculations!$D$11 -> 1.6
A46: C2aii | B46: 0.9891518168 | C46: 1 | D46: =MATCH(1,Calculations!$E$12:$H$12,0) -> 4 | E46: 0 | F46: =CONCATENATE(ADDRESS(12,5+'MC3'!D46,1,TRUE,"calculations"),":h12") -> calculations!$I$12:h12 | G46: 5 | H46: 0 | I46: =CONCATENATE(ADDRESS(12,5+'MC3'!G46,1,TRUE,"calculations"),":h12") -> calculations!$J$12:h12 | J46: 6 | K46: 0 | L46: 0 | M46: =SUM(Calculations!$E$12:$H$12) -> 1 | N46: =Calculations!$L$9 -> 1.6 | O46: =Calculations!$D$12 -> 0
A47: C2bi | B47: 0.4723176709 | C47: 1 | D47: =MATCH(1,Calculations!$E$13:$H$13,0) -> 4 | E47: 0 | F47: =CONCATENATE(ADDRESS(13,5+'MC3'!D47,1,TRUE,"calculations"),":h13") -> calculations!$I$13:h13 | G47: 5 | H47: 0 | I47: =CONCATENATE(ADDRESS(13,5+'MC3'!G47,1,TRUE,"calculations"),":h13") -> calculations!$J$13:h13 | J47: 6 | K47: 0 | L47: 0 | M47: =SUM(Calculations!$E$13:$H$13) -> 1 | N47: =Calculations!$L$11 -> 0.67 | O47: =Calculations!$D$13 -> 0
A48: C2bii | B48: 0.389112774 | C48: 1 | D48: =MATCH(1,Calculations!$E$14:$H$14,0) -> 3 | E48: 1 | F48: =CONCATENATE(ADDRESS(14,5+'MC3'!D48,1,TRUE,"calculations"),":h14") -> calculations!$H$14:h14 | H48: 0 | I48: =CONCATENATE(ADDRESS(14,5+'MC3'!G48,1,TRUE,"calculations"),":h14") ->  | K48: 0 | L48: 0.67 | M48: =SUM(Calculations!$E$14:$H$14) -> 1 | N48: =Calculations!$L$11 -> 0.67 | O48: =Calculations!$D$14 -> 0.67
A49: C2c | B49: 0.1929751236 | C49: 1 | D49: =MATCH(1,Calculations!$E$15:$H$15,0) -> 4 | E49: 0 | F49: =CONCATENATE(ADDRESS(15,5+'MC3'!D49,1,TRUE,"calculations"),":h15") -> calculations!$I$15:h15 | G49: 5 | H49: 0 | I49: =CONCATENATE(ADDRESS(15,5+'MC3'!G49,1,TRUE,"calculations"),":h15") -> calculations!$J$15:h15 | J49: 6 | K49: 0 | L49: 0 | M49: =SUM(Calculations!$E$15:$H$15) -> 1 | N49: =Calculations!$L$13 -> 1.135 | O49: =Calculations!$D$15 -> 0
A50: C2d | B50: 0.5948278675 | C50: 1 | D50: =MATCH(1,Calculations!$E$16:$H$16,0) -> 4 | E50: 0 | F50: =CONCATENATE(ADDRESS(16,5+'MC3'!D50,1,TRUE,"calculations"),":h16") -> calculations!$I$16:h16 | G50: 5 | H50: 0 | I50: =CONCATENATE(ADDRESS(16,5+'MC3'!G50,1,TRUE,"calculations"),":h16") -> calculations!$J$16:h16 | J50: 6 | K50: 0 | L50: 0 | M50: =SUM(Calculations!$E$16:$H$16) -> 1 | N50: =Calculations!$L$13 -> 1.135 | O50: =Calculations!$D$16 -> 0
A51: C3 | B51: 0.7392191385 | C51: 1 | D51: =MATCH(1,Calculations!$E$17:$H$17,0) -> 4 | E51: 0 | F51: =CONCATENATE(ADDRESS(17,5+'MC3'!D51,1,TRUE,"calculations"),":h17") -> calculations!$I$17:h17 | G51: 5 | H51: 0 | I51: =CONCATENATE(ADDRESS(17,5+'MC3'!G51,1,TRUE,"calculations"),":h17") -> calculations!$J$17:h17 | J51: 6 | K51: 0 | L51: 0 | M51: =SUM(Calculations!$E$17:$H$17) -> 1 | N51: =Calculations!$L$13 -> 1.135 | O51: =Calculations!$D$17 -> 0
A52: C4a | B52: 0.3567227902 | C52: 0.5 | D52: =MATCH(1,Calculations!$E$18:$H$18,0) -> 3 | E52: 1 | F52: =CONCATENATE(ADDRESS(18,5+'MC3'!D52,1,TRUE,"calculations"),":h18") -> calculations!$H$18:h18 | G52: 4 | H52: 0 | I52: =CONCATENATE(ADDRESS(18,5+'MC3'!G52,1,TRUE,"calculations"),":h18") -> calculations!$I$18:h18 | J52: 5 | K52: 0 | L52: 1.135 | M52: =SUM(Calculations!$E$18:$H$18) -> 2 | N52: =Calculations!$L$13 -> 1.135 | O52: =Calculations!$D$18 -> 0.5675
A53: C4b | B53: 0.5251616327 | C53: 1 | D53: =MATCH(1,Calculations!$E$19:$H$19,0) -> 4 | E53: 0 | F53: =CONCATENATE(ADDRESS(19,5+'MC3'!D53,1,TRUE,"calculations"),":h19") -> calculations!$I$19:h19 | G53: =D53+MATCH(1,INDIRECT(F53),0) -> 5 | H53: 0 | I53: =CONCATENATE(ADDRESS(19,5+'MC3'!G53,1,TRUE,"calculations"),":h19") -> calculations!$J$19:h19 | J53: 6 | K53: 0 | L53: =IF(PlantAnimal="A",IF(M53>1,IF(M53=2,IF(B53<C53,E53*N53,H53*N53),IF(B53<C53,E53*N53,IF(B53<2*C53,H53*N53,K53*N53))),O53),0) -> 0 | M53: =SUM(Calculations!$E$19:$H$19) -> 1 | N53: =Calculations!$L$13 -> 1.135 | O53: =Calculations!$D$19 -> 0
A54: C4c | B54: 0.6923194379 | D54: =MATCH(1,Calculations!$E$20:$H$20,0) ->  | F54: =CONCATENATE(ADDRESS(20,5+'MC3'!D54,1,TRUE,"calculations"),":h20") ->  | G54: =D54+MATCH(1,INDIRECT(F54),0) ->  | H54: 0 | I54: =CONCATENATE(ADDRESS(20,5+'MC3'!G54,1,TRUE,"calculations"),":h20") ->  | K54: 0 | L54: =IF(PlantAnimal="P",IF(M54>1,IF(M54=2,IF(B54<C54,E54*N54,H54*N54),IF(B54<C54,E54*N54,IF(B54<2*C54,H54*N54,K54*N54))),O54),0) -> 0 | M54: =SUM(Calculations!$E$20:$H$20) -> 0 | N54: =Calculations!$L$13 -> 1.135 | O54: =Calculations!$D$20 -> 0
A55: C4d | B55: 0.3683423744 | C55: 1 | D55: =MATCH(1,Calculations!$E$21:$H$21,0) -> 4 | E55: 0 | F55: =CONCATENATE(ADDRESS(21,5+'MC3'!D55,1,TRUE,"calculations"),":h21") -> calculations!$I$21:h21 | G55: 5 | H55: 0 | I55: =CONCATENATE(ADDRESS(21,5+'MC3'!G55,1,TRUE,"calculations"),":h21") -> calculations!$J$21:h21 | J55: 6 | K55: 0 | L55: =IF(M55>1,IF(M55=2,IF(B55<C55,E55*N55,H55*N55),IF(B55<C55,E55*N55,IF(B55<2*C55,H55*N55,K55*N55))),O55) -> 0 | M55: =SUM(Calculations!$E$21:$H$21) -> 1 | N55: =Calculations!$L$13 -> 1.135 | O55: =Calculations!$D$21 -> 0
A56: C4e | B56: 0.8961397146 | C56: 1 | D56: =MATCH(1,Calculations!$E$22:$H$22,0) -> 3 | E56: 1 | F56: =CONCATENATE(ADDRESS(22,5+'MC3'!D56,1,TRUE,"calculations"),":h22") -> calculations!$H$22:h22 | H56: 0 | I56: =CONCATENATE(ADDRESS(22,5+'MC3'!G56,1,TRUE,"calculations"),":h22") ->  | K56: 0 | L56: 1.135 | M56: =SUM(Calculations!$E$22:$H$22) -> 1 | N56: =Calculations!$L$13 -> 1.135 | O56: =Calculations!$D$22 -> 1.135
A57: C4f | B57: 0.873355468 | C57: 1 | D57: =MATCH(1,Calculations!$E$23:$H$23,0) -> 4 | E57: 0 | F57: =CONCATENATE(ADDRESS(23,5+'MC3'!D57,1,TRUE,"calculations"),":h23") -> calculations!$I$23:h23 | G57: 5 | H57: 0 | I57: =CONCATENATE(ADDRESS(23,5+'MC3'!G57,1,TRUE,"calculations"),":h23") -> calculations!$J$23:h23 | J57: 6 | K57: 0 | L57: 0 | M57: =SUM(Calculations!$E$23:$H$23) -> 1 | N57: =Calculations!$L$13 -> 1.135 | O57: =Calculations!$D$23 -> 0
A58: C4g | B58: 0.7640147188 | C58: 1 | D58: =MATCH(1,Calculations!$E$24:$H$24,0) -> 4 | E58: 0 | F58: =CONCATENATE(ADDRESS(24,5+'MC3'!D58,1,TRUE,"calculations"),":h24") -> calculations!$I$24:h24 | G58: 5 | H58: 0 | I58: =CONCATENATE(ADDRESS(24,5+'MC3'!G58,1,TRUE,"calculations"),":h24") -> calculations!$J$24:h24 | J58: 6 | K58: 0 | L58: 0 | M58: =SUM(Calculations!$E$24:$H$24) -> 1 | N58: =Calculations!$L$13 -> 1.135 | O58: =Calculations!$D$24 -> 0
A59: C5a | B59: 0.9574066863 | D59: =MATCH(1,Calculations!$E$25:$H$25,0) ->  | F59: =CONCATENATE(ADDRESS(25,5+'MC3'!D59,1,TRUE,"calculations"),":h25") ->  | H59: 0 | I59: =CONCATENATE(ADDRESS(25,5+'MC3'!G59,1,TRUE,"calculations"),":h25") ->  | K59: 0 | L59: 0 | M59: =SUM(Calculations!$E$25:$H$25) -> 0 | N59: =Calculations!$L$13 -> 1.135 | O59: =Calculations!$D$25 -> 0
A60: C5b | B60: 0.4596746316 | C60: 1 | D60: =MATCH(1,Calculations!$E$26:$H$26,0) -> 4 | E60: 0 | F60: =CONCATENATE(ADDRESS(26,5+'MC3'!D60,1,TRUE,"calculations"),":h26") -> calculations!$I$26:h26 | G60: 5 | H60: 0 | I60: =CONCATENATE(ADDRESS(26,5+'MC3'!G60,1,TRUE,"calculations"),":h26") -> calculations!$J$26:h26 | J60: 6 | K60: 0 | L60: =IF(M59=0,IF(M60>1,IF(M60=2,IF(B60<C60,E60*N60,H60*N60),IF(B60<C60,E60*N60,IF(B60<2*C60,H60*N60,K60*N60))),O60),0) -> 0 | M60: =SUM(Calculations!$E$26:$H$26) -> 1 | N60: =Calculations!$L$13 -> 1.135 | O60: =Calculations!$D$26 -> 0
A61: C5c | B61: 0.2563575842 | D61: =MATCH(1,Calculations!$E$27:$H$27,0) ->  | F61: =CONCATENATE(ADDRESS(27,5+'MC3'!D61,1,TRUE,"calculations"),":h27") ->  | H61: 0 | I61: =CONCATENATE(ADDRESS(27,5+'MC3'!G61,1,TRUE,"calculations"),":h27") ->  | K61: 0 | L61: =IF(PlantAnimal="P",IF(M59=0,IF(M60=0,IF(M61>1,IF(M61=2,IF(B61<C61,E61*N61,H61*N61),IF(B61<C61,E61*N61,IF(B61<2*C61,H61*N61,K61*N61))),O61),0),0),0) -> 0 | M61: =SUM(Calculations!$E$27:$H$27) -> 0 | N61: =Calculations!$L$13 -> 1.135 | O61: =Calculations!$D$27 -> 0
A62: C6 | B62: 0.9969930777 | C62: 1 | D62: =MATCH(1,Calculations!$E$28:$H$28,0) -> 4 | E62: 0 | F62: =CONCATENATE(ADDRESS(28,5+'MC3'!D62,1,TRUE,"calculations"),":h28") -> calculations!$I$28:h28 | G62: 5 | H62: 0 | I62: =CONCATENATE(ADDRESS(28,5+'MC3'!G62,1,TRUE,"calculations"),":h28") -> calculations!$J$28:h28 | J62: 6 | K62: 0 | L62: =IF(M62>1,IF(M62=2,IF(B62<C62,E62*N62,H62*N62),IF(B62<C62,E62*N62,IF(B62<2*C62,H62*N62,K62*N62))),O62) -> 0 | M62: =SUM(Calculations!$E$28:$H$28) -> 1 | N62: =Calculations!$L$13 -> 1.135 | O62: =Calculations!$D$28 -> 0
L63: =SUM(L40:L62) -> 4.54 | N63: B-C Subscore: | O63: =Calculations!$D$29 -> 3.9725
A64: D1 | B64: =RAND() -> 0.3755000753 | C64: =1/M64 ->  | D64: =MATCH(1,Calculations!$E$30:$H$30,0) ->  | F64: =CONCATENATE(ADDRESS(30,5+'MC3'!D64,1,TRUE,"calculations"),":h30") ->  | G64: =D64+MATCH(1,INDIRECT(F64),0) ->  | H64: =IF(M64>1,IF(G64=2,2,IF(G64=3,1,0)),0) -> 0 | I64: =CONCATENATE(ADDRESS(30,5+'MC3'!G64,1,TRUE,"calculations"),":h30") ->  | J64: =G64+MATCH(1,INDIRECT(I64),0) ->  | K64: =IF(J64=3,1,IF(J64=4,0,IF(J64=5,-1,-2))) ->  | L64: =IF(M64>1,IF(M64=2,IF(B64<C64,E64*N64,H64*N64),IF(B64<C64,E64*N64,IF(B64<2*C64,H64*N64,K64*N64))),O64) -> 0 | M64: =SUM(Calculations!$E$30:$H$30) -> 0 | N64: 1 | O64: =Calculations!$D$30 -> 0
A65: D2 | B65: 0.6 | C65: =1/M65 ->  | D65: =MATCH(1,Calculations!$E$31:$H$31,0) ->  | F65: =CONCATENATE(ADDRESS(31,5+'MC3'!D65,1,TRUE,"calculations"),":h31") ->  | G65: =D65+MATCH(1,INDIRECT(F65),0) ->  | H65: 0 | I65: =CONCATENATE(ADDRESS(31,5+'MC3'!G65,1,TRUE,"calculations"),":h31") ->  | J65: =G65+MATCH(1,INDIRECT(I65),0) ->  | K65: =IF(J65=3,1,IF(J65=4,0,IF(J65=5,-1,-2))) ->  | L65: 0 | M65: =SUM(Calculations!$E$31:$H$31) -> 0 | N65: 1 | O65: =Calculations!$D$31 -> 0
A66: D3 | B66: =RAND() -> 0.2953238149 | C66: =1/M66 ->  | D66: =MATCH(1,Calculations!$E$32:$H$32,0) ->  | F66: =CONCATENATE(ADDRESS(32,5+'MC3'!D66,1,TRUE,"calculations"),":h32") ->  | G66: =D66+MATCH(1,INDIRECT(F66),0) ->  | H66: 0 | I66: =CONCATENATE(ADDRESS(32,5+'MC3'!G66,1,TRUE,"calculations"),":h32") ->  | J66: =G66+MATCH(1,INDIRECT(I66),0) ->  | K66: =IF(J66=3,1,IF(J66=4,0,IF(J66=5,-1,-2))) ->  | L66: 0 | M66: =SUM(Calculations!$E$32:$H$32) -> 0 | N66: 1 | O66: =Calculations!$D$32 -> 0
A67: D4 | B67: =RAND() -> 0.4365669619 | C67: =1/M67 ->  | D67: =MATCH(1,Calculations!$E$33:$H$33,0) ->  | F67: =CONCATENATE(ADDRESS(33,5+'MC3'!D67,1,TRUE,"calculations"),":h33") ->  | G67: =D67+MATCH(1,INDIRECT(F67),0) ->  | H67: 0 | I67: =CONCATENATE(ADDRESS(33,5+'MC3'!G67,1,TRUE,"calculations"),":h33") ->  | J67: =G67+MATCH(1,INDIRECT(I67),0) ->  | K67: =IF(J67=3,1,IF(J67=4,0,IF(J67=5,-1,-2))) ->  | L67: 0 | M67: =SUM(Calculations!$E$33:$H$33) -> 0 | N67: 1 | O67: =Calculations!$D$33 -> 0
L68: =SUM(L64:L67) -> 0 | N68: D Subscore: | O68: =Calculations!$D$34 -> 0
M70: Monte carlo
L71: Index for Factors B-C: | M71: =IF(Calculations!$K$47=FALSE,"IE",IF(L63>Calculations!$G$42,"EV",IF(L63>Calculations!$G$43,"HV",IF(L63>Calculations!$G$44,"MV","LV")))) -> MV
L72: Index for Factor D: | M72: =IF(Calculations!$H$39<1,"IE",IF(L68>=Calculations!$H$42,"EV",IF(L68>=Calculations!$H$43,"HV",IF(L68>=Calculations!$H$44,"MV","LV")))) -> IE | N72: =IF(Calculations!$F$54=TRUE,1,IF(M72="EV",1,IF(M72="HV",2,IF(M72="MV",3,IF(M72="LV",4,5))))) -> 5
L73: Combined Index: | M73: =HLOOKUP(M71,Calculations!$N$22:$R$27,N72+1,FALSE) -> MV
A75: Factor | B75: Rnd | C75: cut-off | D75: 1st checked box | E75: Score 1st chk box | F75: 2nd range to check for checked box | G75: 2nd chk box | H75: score 2nd chk box | I75: 3rd range to check for checked box | J75: 3rd chk box | K75: Score 3rd chk box | L75: Monte Carlo Score | M75: # Boxes checked | N75: Exposure | O75: Averaged Score
A76: B1 | B76: =RAND() -> 0.6325577991 | C76: =1/M76 -> 1 | D76: =MATCH(1,Calculations!$E$6:$H$6,0) -> 4 | E76: =IF(D76=1,3,IF(D76=2,2,IF(D76=3,1,0))) -> 0 | F76: =CONCATENATE(ADDRESS(6,5+'MC3'!D76,1,TRUE,"calculations"),":h6") -> calculations!$I$6:h6 | G76: =D76+MATCH(1,INDIRECT(F76),0) -> 5 | H76: =IF(M76>1,IF(G76=2,2,IF(G76=3,1,0)),0) -> 0 | I76: =CONCATENATE(ADDRESS(6,5+'MC3'!G76,1,TRUE,"calculations"),":h6") -> calculations!$J$6:h6 | J76: =G76+MATCH(1,INDIRECT(I76),0) -> 6 | K76: =IF(M76=3,IF(J76=3,1,0),0) -> 0 | L76: =IF(M76>1,IF(M76=2,IF(B76<C76,E76*N76,H76*N76),IF(B76<C76,E76*N76,IF(B76<2*C76,H76*N76,K76*N76))),O76) -> 0 | M76: =SUM(Calculations!$E$6:$H$6) -> 1 | N76: 1 | O76: =Calculations!$D$6 -> 0
A77: B2a | B77: 0.7060263279 | C77: 1 | D77: =MATCH(1,Calculations!$E$7:$H$7,0) -> 4 | E77: =IF(D77=1,3,IF(D77=2,2,IF(D77=3,1,0))) -> 0 | F77: =CONCATENATE(ADDRESS(7,5+'MC3'!D77,1,TRUE,"calculations"),":h7") -> calculations!$I$7:h7 | G77: 5 | H77: =IF(M77>1,IF(G77=2,2,IF(G77=3,1,0)),0) -> 0 | I77: =CONCATENATE(ADDRESS(7,5+'MC3'!G77,1,TRUE,"calculations"),":h7") -> calculations!$J$7:h7 | J77: 6 | K77: =IF(M77=3,IF(J77=3,1,0),0) -> 0 | L77: =IF(M77>1,IF(M77=2,IF(B77<C77,E77*N77,H77*N77),IF(B77<C77,E77*N77,IF(B77<2*C77,H77*N77,K77*N77))),O77) -> 0 | M77: =SUM(Calculations!$E$7:$H$7) -> 1 | N77: =Calculations!$L$13 -> 1.135 | O77: =Calculations!$D$7 -> 0
A78: B2b | B78: 0.6075562726 | C78: 1 | D78: =MATCH(1,Calculations!$E$8:$H$8,0) -> 4 | E78: 0 | F78: =CONCATENATE(ADDRESS(8,5+'MC3'!D78,1,TRUE,"calculations"),":h8") -> calculations!$I$8:h8 | G78: 5 | H78: 0 | I78: =CONCATENATE(ADDRESS(8,5+'MC3'!G78,1,TRUE,"calculations"),":h8") -> calculations!$J$8:h8 | J78: 6 | K78: 0 | L78: 0 | M78: =SUM(Calculations!$E$8:$H$8) -> 1 | N78: =Calculations!$L$13 -> 1.135 | O78: =Calculations!$D$8 -> 0
A79: B3 | B79: 0.3607409883 | C79: =1/M79 -> 1 | D79: =MATCH(1,Calculations!$E$9:$H$9,0) -> 4 | E79: 0 | F79: =CONCATENATE(ADDRESS(9,5+'MC3'!D79,1,TRUE,"calculations"),":h9") -> calculations!$I$9:h9 | G79: =D79+MATCH(1,INDIRECT(F79),0) -> 5 | H79: 0 | I79: =CONCATENATE(ADDRESS(9,5+'MC3'!G79,1,TRUE,"calculations"),":h9") -> calculations!$J$9:h9 | J79: =G79+MATCH(1,INDIRECT(I79),0) -> 6 | K79: 0 | L79: 0 | M79: =SUM(Calculations!$E$9:$H$9) -> 1 | N79: =Calculations!$L$13 -> 1.135 | O79: =Calculations!$D$9 -> 0
A80: C1 | B80: 0.1002306166 | C80: =1/M80 -> 1 | D80: =MATCH(1,Calculations!$E$10:$H$10,0) -> 4 | E80: 0 | F80: =CONCATENATE(ADDRESS(10,5+'MC3'!D80,1,TRUE,"calculations"),":h10") -> calculations!$I$10:h10 | G80: =D80+MATCH(1,INDIRECT(F80),0) -> 5 | H80: 0 | I80: =CONCATENATE(ADDRESS(10,5+'MC3'!G80,1,TRUE,"calculations"),":h10") -> calculations!$J$10:h10 | J80: =G80+MATCH(1,INDIRECT(I80),0) -> 6 | K80: 0 | L80: 0 | M80: =SUM(Calculations!$E$10:$H$10) -> 1 | N80: =Calculations!$L$13 -> 1.135 | O80: =Calculations!$D$10 -> 0
A81: C2ai | B81: 0.4317612356 | C81: 1 | D81: =MATCH(1,Calculations!$E$11:$H$11,0) -> 3 | E81: 1 | F81: =CONCATENATE(ADDRESS(11,5+'MC3'!D81,1,TRUE,"calculations"),":h11") -> calculations!$H$11:h11 | H81: 0 | I81: =CONCATENATE(ADDRESS(11,5+'MC3'!G81,1,TRUE,"calculations"),":h11") ->  | K81: 0 | L81: 1.6 | M81: =SUM(Calculations!$E$11:$H$11) -> 1 | N81: =Calculations!$L$9 -> 1.6 | O81: =Calculations!$D$11 -> 1.6
A82: C2aii | B82: 0.8995902317 | C82: 1 | D82: =MATCH(1,Calculations!$E$12:$H$12,0) -> 4 | E82: 0 | F82: =CONCATENATE(ADDRESS(12,5+'MC3'!D82,1,TRUE,"calculations"),":h12") -> calculations!$I$12:h12 | G82: 5 | H82: 0 | I82: =CONCATENATE(ADDRESS(12,5+'MC3'!G82,1,TRUE,"calculations"),":h12") -> calculations!$J$12:h12 | J82: 6 | K82: 0 | L82: 0 | M82: =SUM(Calculations!$E$12:$H$12) -> 1 | N82: =Calculations!$L$9 -> 1.6 | O82: =Calculations!$D$12 -> 0
A83: C2bi | B83: 0.4815821199 | C83: 1 | D83: =MATCH(1,Calculations!$E$13:$H$13,0) -> 4 | E83: 0 | F83: =CONCATENATE(ADDRESS(13,5+'MC3'!D83,1,TRUE,"calculations"),":h13") -> calculations!$I$13:h13 | G83: 5 | H83: 0 | I83: =CONCATENATE(ADDRESS(13,5+'MC3'!G83,1,TRUE,"calculations"),":h13") -> calculations!$J$13:h13 | J83: 6 | K83: 0 | L83: 0 | M83: =SUM(Calculations!$E$13:$H$13) -> 1 | N83: =Calculations!$L$11 -> 0.67 | O83: =Calculations!$D$13 -> 0
A84: C2bii | B84: 0.8399038231 | C84: 1 | D84: =MATCH(1,Calculations!$E$14:$H$14,0) -> 3 | E84: 1 | F84: =CONCATENATE(ADDRESS(14,5+'MC3'!D84,1,TRUE,"calculations"),":h14") -> calculations!$H$14:h14 | H84: 0 | I84: =CONCATENATE(ADDRESS(14,5+'MC3'!G84,1,TRUE,"calculations"),":h14") ->  | K84: 0 | L84: 0.67 | M84: =SUM(Calculations!$E$14:$H$14) -> 1 | N84: =Calculations!$L$11 -> 0.67 | O84: =Calculations!$D$14 -> 0.67
A85: C2c | B85: 0.1457457362 | C85: 1 | D85: =MATCH(1,Calculations!$E$15:$H$15,0) -> 4 | E85: 0 | F85: =CONCATENATE(ADDRESS(15,5+'MC3'!D85,1,TRUE,"calculations"),":h15") -> calculations!$I$15:h15 | G85: 5 | H85: 0 | I85: =CONCATENATE(ADDRESS(15,5+'MC3'!G85,1,TRUE,"calculations"),":h15") -> calculations!$J$15:h15 | J85: 6 | K85: 0 | L85: 0 | M85: =SUM(Calculations!$E$15:$H$15) -> 1 | N85: =Calculations!$L$13 -> 1.135 | O85: =Calculations!$D$15 -> 0
A86: C2d | B86: 0.670921852 | C86: 1 | D86: =MATCH(1,Calculations!$E$16:$H$16,0) -> 4 | E86: 0 | F86: =CONCATENATE(ADDRESS(16,5+'MC3'!D86,1,TRUE,"calculations"),":h16") -> calculations!$I$16:h16 | G86: 5 | H86: 0 | I86: =CONCATENATE(ADDRESS(16,5+'MC3'!G86,1,TRUE,"calculations"),":h16") -> calculations!$J$16:h16 | J86: 6 | K86: 0 | L86: 0 | M86: =SUM(Calculations!$E$16:$H$16) -> 1 | N86: =Calculations!$L$13 -> 1.135 | O86: =Calculations!$D$16 -> 0
A87: C3 | B87: 0.2812036822 | C87: 1 | D87: =MATCH(1,Calculations!$E$17:$H$17,0) -> 4 | E87: 0 | F87: =CONCATENATE(ADDRESS(17,5+'MC3'!D87,1,TRUE,"calculations"),":h17") -> calculations!$I$17:h17 | G87: 5 | H87: 0 | I87: =CONCATENATE(ADDRESS(17,5+'MC3'!G87,1,TRUE,"calculations"),":h17") -> calculations!$J$17:h17 | J87: 6 | K87: 0 | L87: 0 | M87: =SUM(Calculations!$E$17:$H$17) -> 1 | N87: =Calculations!$L$13 -> 1.135 | O87: =Calculations!$D$17 -> 0
A88: C4a | B88: 0.9151911872 | C88: 0.5 | D88: =MATCH(1,Calculations!$E$18:$H$18,0) -> 3 | E88: 1 | F88: =CONCATENATE(ADDRESS(18,5+'MC3'!D88,1,TRUE,"calculations"),":h18") -> calculations!$H$18:h18 | G88: 4 | H88: 0 | I88: =CONCATENATE(ADDRESS(18,5+'MC3'!G88,1,TRUE,"calculations"),":h18") -> calculations!$I$18:h18 | J88: 5 | K88: 0 | L88: 0 | M88: =SUM(Calculations!$E$18:$H$18) -> 2 | N88: =Calculations!$L$13 -> 1.135 | O88: =Calculations!$D$18 -> 0.5675
A89: C4b | B89: 0.3270021923 | C89: 1 | D89: =MATCH(1,Calculations!$E$19:$H$19,0) -> 4 | E89: 0 | F89: =CONCATENATE(ADDRESS(19,5+'MC3'!D89,1,TRUE,"calculations"),":h19") -> calculations!$I$19:h19 | G89: =D89+MATCH(1,INDIRECT(F89),0) -> 5 | H89: 0 | I89: =CONCATENATE(ADDRESS(19,5+'MC3'!G89,1,TRUE,"calculations"),":h19") -> calculations!$J$19:h19 | J89: 6 | K89: 0 | L89: =IF(PlantAnimal="A",IF(M89>1,IF(M89=2,IF(B89<C89,E89*N89,H89*N89),IF(B89<C89,E89*N89,IF(B89<2*C89,H89*N89,K89*N89))),O89),0) -> 0 | M89: =SUM(Calculations!$E$19:$H$19) -> 1 | N89: =Calculations!$L$13 -> 1.135 | O89: =Calculations!$D$19 -> 0
A90: C4c | B90: 0.7570729954 | D90: =MATCH(1,Calculations!$E$20:$H$20,0) ->  | F90: =CONCATENATE(ADDRESS(20,5+'MC3'!D90,1,TRUE,"calculations"),":h20") ->  | G90: =D90+MATCH(1,INDIRECT(F90),0) ->  | H90: 0 | I90: =CONCATENATE(ADDRESS(20,5+'MC3'!G90,1,TRUE,"calculations"),":h20") ->  | K90: 0 | L90: =IF(PlantAnimal="P",IF(M90>1,IF(M90=2,IF(B90<C90,E90*N90,H90*N90),IF(B90<C90,E90*N90,IF(B90<2*C90,H90*N90,K90*N90))),O90),0) -> 0 | M90: =SUM(Calculations!$E$20:$H$20) -> 0 | N90: =Calculations!$L$13 -> 1.135 | O90: =Calculations!$D$20 -> 0
A91: C4d | B91: 0.4798093405 | C91: 1 | D91: =MATCH(1,Calculations!$E$21:$H$21,0) -> 4 | E91: 0 | F91: =CONCATENATE(ADDRESS(21,5+'MC3'!D91,1,TRUE,"calculations"),":h21") -> calculations!$I$21:h21 | G91: 5 | H91: 0 | I91: =CONCATENATE(ADDRESS(21,5+'MC3'!G91,1,TRUE,"calculations"),":h21") -> calculations!$J$21:h21 | J91: 6 | K91: 0 | L91: =IF(M91>1,IF(M91=2,IF(B91<C91,E91*N91,H91*N91),IF(B91<C91,E91*N91,IF(B91<2*C91,H91*N91,K91*N91))),O91) -> 0 | M91: =SUM(Calculations!$E$21:$H$21) -> 1 | N91: =Calculations!$L$13 -> 1.135 | O91: =Calculations!$D$21 -> 0
A92: C4e | B92: 0.9877779853 | C92: 1 | D92: =MATCH(1,Calculations!$E$22:$H$22,0) -> 3 | E92: 1 | F92: =CONCATENATE(ADDRESS(22,5+'MC3'!D92,1,TRUE,"calculations"),":h22") -> calculations!$H$22:h22 | H92: 0 | I92: =CONCATENATE(ADDRESS(22,5+'MC3'!G92,1,TRUE,"calculations"),":h22") ->  | K92: 0 | L92: 1.135 | M92: =SUM(Calculations!$E$22:$H$22) -> 1 | N92: =Calculations!$L$13 -> 1.135 | O92: =Calculations!$D$22 -> 1.135
A93: C4f | B93: 0.4287633467 | C93: 1 | D93: =MATCH(1,Calculations!$E$23:$H$23,0) -> 4 | E93: 0 | F93: =CONCATENATE(ADDRESS(23,5+'MC3'!D93,1,TRUE,"calculations"),":h23") -> calculations!$I$23:h23 | G93: 5 | H93: 0 | I93: =CONCATENATE(ADDRESS(23,5+'MC3'!G93,1,TRUE,"calculations"),":h23") -> calculations!$J$23:h23 | J93: 6 | K93: 0 | L93: 0 | M93: =SUM(Calculations!$E$23:$H$23) -> 1 | N93: =Calculations!$L$13 -> 1.135 | O93: =Calculations!$D$23 -> 0
A94: C4g | B94: 0.9069795766 | C94: 1 | D94: =MATCH(1,Calculations!$E$24:$H$24,0) -> 4 | E94: 0 | F94: =CONCATENATE(ADDRESS(24,5+'MC3'!D94,1,TRUE,"calculations"),":h24") -> calculations!$I$24:h24 | G94: 5 | H94: 0 | I94: =CONCATENATE(ADDRESS(24,5+'MC3'!G94,1,TRUE,"calculations"),":h24") -> calculations!$J$24:h24 | J94: 6 | K94: 0 | L94: 0 | M94: =SUM(Calculations!$E$24:$H$24) -> 1 | N94: =Calculations!$L$13 -> 1.135 | O94: =Calculations!$D$24 -> 0
A95: C5a | B95: 0.4769179775 | D95: =MATCH(1,Calculations!$E$25:$H$25,0) ->  | F95: =CONCATENATE(ADDRESS(25,5+'MC3'!D95,1,TRUE,"calculations"),":h25") ->  | H95: 0 | I95: =CONCATENATE(ADDRESS(25,5+'MC3'!G95,1,TRUE,"calculations"),":h25") ->  | K95: 0 | L95: 0 | M95: =SUM(Calculations!$E$25:$H$25) -> 0 | N95: =Calculations!$L$13 -> 1.135 | O95: =Calculations!$D$25 -> 0
A96: C5b | B96: 0.7848035658 | C96: 1 | D96: =MATCH(1,Calculations!$E$26:$H$26,0) -> 4 | E96: 0 | F96: =CONCATENATE(ADDRESS(26,5+'MC3'!D96,1,TRUE,"calculations"),":h26") -> calculations!$I$26:h26 | G96: 5 | H96: 0 | I96: =CONCATENATE(ADDRESS(26,5+'MC3'!G96,1,TRUE,"calculations"),":h26") -> calculations!$J$26:h26 | J96: 6 | K96: 0 | L96: =IF(M95=0,IF(M96>1,IF(M96=2,IF(B96<C96,E96*N96,H96*N96),IF(B96<C96,E96*N96,IF(B96<2*C96,H96*N96,K96*N96))),O96),0) -> 0 | M96: =SUM(Calculations!$E$26:$H$26) -> 1 | N96: =Calculations!$L$13 -> 1.135 | O96: =Calculations!$D$26 -> 0
A97: C5c | B97: 0.1616052433 | D97: =MATCH(1,Calculations!$E$27:$H$27,0) ->  | F97: =CONCATENATE(ADDRESS(27,5+'MC3'!D97,1,TRUE,"calculations"),":h27") ->  | H97: 0 | I97: =CONCATENATE(ADDRESS(27,5+'MC3'!G97,1,TRUE,"calculations"),":h27") ->  | K97: 0 | L97: =IF(PlantAnimal="P",IF(M95=0,IF(M96=0,IF(M97>1,IF(M97=2,IF(B97<C97,E97*N97,H97*N97),IF(B97<C97,E97*N97,IF(B97<2*C97,H97*N97,K97*N97))),O97),0),0),0) -> 0 | M97: =SUM(Calculations!$E$27:$H$27) -> 0 | N97: =Calculations!$L$13 -> 1.135 | O97: =Calculations!$D$27 -> 0
A98: C6 | B98: 0.3114046453 | C98: 1 | D98: =MATCH(1,Calculations!$E$28:$H$28,0) -> 4 | E98: 0 | F98: =CONCATENATE(ADDRESS(28,5+'MC3'!D98,1,TRUE,"calculations"),":h28") -> calculations!$I$28:h28 | G98: 5 | H98: 0 | I98: =CONCATENATE(ADDRESS(28,5+'MC3'!G98,1,TRUE,"calculations"),":h28") -> calculations!$J$28:h28 | J98: 6 | K98: 0 | L98: =IF(M98>1,IF(M98=2,IF(B98<C98,E98*N98,H98*N98),IF(B98<C98,E98*N98,IF(B98<2*C98,H98*N98,K98*N98))),O98) -> 0 | M98: =SUM(Calculations!$E$28:$H$28) -> 1 | N98: =Calculations!$L$13 -> 1.135 | O98: =Calculations!$D$28 -> 0
L99: =SUM(L76:L98) -> 3.405 | N99: B-C Subscore: | O99: =Calculations!$D$29 -> 3.9725
A100: D1 | B100: =RAND() -> 0.966898356 | C100: =1/M100 ->  | D100: =MATCH(1,Calculations!$E$30:$H$30,0) ->  | F100: =CONCATENATE(ADDRESS(30,5+'MC3'!D100,1,TRUE,"calculations"),":h30") ->  | G100: =D100+MATCH(1,INDIRECT(F100),0) ->  | H100: =IF(M100>1,IF(G100=2,2,IF(G100=3,1,0)),0) -> 0 | I100: =CONCATENATE(ADDRESS(30,5+'MC3'!G100,1,TRUE,"calculations"),":h30") ->  | J100: =G100+MATCH(1,INDIRECT(I100),0) ->  | K100: =IF(J100=3,1,IF(J100=4,0,IF(J100=5,-1,-2))) ->  | L100: =IF(M100>1,IF(M100=2,IF(B100<C100,E100*N100,H100*N100),IF(B100<C100,E100*N100,IF(B100<2*C100,H100*N100,K100*N100))),O100) -> 0 | M100: =SUM(Calculations!$E$30:$H$30) -> 0 | N100: 1 | O100: =Calculations!$D$30 -> 0
A101: D2 | B101: 0.6 | C101: =1/M101 ->  | D101: =MATCH(1,Calculations!$E$31:$H$31,0) ->  | F101: =CONCATENATE(ADDRESS(31,5+'MC3'!D101,1,TRUE,"calculations"),":h31") ->  | G101: =D101+MATCH(1,INDIRECT(F101),0) ->  | H101: 0 | I101: =CONCATENATE(ADDRESS(31,5+'MC3'!G101,1,TRUE,"calculations"),":h31") ->  | J101: =G101+MATCH(1,INDIRECT(I101),0) ->  | K101: =IF(J101=3,1,IF(J101=4,0,IF(J101=5,-1,-2))) ->  | L101: 0 | M101: =SUM(Calculations!$E$31:$H$31) -> 0 | N101: 1 | O101: =Calculations!$D$31 -> 0
A102: D3 | B102: =RAND() -> 0.2997813994 | C102: =1/M102 ->  | D102: =MATCH(1,Calculations!$E$32:$H$32,0) ->  | F102: =CONCATENATE(ADDRESS(32,5+'MC3'!D102,1,TRUE,"calculations"),":h32") ->  | G102: =D102+MATCH(1,INDIRECT(F102),0) ->  | H102: 0 | I102: =CONCATENATE(ADDRESS(32,5+'MC3'!G102,1,TRUE,"calculations"),":h32") ->  | J102: =G102+MATCH(1,INDIRECT(I102),0) ->  | K102: =IF(J102=3,1,IF(J102=4,0,IF(J102=5,-1,-2))) ->  | L102: 0 | M102: =SUM(Calculations!$E$32:$H$32) -> 0 | N102: 1 | O102: =Calculations!$D$32 -> 0
A103: D4 | B103: =RAND() -> 0.8738410035 | C103: =1/M103 ->  | D103: =MATCH(1,Calculations!$E$33:$H$33,0) ->  | F103: =CONCATENATE(ADDRESS(33,5+'MC3'!D103,1,TRUE,"calculations"),":h33") ->  | G103: =D103+MATCH(1,INDIRECT(F103),0) ->  | H103: 0 | I103: =CONCATENATE(ADDRESS(33,5+'MC3'!G103,1,TRUE,"calculations"),":h33") ->  | J103: =G103+MATCH(1,INDIRECT(I103),0) ->  | K103: =IF(J103=3,1,IF(J103=4,0,IF(J103=5,-1,-2))) ->  | L103: 0 | M103: =SUM(Calculations!$E$33:$H$33) -> 0 | N103: 1 | O103: =Calculations!$D$33 -> 0
L104: =SUM(L100:L103) -> 0 | N104: D Subscore: | O104: =Calculations!$D$34 -> 0
M106: Monte carlo
L107: Index for Factors B-C: | M107: =IF(Calculations!$K$47=FALSE,"IE",IF(L99>Calculations!$G$42,"EV",IF(L99>Calculations!$G$43,"HV",IF(L99>Calculations!$G$44,"MV","LV")))) -> LV
L108: Index for Factor D: | M108: =IF(Calculations!$H$39<1,"IE",IF(L104>=Calculations!$H$42,"EV",IF(L104>=Calculations!$H$43,"HV",IF(L104>=Calculations!$H$44,"MV","LV")))) -> IE | N108: =IF(Calculations!$F$54=TRUE,1,IF(M108="EV",1,IF(M108="HV",2,IF(M108="MV",3,IF(M108="LV",4,5))))) -> 5
L109: Combined Index: | M109: =HLOOKUP(M107,Calculations!$N$22:$R$27,N108+1,FALSE) -> LV
A111: Factor | B111: Rnd | C111: cut-off | D111: 1st checked box | E111: Score 1st chk box | F111: 2nd range to check for checked box | G111: 2nd chk box | H111: score 2nd chk box | I111: 3rd range to check for checked box | J111: 3rd chk box | K111: Score 3rd chk box | L111: Monte Carlo Score | M111: # Boxes checked | N111: Exposure | O111: Averaged Score
A112: B1 | B112: =RAND() -> 0.4184797928 | C112: =1/M112 -> 1 | D112: =MATCH(1,Calculations!$E$6:$H$6,0) -> 4 | E112: =IF(D112=1,3,IF(D112=2,2,IF(D112=3,1,0))) -> 0 | F112: =CONCATENATE(ADDRESS(6,5+'MC3'!D112,1,TRUE,"calculations"),":h6") -> calculations!$I$6:h6 | G112: =D112+MATCH(1,INDIRECT(F112),0) -> 5 | H112: =IF(M112>1,IF(G112=2,2,IF(G112=3,1,0)),0) -> 0 | I112: =CONCATENATE(ADDRESS(6,5+'MC3'!G112,1,TRUE,"calculations"),":h6") -> calculations!$J$6:h6 | J112: =G112+MATCH(1,INDIRECT(I112),0) -> 6 | K112: =IF(M112=3,IF(J112=3,1,0),0) -> 0 | L112: =IF(M112>1,IF(M112=2,IF(B112<C112,E112*N112,H112*N112),IF(B112<C112,E112*N112,IF(B112<2*C112,H112*N112,K112*N112))),O112) -> 0 | M112: =SUM(Calculations!$E$6:$H$6) -> 1 | N112: 1 | O112: =Calculations!$D$6 -> 0
A113: B2a | B113: 0.9037004736 | C113: 1 | D113: =MATCH(1,Calculations!$E$7:$H$7,0) -> 4 | E113: =IF(D113=1,3,IF(D113=2,2,IF(D113=3,1,0))) -> 0 | F113: =CONCATENATE(ADDRESS(7,5+'MC3'!D113,1,TRUE,"calculations"),":h7") -> calculations!$I$7:h7 | G113: 5 | H113: =IF(M113>1,IF(G113=2,2,IF(G113=3,1,0)),0) -> 0 | I113: =CONCATENATE(ADDRESS(7,5+'MC3'!G113,1,TRUE,"calculations"),":h7") -> calculations!$J$7:h7 | J113: 6 | K113: =IF(M113=3,IF(J113=3,1,0),0) -> 0 | L113: =IF(M113>1,IF(M113=2,IF(B113<C113,E113*N113,H113*N113),IF(B113<C113,E113*N113,IF(B113<2*C113,H113*N113,K113*N113))),O113) -> 0 | M113: =SUM(Calculations!$E$7:$H$7) -> 1 | N113: =Calculations!$L$13 -> 1.135 | O113: =Calculations!$D$7 -> 0
A114: B2b | B114: 0.1689111184 | C114: 1 | D114: =MATCH(1,Calculations!$E$8:$H$8,0) -> 4 | E114: 0 | F114: =CONCATENATE(ADDRESS(8,5+'MC3'!D114,1,TRUE,"calculations"),":h8") -> calculations!$I$8:h8 | G114: 5 | H114: 0 | I114: =CONCATENATE(ADDRESS(8,5+'MC3'!G114,1,TRUE,"calculations"),":h8") -> calculations!$J$8:h8 | J114: 6 | K114: 0 | L114: 0 | M114: =SUM(Calculations!$E$8:$H$8) -> 1 | N114: =Calculations!$L$13 -> 1.135 | O114: =Calculations!$D$8 -> 0
A115: B3 | B115: 0.8314957291 | C115: =1/M115 -> 1 | D115: =MATCH(1,Calculations!$E$9:$H$9,0) -> 4 | E115: 0 | F115: =CONCATENATE(ADDRESS(9,5+'MC3'!D115,1,TRUE,"calculations"),":h9") -> calculations!$I$9:h9 | G115: =D115+MATCH(1,INDIRECT(F115),0) -> 5 | H115: 0 | I115: =CONCATENATE(ADDRESS(9,5+'MC3'!G115,1,TRUE,"calculations"),":h9") -> calculations!$J$9:h9 | J115: =G115+MATCH(1,INDIRECT(I115),0) -> 6 | K115: 0 | L115: 0 | M115: =SUM(Calculations!$E$9:$H$9) -> 1 | N115: =Calculations!$L$13 -> 1.135 | O115: =Calculations!$D$9 -> 0
A116: C1 | B116: 0.7030790802 | C116: =1/M116 -> 1 | D116: =MATCH(1,Calculations!$E$10:$H$10,0) -> 4 | E116: 0 | F116: =CONCATENATE(ADDRESS(10,5+'MC3'!D116,1,TRUE,"calculations"),":h10") -> calculations!$I$10:h10 | G116: =D116+MATCH(1,INDIRECT(F116),0) -> 5 | H116: 0 | I116: =CONCATENATE(ADDRESS(10,5+'MC3'!G116,1,TRUE,"calculations"),":h10") -> calculations!$J$10:h10 | J116: =G116+MATCH(1,INDIRECT(I116),0) -> 6 | K116: 0 | L116: 0 | M116: =SUM(Calculations!$E$10:$H$10) -> 1 | N116: =Calculations!$L$13 -> 1.135 | O116: =Calculations!$D$10 -> 0
A117: C2ai | B117: 0.2837669755 | C117: 1 | D117: =MATCH(1,Calculations!$E$11:$H$11,0) -> 3 | E117: 1 | F117: =CONCATENATE(ADDRESS(11,5+'MC3'!D117,1,TRUE,"calculations"),":h11") -> calculations!$H$11:h11 | H117: 0 | I117: =CONCATENATE(ADDRESS(11,5+'MC3'!G117,1,TRUE,"calculations"),":h11") ->  | K117: 0 | L117: 1.6 | M117: =SUM(Calculations!$E$11:$H$11) -> 1 | N117: =Calculations!$L$9 -> 1.6 | O117: =Calculations!$D$11 -> 1.6
A118: C2aii | B118: 0.9393444705 | C118: 1 | D118: =MATCH(1,Calculations!$E$12:$H$12,0) -> 4 | E118: 0 | F118: =CONCATENATE(ADDRESS(12,5+'MC3'!D118,1,TRUE,"calculations"),":h12") -> calculations!$I$12:h12 | G118: 5 | H118: 0 | I118: =CONCATENATE(ADDRESS(12,5+'MC3'!G118,1,TRUE,"calculations"),":h12") -> calculations!$J$12:h12 | J118: 6 | K118: 0 | L118: 0 | M118: =SUM(Calculations!$E$12:$H$12) -> 1 | N118: =Calculations!$L$9 -> 1.6 | O118: =Calculations!$D$12 -> 0
A119: C2bi | B119: 0.02032584379 | C119: 1 | D119: =MATCH(1,Calculations!$E$13:$H$13,0) -> 4 | E119: 0 | F119: =CONCATENATE(ADDRESS(13,5+'MC3'!D119,1,TRUE,"calculations"),":h13") -> calculations!$I$13:h13 | G119: 5 | H119: 0 | I119: =CONCATENATE(ADDRESS(13,5+'MC3'!G119,1,TRUE,"calculations"),":h13") -> calculations!$J$13:h13 | J119: 6 | K119: 0 | L119: 0 | M119: =SUM(Calculations!$E$13:$H$13) -> 1 | N119: =Calculations!$L$11 -> 0.67 | O119: =Calculations!$D$13 -> 0
A120: C2bii | B120: 0.9217033448 | C120: 1 | D120: =MATCH(1,Calculations!$E$14:$H$14,0) -> 3 | E120: 1 | F120: =CONCATENATE(ADDRESS(14,5+'MC3'!D120,1,TRUE,"calculations"),":h14") -> calculations!$H$14:h14 | H120: 0 | I120: =CONCATENATE(ADDRESS(14,5+'MC3'!G120,1,TRUE,"calculations"),":h14") ->  | K120: 0 | L120: 0.67 | M120: =SUM(Calculations!$E$14:$H$14) -> 1 | N120: =Calculations!$L$11 -> 0.67 | O120: =Calculations!$D$14 -> 0.67
A121: C2c | B121: 0.4523129793 | C121: 1 | D121: =MATCH(1,Calculations!$E$15:$H$15,0) -> 4 | E121: 0 | F121: =CONCATENATE(ADDRESS(15,5+'MC3'!D121,1,TRUE,"calculations"),":h15") -> calculations!$I$15:h15 | G121: 5 | H121: 0 | I121: =CONCATENATE(ADDRESS(15,5+'MC3'!G121,1,TRUE,"calculations"),":h15") -> calculations!$J$15:h15 | J121: 6 | K121: 0 | L121: 0 | M121: =SUM(Calculations!$E$15:$H$15) -> 1 | N121: =Calculations!$L$13 -> 1.135 | O121: =Calculations!$D$15 -> 0
A122: C2d | B122: 0.6408345353 | C122: 1 | D122: =MATCH(1,Calculations!$E$16:$H$16,0) -> 4 | E122: 0 | F122: =CONCATENATE(ADDRESS(16,5+'MC3'!D122,1,TRUE,"calculations"),":h16") -> calculations!$I$16:h16 | G122: 5 | H122: 0 | I122: =CONCATENATE(ADDRESS(16,5+'MC3'!G122,1,TRUE,"calculations"),":h16") -> calculations!$J$16:h16 | J122: 6 | K122: 0 | L122: 0 | M122: =SUM(Calculations!$E$16:$H$16) -> 1 | N122: =Calculations!$L$13 -> 1.135 | O122: =Calculations!$D$16 -> 0
A123: C3 | B123: 0.5893786508 | C123: 1 | D123: =MATCH(1,Calculations!$E$17:$H$17,0) -> 4 | E123: 0 | F123: =CONCATENATE(ADDRESS(17,5+'MC3'!D123,1,TRUE,"calculations"),":h17") -> calculations!$I$17:h17 | G123: 5 | H123: 0 | I123: =CONCATENATE(ADDRESS(17,5+'MC3'!G123,1,TRUE,"calculations"),":h17") -> calculations!$J$17:h17 | J123: 6 | K123: 0 | L123: 0 | M123: =SUM(Calculations!$E$17:$H$17) -> 1 | N123: =Calculations!$L$13 -> 1.135 | O123: =Calculations!$D$17 -> 0
A124: C4a | B124: 0.1914783967 | C124: 0.5 | D124: =MATCH(1,Calculations!$E$18:$H$18,0) -> 3 | E124: 1 | F124: =CONCATENATE(ADDRESS(18,5+'MC3'!D124,1,TRUE,"calculations"),":h18") -> calculations!$H$18:h18 | G124: 4 | H124: 0 | I124: =CONCATENATE(ADDRESS(18,5+'MC3'!G124,1,TRUE,"calculations"),":h18") -> calculations!$I$18:h18 | J124: 5 | K124: 0 | L124: 1.135 | M124: =SUM(Calculations!$E$18:$H$18) -> 2 | N124: =Calculations!$L$13 -> 1.135 | O124: =Calculations!$D$18 -> 0.5675
A125: C4b | B125: 0.1762891113 | C125: 1 | D125: =MATCH(1,Calculations!$E$19:$H$19,0) -> 4 | E125: 0 | F125: =CONCATENATE(ADDRESS(19,5+'MC3'!D125,1,TRUE,"calculations"),":h19") -> calculations!$I$19:h19 | G125: =D125+MATCH(1,INDIRECT(F125),0) -> 5 | H125: 0 | I125: =CONCATENATE(ADDRESS(19,5+'MC3'!G125,1,TRUE,"calculations"),":h19") -> calculations!$J$19:h19 | J125: 6 | K125: 0 | L125: =IF(PlantAnimal="A",IF(M125>1,IF(M125=2,IF(B125<C125,E125*N125,H125*N125),IF(B125<C125,E125*N125,IF(B125<2*C125,H125*N125,K125*N125))),O125),0) -> 0 | M125: =SUM(Calculations!$E$19:$H$19) -> 1 | N125: =Calculations!$L$13 -> 1.135 | O125: =Calculations!$D$19 -> 0
A126: C4c | B126: 0.1197890461 | D126: =MATCH(1,Calculations!$E$20:$H$20,0) ->  | F126: =CONCATENATE(ADDRESS(20,5+'MC3'!D126,1,TRUE,"calculations"),":h20") ->  | G126: =D126+MATCH(1,INDIRECT(F126),0) ->  | H126: 0 | I126: =CONCATENATE(ADDRESS(20,5+'MC3'!G126,1,TRUE,"calculations"),":h20") ->  | K126: 0 | L126: =IF(PlantAnimal="P",IF(M126>1,IF(M126=2,IF(B126<C126,E126*N126,H126*N126),IF(B126<C126,E126*N126,IF(B126<2*C126,H126*N126,K126*N126))),O126),0) -> 0 | M126: =SUM(Calculations!$E$20:$H$20) -> 0 | N126: =Calculations!$L$13 -> 1.135 | O126: =Calculations!$D$20 -> 0
A127: C4d | B127: 0.2801560902 | C127: 1 | D127: =MATCH(1,Calculations!$E$21:$H$21,0) -> 4 | E127: 0 | F127: =CONCATENATE(ADDRESS(21,5+'MC3'!D127,1,TRUE,"calculations"),":h21") -> calculations!$I$21:h21 | G127: 5 | H127: 0 | I127: =CONCATENATE(ADDRESS(21,5+'MC3'!G127,1,TRUE,"calculations"),":h21") -> calculations!$J$21:h21 | J127: 6 | K127: 0 | L127: =IF(M127>1,IF(M127=2,IF(B127<C127,E127*N127,H127*N127),IF(B127<C127,E127*N127,IF(B127<2*C127,H127*N127,K127*N127))),O127) -> 0 | M127: =SUM(Calculations!$E$21:$H$21) -> 1 | N127: =Calculations!$L$13 -> 1.135 | O127: =Calculations!$D$21 -> 0
A128: C4e | B128: 0.09069739521 | C128: 1 | D128: =MATCH(1,Calculations!$E$22:$H$22,0) -> 3 | E128: 1 | F128: =CONCATENATE(ADDRESS(22,5+'MC3'!D128,1,TRUE,"calculations"),":h22") -> calculations!$H$22:h22 | H128: 0 | I128: =CONCATENATE(ADDRESS(22,5+'MC3'!G128,1,TRUE,"calculations"),":h22") ->  | K128: 0 | L128: 1.135 | M128: =SUM(Calculations!$E$22:$H$22) -> 1 | N128: =Calculations!$L$13 -> 1.135 | O128: =Calculations!$D$22 -> 1.135
A129: C4f | B129: 0.631886566 | C129: 1 | D129: =MATCH(1,Calculations!$E$23:$H$23,0) -> 4 | E129: 0 | F129: =CONCATENATE(ADDRESS(23,5+'MC3'!D129,1,TRUE,"calculations"),":h23") -> calculations!$I$23:h23 | G129: 5 | H129: 0 | I129: =CONCATENATE(ADDRESS(23,5+'MC3'!G129,1,TRUE,"calculations"),":h23") -> calculations!$J$23:h23 | J129: 6 | K129: 0 | L129: 0 | M129: =SUM(Calculations!$E$23:$H$23) -> 1 | N129: =Calculations!$L$13 -> 1.135 | O129: =Calculations!$D$23 -> 0
A130: C4g | B130: 0.9896152955 | C130: 1 | D130: =MATCH(1,Calculations!$E$24:$H$24,0) -> 4 | E130: 0 | F130: =CONCATENATE(ADDRESS(24,5+'MC3'!D130,1,TRUE,"calculations"),":h24") -> calculations!$I$24:h24 | G130: 5 | H130: 0 | I130: =CONCATENATE(ADDRESS(24,5+'MC3'!G130,1,TRUE,"calculations"),":h24") -> calculations!$J$24:h24 | J130: 6 | K130: 0 | L130: 0 | M130: =SUM(Calculations!$E$24:$H$24) -> 1 | N130: =Calculations!$L$13 -> 1.135 | O130: =Calculations!$D$24 -> 0
A131: C5a | B131: 0.03887326247 | D131: =MATCH(1,Calculations!$E$25:$H$25,0) ->  | F131: =CONCATENATE(ADDRESS(25,5+'MC3'!D131,1,TRUE,"calculations"),":h25") ->  | H131: 0 | I131: =CONCATENATE(ADDRESS(25,5+'MC3'!G131,1,TRUE,"calculations"),":h25") ->  | K131: 0 | L131: 0 | M131: =SUM(Calculations!$E$25:$H$25) -> 0 | N131: =Calculations!$L$13 -> 1.135 | O131: =Calculations!$D$25 -> 0
A132: C5b | B132: 0.8382498274 | C132: 1 | D132: =MATCH(1,Calculations!$E$26:$H$26,0) -> 4 | E132: 0 | F132: =CONCATENATE(ADDRESS(26,5+'MC3'!D132,1,TRUE,"calculations"),":h26") -> calculations!$I$26:h26 | G132: 5 | H132: 0 | I132: =CONCATENATE(ADDRESS(26,5+'MC3'!G132,1,TRUE,"calculations"),":h26") -> calculations!$J$26:h26 | J132: 6 | K132: 0 | L132: =IF(M131=0,IF(M132>1,IF(M132=2,IF(B132<C132,E132*N132,H132*N132),IF(B132<C132,E132*N132,IF(B132<2*C132,H132*N132,K132*N132))),O132),0) -> 0 | M132: =SUM(Calculations!$E$26:$H$26) -> 1 | N132: =Calculations!$L$13 -> 1.135 | O132: =Calculations!$D$26 -> 0
A133: C5c | B133: 0.08355117992 | D133: =MATCH(1,Calculations!$E$27:$H$27,0) ->  | F133: =CONCATENATE(ADDRESS(27,5+'MC3'!D133,1,TRUE,"calculations"),":h27") ->  | H133: 0 | I133: =CONCATENATE(ADDRESS(27,5+'MC3'!G133,1,TRUE,"calculations"),":h27") ->  | K133: 0 | L133: =IF(PlantAnimal="P",IF(M131=0,IF(M132=0,IF(M133>1,IF(M133=2,IF(B133<C133,E133*N133,H133*N133),IF(B133<C133,E133*N133,IF(B133<2*C133,H133*N133,K133*N133))),O133),0),0),0) -> 0 | M133: =SUM(Calculations!$E$27:$H$27) -> 0 | N133: =Calculations!$L$13 -> 1.135 | O133: =Calculations!$D$27 -> 0
A134: C6 | B134: 0.6502196281 | C134: 1 | D134: =MATCH(1,Calculations!$E$28:$H$28,0) -> 4 | E134: 0 | F134: =CONCATENATE(ADDRESS(28,5+'MC3'!D134,1,TRUE,"calculations"),":h28") -> calculations!$I$28:h28 | G134: 5 | H134: 0 | I134: =CONCATENATE(ADDRESS(28,5+'MC3'!G134,1,TRUE,"calculations"),":h28") -> calculations!$J$28:h28 | J134: 6 | K134: 0 | L134: =IF(M134>1,IF(M134=2,IF(B134<C134,E134*N134,H134*N134),IF(B134<C134,E134*N134,IF(B134<2*C134,H134*N134,K134*N134))),O134) -> 0 | M134: =SUM(Calculations!$E$28:$H$28) -> 1 | N134: =Calculations!$L$13 -> 1.135 | O134: =Calculations!$D$28 -> 0
L135: =SUM(L112:L134) -> 4.54 | N135: B-C Subscore: | O135: =Calculations!$D$29 -> 3.9725
A136: D1 | B136: =RAND() -> 0.6807824305 | C136: =1/M136 ->  | D136: =MATCH(1,Calculations!$E$30:$H$30,0) ->  | F136: =CONCATENATE(ADDRESS(30,5+'MC3'!D136,1,TRUE,"calculations"),":h30") ->  | G136: =D136+MATCH(1,INDIRECT(F136),0) ->  | H136: =IF(M136>1,IF(G136=2,2,IF(G136=3,1,0)),0) -> 0 | I136: =CONCATENATE(ADDRESS(30,5+'MC3'!G136,1,TRUE,"calculations"),":h30") ->  | J136: =G136+MATCH(1,INDIRECT(I136),0) ->  | K136: =IF(J136=3,1,IF(J136=4,0,IF(J136=5,-1,-2))) ->  | L136: =IF(M136>1,IF(M136=2,IF(B136<C136,E136*N136,H136*N136),IF(B136<C136,E136*N136,IF(B136<2*C136,H136*N136,K136*N136))),O136) -> 0 | M136: =SUM(Calculations!$E$30:$H$30) -> 0 | N136: 1 | O136: =Calculations!$D$30 -> 0
A137: D2 | B137: 0.6 | C137: =1/M137 ->  | D137: =MATCH(1,Calculations!$E$31:$H$31,0) ->  | F137: =CONCATENATE(ADDRESS(31,5+'MC3'!D137,1,TRUE,"calculations"),":h31") ->  | G137: =D137+MATCH(1,INDIRECT(F137),0) ->  | H137: 0 | I137: =CONCATENATE(ADDRESS(31,5+'MC3'!G137,1,TRUE,"calculations"),":h31") ->  | J137: =G137+MATCH(1,INDIRECT(I137),0) ->  | K137: =IF(J137=3,1,IF(J137=4,0,IF(J137=5,-1,-2))) ->  | L137: 0 | M137: =SUM(Calculations!$E$31:$H$31) -> 0 | N137: 1 | O137: =Calculations!$D$31 -> 0
A138: D3 | B138: =RAND() -> 0.09792128295 | C138: =1/M138 ->  | D138: =MATCH(1,Calculations!$E$32:$H$32,0) ->  | F138: =CONCATENATE(ADDRESS(32,5+'MC3'!D138,1,TRUE,"calculations"),":h32") ->  | G138: =D138+MATCH(1,INDIRECT(F138),0) ->  | H138: 0 | I138: =CONCATENATE(ADDRESS(32,5+'MC3'!G138,1,TRUE,"calculations"),":h32") ->  | J138: =G138+MATCH(1,INDIRECT(I138),0) ->  | K138: =IF(J138=3,1,IF(J138=4,0,IF(J138=5,-1,-2))) ->  | L138: 0 | M138: =SUM(Calculations!$E$32:$H$32) -> 0 | N138: 1 | O138: =Calculations!$D$32 -> 0
A139: D4 | B139: =RAND() -> 0.8145310509 | C139: =1/M139 ->  | D139: =MATCH(1,Calculations!$E$33:$H$33,0) ->  | F139: =CONCATENATE(ADDRESS(33,5+'MC3'!D139,1,TRUE,"calculations"),":h33") ->  | G139: =D139+MATCH(1,INDIRECT(F139),0) ->  | H139: 0 | I139: =CONCATENATE(ADDRESS(33,5+'MC3'!G139,1,TRUE,"calculations"),":h33") ->  | J139: =G139+MATCH(1,INDIRECT(I139),0) ->  | K139: =IF(J139=3,1,IF(J139=4,0,IF(J139=5,-1,-2))) ->  | L139: 0 | M139: =SUM(Calculations!$E$33:$H$33) -> 0 | N139: 1 | O139: =Calculations!$D$33 -> 0
L140: =SUM(L136:L139) -> 0 | N140: D Subscore: | O140: =Calculations!$D$34 -> 0
M142: Monte carlo
L143: Index for Factors B-C: | M143: =IF(Calculations!$K$47=FALSE,"IE",IF(L135>Calculations!$G$42,"EV",IF(L135>Calculations!$G$43,"HV",IF(L135>Calculations!$G$44,"MV","LV")))) -> MV
L144: Index for Factor D: | M144: =IF(Calculations!$H$39<1,"IE",IF(L140>=Calculations!$H$42,"EV",IF(L140>=Calculations!$H$43,"HV",IF(L140>=Calculations!$H$44,"MV","LV")))) -> IE | N144: =IF(Calculations!$F$54=TRUE,1,IF(M144="EV",1,IF(M144="HV",2,IF(M144="MV",3,IF(M144="LV",4,5))))) -> 5
L145: Combined Index: | M145: =HLOOKUP(M143,Calculations!$N$22:$R$27,N144+1,FALSE) -> MV
A147: Factor | B147: Rnd | C147: cut-off | D147: 1st checked box | E147: Score 1st chk box | F147: 2nd range to check for checked box | G147: 2nd chk box | H147: score 2nd chk box | I147: 3rd range to check for checked box | J147: 3rd chk box | K147: Score 3rd chk box | L147: Monte Carlo Score | M147: # Boxes checked | N147: Exposure | O147: Averaged Score
A148: B1 | B148: =RAND() -> 0.619139901 | C148: =1/M148 -> 1 | D148: =MATCH(1,Calculations!$E$6:$H$6,0) -> 4 | E148: =IF(D148=1,3,IF(D148=2,2,IF(D148=3,1,0))) -> 0 | F148: =CONCATENATE(ADDRESS(6,5+'MC3'!D148,1,TRUE,"calculations"),":h6") -> calculations!$I$6:h6 | G148: =D148+MATCH(1,INDIRECT(F148),0) -> 5 | H148: =IF(M148>1,IF(G148=2,2,IF(G148=3,1,0)),0) -> 0 | I148: =CONCATENATE(ADDRESS(6,5+'MC3'!G148,1,TRUE,"calculations"),":h6") -> calculations!$J$6:h6 | J148: =G148+MATCH(1,INDIRECT(I148),0) -> 6 | K148: =IF(M148=3,IF(J148=3,1,0),0) -> 0 | L148: =IF(M148>1,IF(M148=2,IF(B148<C148,E148*N148,H148*N148),IF(B148<C148,E148*N148,IF(B148<2*C148,H148*N148,K148*N148))),O148) -> 0 | M148: =SUM(Calculations!$E$6:$H$6) -> 1 | N148: 1 | O148: =Calculations!$D$6 -> 0
A149: B2a | B149: 0.924979053 | C149: 1 | D149: =MATCH(1,Calculations!$E$7:$H$7,0) -> 4 | E149: =IF(D149=1,3,IF(D149=2,2,IF(D149=3,1,0))) -> 0 | F149: =CONCATENATE(ADDRESS(7,5+'MC3'!D149,1,TRUE,"calculations"),":h7") -> calculations!$I$7:h7 | G149: 5 | H149: =IF(M149>1,IF(G149=2,2,IF(G149=3,1,0)),0) -> 0 | I149: =CONCATENATE(ADDRESS(7,5+'MC3'!G149,1,TRUE,"calculations"),":h7") -> calculations!$J$7:h7 | J149: 6 | K149: =IF(M149=3,IF(J149=3,1,0),0) -> 0 | L149: =IF(M149>1,IF(M149=2,IF(B149<C149,E149*N149,H149*N149),IF(B149<C149,E149*N149,IF(B149<2*C149,H149*N149,K149*N149))),O149) -> 0 | M149: =SUM(Calculations!$E$7:$H$7) -> 1 | N149: =Calculations!$L$13 -> 1.135 | O149: =Calculations!$D$7 -> 0
A150: B2b | B150: 0.9072860687 | C150: 1 | D150: =MATCH(1,Calculations!$E$8:$H$8,0) -> 4 | E150: 0 | F150: =CONCATENATE(ADDRESS(8,5+'MC3'!D150,1,TRUE,"calculations"),":h8") -> calculations!$I$8:h8 | G150: 5 | H150: 0 | I150: =CONCATENATE(ADDRESS(8,5+'MC3'!G150,1,TRUE,"calculations"),":h8") -> calculations!$J$8:h8 | J150: 6 | K150: 0 | L150: 0 | M150: =SUM(Calculations!$E$8:$H$8) -> 1 | N150: =Calculations!$L$13 -> 1.135 | O150: =Calculations!$D$8 -> 0
A151: B3 | B151: 0.1579507835 | C151: =1/M151 -> 1 | D151: =MATCH(1,Calculations!$E$9:$H$9,0) -> 4 | E151: 0 | F151: =CONCATENATE(ADDRESS(9,5+'MC3'!D151,1,TRUE,"calculations"),":h9") -> calculations!$I$9:h9 | G151: =D151+MATCH(1,INDIRECT(F151),0) -> 5 | H151: 0 | I151: =CONCATENATE(ADDRESS(9,5+'MC3'!G151,1,TRUE,"calculations"),":h9") -> calculations!$J$9:h9 | J151: =G151+MATCH(1,INDIRECT(I151),0) -> 6 | K151: 0 | L151: 0 | M151: =SUM(Calculations!$E$9:$H$9) -> 1 | N151: =Calculations!$L$13 -> 1.135 | O151: =Calculations!$D$9 -> 0
A152: C1 | B152: 0.05393972888 | C152: =1/M152 -> 1 | D152: =MATCH(1,Calculations!$E$10:$H$10,0) -> 4 | E152: 0 | F152: =CONCATENATE(ADDRESS(10,5+'MC3'!D152,1,TRUE,"calculations"),":h10") -> calculations!$I$10:h10 | G152: =D152+MATCH(1,INDIRECT(F152),0) -> 5 | H152: 0 | I152: =CONCATENATE(ADDRESS(10,5+'MC3'!G152,1,TRUE,"calculations"),":h10") -> calculations!$J$10:h10 | J152: =G152+MATCH(1,INDIRECT(I152),0) -> 6 | K152: 0 | L152: 0 | M152: =SUM(Calculations!$E$10:$H$10) -> 1 | N152: =Calculations!$L$13 -> 1.135 | O152: =Calculations!$D$10 -> 0
A153: C2ai | B153: 0.4150955351 | C153: 1 | D153: =MATCH(1,Calculations!$E$11:$H$11,0) -> 3 | E153: 1 | F153: =CONCATENATE(ADDRESS(11,5+'MC3'!D153,1,TRUE,"calculations"),":h11") -> calculations!$H$11:h11 | H153: 0 | I153: =CONCATENATE(ADDRESS(11,5+'MC3'!G153,1,TRUE,"calculations"),":h11") ->  | K153: 0 | L153: 1.6 | M153: =SUM(Calculations!$E$11:$H$11) -> 1 | N153: =Calculations!$L$9 -> 1.6 | O153: =Calculations!$D$11 -> 1.6
A154: C2aii | B154: 0.5435498447 | C154: 1 | D154: =MATCH(1,Calculations!$E$12:$H$12,0) -> 4 | E154: 0 | F154: =CONCATENATE(ADDRESS(12,5+'MC3'!D154,1,TRUE,"calculations"),":h12") -> calculations!$I$12:h12 | G154: 5 | H154: 0 | I154: =CONCATENATE(ADDRESS(12,5+'MC3'!G154,1,TRUE,"calculations"),":h12") -> calculations!$J$12:h12 | J154: 6 | K154: 0 | L154: 0 | M154: =SUM(Calculations!$E$12:$H$12) -> 1 | N154: =Calculations!$L$9 -> 1.6 | O154: =Calculations!$D$12 -> 0
A155: C2bi | B155: 0.9582586576 | C155: 1 | D155: =MATCH(1,Calculations!$E$13:$H$13,0) -> 4 | E155: 0 | F155: =CONCATENATE(ADDRESS(13,5+'MC3'!D155,1,TRUE,"calculations"),":h13") -> calculations!$I$13:h13 | G155: 5 | H155: 0 | I155: =CONCATENATE(ADDRESS(13,5+'MC3'!G155,1,TRUE,"calculations"),":h13") -> calculations!$J$13:h13 | J155: 6 | K155: 0 | L155: 0 | M155: =SUM(Calculations!$E$13:$H$13) -> 1 | N155: =Calculations!$L$11 -> 0.67 | O155: =Calculations!$D$13 -> 0
A156: C2bii | B156: 0.2848747214 | C156: 1 | D156: =MATCH(1,Calculations!$E$14:$H$14,0) -> 3 | E156: 1 | F156: =CONCATENATE(ADDRESS(14,5+'MC3'!D156,1,TRUE,"calculations"),":h14") -> calculations!$H$14:h14 | H156: 0 | I156: =CONCATENATE(ADDRESS(14,5+'MC3'!G156,1,TRUE,"calculations"),":h14") ->  | K156: 0 | L156: 0.67 | M156: =SUM(Calculations!$E$14:$H$14) -> 1 | N156: =Calculations!$L$11 -> 0.67 | O156: =Calculations!$D$14 -> 0.67
A157: C2c | B157: 0.6860266736 | C157: 1 | D157: =MATCH(1,Calculations!$E$15:$H$15,0) -> 4 | E157: 0 | F157: =CONCATENATE(ADDRESS(15,5+'MC3'!D157,1,TRUE,"calculations"),":h15") -> calculations!$I$15:h15 | G157: 5 | H157: 0 | I157: =CONCATENATE(ADDRESS(15,5+'MC3'!G157,1,TRUE,"calculations"),":h15") -> calculations!$J$15:h15 | J157: 6 | K157: 0 | L157: 0 | M157: =SUM(Calculations!$E$15:$H$15) -> 1 | N157: =Calculations!$L$13 -> 1.135 | O157: =Calculations!$D$15 -> 0
A158: C2d | B158: 0.961884498 | C158: 1 | D158: =MATCH(1,Calculations!$E$16:$H$16,0) -> 4 | E158: 0 | F158: =CONCATENATE(ADDRESS(16,5+'MC3'!D158,1,TRUE,"calculations"),":h16") -> calculations!$I$16:h16 | G158: 5 | H158: 0 | I158: =CONCATENATE(ADDRESS(16,5+'MC3'!G158,1,TRUE,"calculations"),":h16") -> calculations!$J$16:h16 | J158: 6 | K158: 0 | L158: 0 | M158: =SUM(Calculations!$E$16:$H$16) -> 1 | N158: =Calculations!$L$13 -> 1.135 | O158: =Calculations!$D$16 -> 0
A159: C3 | B159: 0.4547712634 | C159: 1 | D159: =MATCH(1,Calculations!$E$17:$H$17,0) -> 4 | E159: 0 | F159: =CONCATENATE(ADDRESS(17,5+'MC3'!D159,1,TRUE,"calculations"),":h17") -> calculations!$I$17:h17 | G159: 5 | H159: 0 | I159: =CONCATENATE(ADDRESS(17,5+'MC3'!G159,1,TRUE,"calculations"),":h17") -> calculations!$J$17:h17 | J159: 6 | K159: 0 | L159: 0 | M159: =SUM(Calculations!$E$17:$H$17) -> 1 | N159: =Calculations!$L$13 -> 1.135 | O159: =Calculations!$D$17 -> 0
A160: C4a | B160: 0.9837194073 | C160: 0.5 | D160: =MATCH(1,Calculations!$E$18:$H$18,0) -> 3 | E160: 1 | F160: =CONCATENATE(ADDRESS(18,5+'MC3'!D160,1,TRUE,"calculations"),":h18") -> calculations!$H$18:h18 | G160: 4 | H160: 0 | I160: =CONCATENATE(ADDRESS(18,5+'MC3'!G160,1,TRUE,"calculations"),":h18") -> calculations!$I$18:h18 | J160: 5 | K160: 0 | L160: 0 | M160: =SUM(Calculations!$E$18:$H$18) -> 2 | N160: =Calculations!$L$13 -> 1.135 | O160: =Calculations!$D$18 -> 0.5675
A161: C4b | B161: 0.6255490375 | C161: 1 | D161: =MATCH(1,Calculations!$E$19:$H$19,0) -> 4 | E161: 0 | F161: =CONCATENATE(ADDRESS(19,5+'MC3'!D161,1,TRUE,"calculations"),":h19") -> calculations!$I$19:h19 | G161: =D161+MATCH(1,INDIRECT(F161),0) -> 5 | H161: 0 | I161: =CONCATENATE(ADDRESS(19,5+'MC3'!G161,1,TRUE,"calculations"),":h19") -> calculations!$J$19:h19 | J161: 6 | K161: 0 | L161: =IF(PlantAnimal="A",IF(M161>1,IF(M161=2,IF(B161<C161,E161*N161,H161*N161),IF(B161<C161,E161*N161,IF(B161<2*C161,H161*N161,K161*N161))),O161),0) -> 0 | M161: =SUM(Calculations!$E$19:$H$19) -> 1 | N161: =Calculations!$L$13 -> 1.135 | O161: =Calculations!$D$19 -> 0
A162: C4c | B162: 0.7287792679 | D162: =MATCH(1,Calculations!$E$20:$H$20,0) ->  | F162: =CONCATENATE(ADDRESS(20,5+'MC3'!D162,1,TRUE,"calculations"),":h20") ->  | G162: =D162+MATCH(1,INDIRECT(F162),0) ->  | H162: 0 | I162: =CONCATENATE(ADDRESS(20,5+'MC3'!G162,1,TRUE,"calculations"),":h20") ->  | K162: 0 | L162: =IF(PlantAnimal="P",IF(M162>1,IF(M162=2,IF(B162<C162,E162*N162,H162*N162),IF(B162<C162,E162*N162,IF(B162<2*C162,H162*N162,K162*N162))),O162),0) -> 0 | M162: =SUM(Calculations!$E$20:$H$20) -> 0 | N162: =Calculations!$L$13 -> 1.135 | O162: =Calculations!$D$20 -> 0
A163: C4d | B163: 0.5374347913 | C163: 1 | D163: =MATCH(1,Calculations!$E$21:$H$21,0) -> 4 | E163: 0 | F163: =CONCATENATE(ADDRESS(21,5+'MC3'!D163,1,TRUE,"calculations"),":h21") -> calculations!$I$21:h21 | G163: 5 | H163: 0 | I163: =CONCATENATE(ADDRESS(21,5+'MC3'!G163,1,TRUE,"calculations"),":h21") -> calculations!$J$21:h21 | J163: 6 | K163: 0 | L163: =IF(M163>1,IF(M163=2,IF(B163<C163,E163*N163,H163*N163),IF(B163<C163,E163*N163,IF(B163<2*C163,H163*N163,K163*N163))),O163) -> 0 | M163: =SUM(Calculations!$E$21:$H$21) -> 1 | N163: =Calculations!$L$13 -> 1.135 | O163: =Calculations!$D$21 -> 0
A164: C4e | B164: 0.6305558337 | C164: 1 | D164: =MATCH(1,Calculations!$E$22:$H$22,0) -> 3 | E164: 1 | F164: =CONCATENATE(ADDRESS(22,5+'MC3'!D164,1,TRUE,"calculations"),":h22") -> calculations!$H$22:h22 | H164: 0 | I164: =CONCATENATE(ADDRESS(22,5+'MC3'!G164,1,TRUE,"calculations"),":h22") ->  | K164: 0 | L164: 1.135 | M164: =SUM(Calculations!$E$22:$H$22) -> 1 | N164: =Calculations!$L$13 -> 1.135 | O164: =Calculations!$D$22 -> 1.135
A165: C4f | B165: 0.6909546335 | C165: 1 | D165: =MATCH(1,Calculations!$E$23:$H$23,0) -> 4 | E165: 0 | F165: =CONCATENATE(ADDRESS(23,5+'MC3'!D165,1,TRUE,"calculations"),":h23") -> calculations!$I$23:h23 | G165: 5 | H165: 0 | I165: =CONCATENATE(ADDRESS(23,5+'MC3'!G165,1,TRUE,"calculations"),":h23") -> calculations!$J$23:h23 | J165: 6 | K165: 0 | L165: 0 | M165: =SUM(Calculations!$E$23:$H$23) -> 1 | N165: =Calculations!$L$13 -> 1.135 | O165: =Calculations!$D$23 -> 0
A166: C4g | B166: 0.03510473639 | C166: 1 | D166: =MATCH(1,Calculations!$E$24:$H$24,0) -> 4 | E166: 0 | F166: =CONCATENATE(ADDRESS(24,5+'MC3'!D166,1,TRUE,"calculations"),":h24") -> calculations!$I$24:h24 | G166: 5 | H166: 0 | I166: =CONCATENATE(ADDRESS(24,5+'MC3'!G166,1,TRUE,"calculations"),":h24") -> calculations!$J$24:h24 | J166: 6 | K166: 0 | L166: 0 | M166: =SUM(Calculations!$E$24:$H$24) -> 1 | N166: =Calculations!$L$13 -> 1.135 | O166: =Calculations!$D$24 -> 0
A167: C5a | B167: 0.2470920819 | D167: =MATCH(1,Calculations!$E$25:$H$25,0) ->  | F167: =CONCATENATE(ADDRESS(25,5+'MC3'!D167,1,TRUE,"calculations"),":h25") ->  | H167: 0 | I167: =CONCATENATE(ADDRESS(25,5+'MC3'!G167,1,TRUE,"calculations"),":h25") ->  | K167: 0 | L167: 0 | M167: =SUM(Calculations!$E$25:$H$25) -> 0 | N167: =Calculations!$L$13 -> 1.135 | O167: =Calculations!$D$25 -> 0
A168: C5b | B168: 0.4146636346 | C168: 1 | D168: =MATCH(1,Calculations!$E$26:$H$26,0) -> 4 | E168: 0 | F168: =CONCATENATE(ADDRESS(26,5+'MC3'!D168,1,TRUE,"calculations"),":h26") -> calculations!$I$26:h26 | G168: 5 | H168: 0 | I168: =CONCATENATE(ADDRESS(26,5+'MC3'!G168,1,TRUE,"calculations"),":h26") -> calculations!$J$26:h26 | J168: 6 | K168: 0 | L168: =IF(M167=0,IF(M168>1,IF(M168=2,IF(B168<C168,E168*N168,H168*N168),IF(B168<C168,E168*N168,IF(B168<2*C168,H168*N168,K168*N168))),O168),0) -> 0 | M168: =SUM(Calculations!$E$26:$H$26) -> 1 | N168: =Calculations!$L$13 -> 1.135 | O168: =Calculations!$D$26 -> 0
A169: C5c | B169: 0.9651985089 | D169: =MATCH(1,Calculations!$E$27:$H$27,0) ->  | F169: =CONCATENATE(ADDRESS(27,5+'MC3'!D169,1,TRUE,"calculations"),":h27") ->  | H169: 0 | I169: =CONCATENATE(ADDRESS(27,5+'MC3'!G169,1,TRUE,"calculations"),":h27") ->  | K169: 0 | L169: =IF(PlantAnimal="P",IF(M167=0,IF(M168=0,IF(M169>1,IF(M169=2,IF(B169<C169,E169*N169,H169*N169),IF(B169<C169,E169*N169,IF(B169<2*C169,H169*N169,K169*N169))),O169),0),0),0) -> 0 | M169: =SUM(Calculations!$E$27:$H$27) -> 0 | N169: =Calculations!$L$13 -> 1.135 | O169: =Calculations!$D$27 -> 0
A170: C6 | B170: 0.7134348583 | C170: 1 | D170: =MATCH(1,Calculations!$E$28:$H$28,0) -> 4 | E170: 0 | F170: =CONCATENATE(ADDRESS(28,5+'MC3'!D170,1,TRUE,"calculations"),":h28") -> calculations!$I$28:h28 | G170: 5 | H170: 0 | I170: =CONCATENATE(ADDRESS(28,5+'MC3'!G170,1,TRUE,"calculations"),":h28") -> calculations!$J$28:h28 | J170: 6 | K170: 0 | L170: =IF(M170>1,IF(M170=2,IF(B170<C170,E170*N170,H170*N170),IF(B170<C170,E170*N170,IF(B170<2*C170,H170*N170,K170*N170))),O170) -> 0 | M170: =SUM(Calculations!$E$28:$H$28) -> 1 | N170: =Calculations!$L$13 -> 1.135 | O170: =Calculations!$D$28 -> 0
L171: =SUM(L148:L170) -> 3.405 | N171: B-C Subscore: | O171: =Calculations!$D$29 -> 3.9725
A172: D1 | B172: =RAND() -> 0.4639403742 | C172: =1/M172 ->  | D172: =MATCH(1,Calculations!$E$30:$H$30,0) ->  | F172: =CONCATENATE(ADDRESS(30,5+'MC3'!D172,1,TRUE,"calculations"),":h30") ->  | G172: =D172+MATCH(1,INDIRECT(F172),0) ->  | H172: =IF(M172>1,IF(G172=2,2,IF(G172=3,1,0)),0) -> 0 | I172: =CONCATENATE(ADDRESS(30,5+'MC3'!G172,1,TRUE,"calculations"),":h30") ->  | J172: =G172+MATCH(1,INDIRECT(I172),0) ->  | K172: =IF(J172=3,1,IF(J172=4,0,IF(J172=5,-1,-2))) ->  | L172: =IF(M172>1,IF(M172=2,IF(B172<C172,E172*N172,H172*N172),IF(B172<C172,E172*N172,IF(B172<2*C172,H172*N172,K172*N172))),O172) -> 0 | M172: =SUM(Calculations!$E$30:$H$30) -> 0 | N172: 1 | O172: =Calculations!$D$30 -> 0
A173: D2 | B173: 0.6 | C173: =1/M173 ->  | D173: =MATCH(1,Calculations!$E$31:$H$31,0) ->  | F173: =CONCATENATE(ADDRESS(31,5+'MC3'!D173,1,TRUE,"calculations"),":h31") ->  | G173: =D173+MATCH(1,INDIRECT(F173),0) ->  | H173: 0 | I173: =CONCATENATE(ADDRESS(31,5+'MC3'!G173,1,TRUE,"calculations"),":h31") ->  | J173: =G173+MATCH(1,INDIRECT(I173),0) ->  | K173: =IF(J173=3,1,IF(J173=4,0,IF(J173=5,-1,-2))) ->  | L173: 0 | M173: =SUM(Calculations!$E$31:$H$31) -> 0 | N173: 1 | O173: =Calculations!$D$31 -> 0
A174: D3 | B174: =RAND() -> 0.3773800944 | C174: =1/M174 ->  | D174: =MATCH(1,Calculations!$E$32:$H$32,0) ->  | F174: =CONCATENATE(ADDRESS(32,5+'MC3'!D174,1,TRUE,"calculations"),":h32") ->  | G174: =D174+MATCH(1,INDIRECT(F174),0) ->  | H174: 0 | I174: =CONCATENATE(ADDRESS(32,5+'MC3'!G174,1,TRUE,"calculations"),":h32") ->  | J174: =G174+MATCH(1,INDIRECT(I174),0) ->  | K174: =IF(J174=3,1,IF(J174=4,0,IF(J174=5,-1,-2))) ->  | L174: 0 | M174: =SUM(Calculations!$E$32:$H$32) -> 0 | N174: 1 | O174: =Calculations!$D$32 -> 0
A175: D4 | B175: =RAND() -> 0.0715280209 | C175: =1/M175 ->  | D175: =MATCH(1,Calculations!$E$33:$H$33,0) ->  | F175: =CONCATENATE(ADDRESS(33,5+'MC3'!D175,1,TRUE,"calculations"),":h33") ->  | G175: =D175+MATCH(1,INDIRECT(F175),0) ->  | H175: 0 | I175: =CONCATENATE(ADDRESS(33,5+'MC3'!G175,1,TRUE,"calculations"),":h33") ->  | J175: =G175+MATCH(1,INDIRECT(I175),0) ->  | K175: =IF(J175=3,1,IF(J175=4,0,IF(J175=5,-1,-2))) ->  | L175: 0 | M175: =SUM(Calculations!$E$33:$H$33) -> 0 | N175: 1 | O175: =Calculations!$D$33 -> 0
L176: =SUM(L172:L175) -> 0 | N176: D Subscore: | O176: =Calculations!$D$34 -> 0
M178: Monte carlo
L179: Index for Factors B-C: | M179: =IF(Calculations!$K$47=FALSE,"IE",IF(L171>Calculations!$G$42,"EV",IF(L171>Calculations!$G$43,"HV",IF(L171>Calculations!$G$44,"MV","LV")))) -> LV
L180: Index for Factor D: | M180: =IF(Calculations!$H$39<1,"IE",IF(L176>=Calculations!$H$42,"EV",IF(L176>=Calculations!$H$43,"HV",IF(L176>=Calculations!$H$44,"MV","LV")))) -> IE | N180: =IF(Calculations!$F$54=TRUE,1,IF(M180="EV",1,IF(M180="HV",2,IF(M180="MV",3,IF(M180="LV",4,5))))) -> 5
L181: Combined Index: | M181: =HLOOKUP(M179,Calculations!$N$22:$R$27,N180+1,FALSE) -> LV
A183: Factor | B183: Rnd | C183: cut-off | D183: 1st checked box | E183: Score 1st chk box | F183: 2nd range to check for checked box | G183: 2nd chk box | H183: score 2nd chk box | I183: 3rd range to check for checked box | J183: 3rd chk box | K183: Score 3rd chk box | L183: Monte Carlo Score | M183: # Boxes checked | N183: Exposure | O183: Averaged Score
A184: B1 | B184: =RAND() -> 0.4455073891 | C184: =1/M184 -> 1 | D184: =MATCH(1,Calculations!$E$6:$H$6,0) -> 4 | E184: =IF(D184=1,3,IF(D184=2,2,IF(D184=3,1,0))) -> 0 | F184: =CONCATENATE(ADDRESS(6,5+'MC3'!D184,1,TRUE,"calculations"),":h6") -> calculations!$I$6:h6 | G184: =D184+MATCH(1,INDIRECT(F184),0) -> 5 | H184: =IF(M184>1,IF(G184=2,2,IF(G184=3,1,0)),0) -> 0 | I184: =CONCATENATE(ADDRESS(6,5+'MC3'!G184,1,TRUE,"calculations"),":h6") -> calculations!$J$6:h6 | J184: =G184+MATCH(1,INDIRECT(I184),0) -> 6 | K184: =IF(M184=3,IF(J184=3,1,0),0) -> 0 | L184: =IF(M184>1,IF(M184=2,IF(B184<C184,E184*N184,H184*N184),IF(B184<C184,E184*N184,IF(B184<2*C184,H184*N184,K184*N184))),O184) -> 0 | M184: =SUM(Calculations!$E$6:$H$6) -> 1 | N184: 1 | O184: =Calculations!$D$6 -> 0
A185: B2a | B185: 0.1379571538 | C185: 1 | D185: =MATCH(1,Calculations!$E$7:$H$7,0) -> 4 | E185: =IF(D185=1,3,IF(D185=2,2,IF(D185=3,1,0))) -> 0 | F185: =CONCATENATE(ADDRESS(7,5+'MC3'!D185,1,TRUE,"calculations"),":h7") -> calculations!$I$7:h7 | G185: 5 | H185: =IF(M185>1,IF(G185=2,2,IF(G185=3,1,0)),0) -> 0 | I185: =CONCATENATE(ADDRESS(7,5+'MC3'!G185,1,TRUE,"calculations"),":h7") -> calculations!$J$7:h7 | J185: 6 | K185: =IF(M185=3,IF(J185=3,1,0),0) -> 0 | L185: =IF(M185>1,IF(M185=2,IF(B185<C185,E185*N185,H185*N185),IF(B185<C185,E185*N185,IF(B185<2*C185,H185*N185,K185*N185))),O185) -> 0 | M185: =SUM(Calculations!$E$7:$H$7) -> 1 | N185: =Calculations!$L$13 -> 1.135 | O185: =Calculations!$D$7 -> 0
A186: B2b | B186: 0.1026994896 | C186: 1 | D186: =MATCH(1,Calculations!$E$8:$H$8,0) -> 4 | E186: 0 | F186: =CONCATENATE(ADDRESS(8,5+'MC3'!D186,1,TRUE,"calculations"),":h8") -> calculations!$I$8:h8 | G186: 5 | H186: 0 | I186: =CONCATENATE(ADDRESS(8,5+'MC3'!G186,1,TRUE,"calculations"),":h8") -> calculations!$J$8:h8 | J186: 6 | K186: 0 | L186: 0 | M186: =SUM(Calculations!$E$8:$H$8) -> 1 | N186: =Calculations!$L$13 -> 1.135 | O186: =Calculations!$D$8 -> 0
A187: B3 | B187: 0.1067656041 | C187: =1/M187 -> 1 | D187: =MATCH(1,Calculations!$E$9:$H$9,0) -> 4 | E187: 0 | F187: =CONCATENATE(ADDRESS(9,5+'MC3'!D187,1,TRUE,"calculations"),":h9") -> calculations!$I$9:h9 | G187: =D187+MATCH(1,INDIRECT(F187),0) -> 5 | H187: 0 | I187: =CONCATENATE(ADDRESS(9,5+'MC3'!G187,1,TRUE,"calculations"),":h9") -> calculations!$J$9:h9 | J187: =G187+MATCH(1,INDIRECT(I187),0) -> 6 | K187: 0 | L187: 0 | M187: =SUM(Calculations!$E$9:$H$9) -> 1 | N187: =Calculations!$L$13 -> 1.135 | O187: =Calculations!$D$9 -> 0
A188: C1 | B188: 0.9506076959 | C188: =1/M188 -> 1 | D188: =MATCH(1,Calculations!$E$10:$H$10,0) -> 4 | E188: 0 | F188: =CONCATENATE(ADDRESS(10,5+'MC3'!D188,1,TRUE,"calculations"),":h10") -> calculations!$I$10:h10 | G188: =D188+MATCH(1,INDIRECT(F188),0) -> 5 | H188: 0 | I188: =CONCATENATE(ADDRESS(10,5+'MC3'!G188,1,TRUE,"calculations"),":h10") -> calculations!$J$10:h10 | J188: =G188+MATCH(1,INDIRECT(I188),0) -> 6 | K188: 0 | L188: 0 | M188: =SUM(Calculations!$E$10:$H$10) -> 1 | N188: =Calculations!$L$13 -> 1.135 | O188: =Calculations!$D$10 -> 0
A189: C2ai | B189: 0.378871564 | C189: 1 | D189: =MATCH(1,Calculations!$E$11:$H$11,0) -> 3 | E189: 1 | F189: =CONCATENATE(ADDRESS(11,5+'MC3'!D189,1,TRUE,"calculations"),":h11") -> calculations!$H$11:h11 | H189: 0 | I189: =CONCATENATE(ADDRESS(11,5+'MC3'!G189,1,TRUE,"calculations"),":h11") ->  | K189: 0 | L189: 1.6 | M189: =SUM(Calculations!$E$11:$H$11) -> 1 | N189: =Calculations!$L$9 -> 1.6 | O189: =Calculations!$D$11 -> 1.6
A190: C2aii | B190: 0.1557002067 | C190: 1 | D190: =MATCH(1,Calculations!$E$12:$H$12,0) -> 4 | E190: 0 | F190: =CONCATENATE(ADDRESS(12,5+'MC3'!D190,1,TRUE,"calculations"),":h12") -> calculations!$I$12:h12 | G190: 5 | H190: 0 | I190: =CONCATENATE(ADDRESS(12,5+'MC3'!G190,1,TRUE,"calculations"),":h12") -> calculations!$J$12:h12 | J190: 6 | K190: 0 | L190: 0 | M190: =SUM(Calculations!$E$12:$H$12) -> 1 | N190: =Calculations!$L$9 -> 1.6 | O190: =Calculations!$D$12 -> 0
A191: C2bi | B191: 0.7011622063 | C191: 1 | D191: =MATCH(1,Calculations!$E$13:$H$13,0) -> 4 | E191: 0 | F191: =CONCATENATE(ADDRESS(13,5+'MC3'!D191,1,TRUE,"calculations"),":h13") -> calculations!$I$13:h13 | G191: 5 | H191: 0 | I191: =CONCATENATE(ADDRESS(13,5+'MC3'!G191,1,TRUE,"calculations"),":h13") -> calculations!$J$13:h13 | J191: 6 | K191: 0 | L191: 0 | M191: =SUM(Calculations!$E$13:$H$13) -> 1 | N191: =Calculations!$L$11 -> 0.67 | O191: =Calculations!$D$13 -> 0
A192: C2bii | B192: 0.7699658619 | C192: 1 | D192: =MATCH(1,Calculations!$E$14:$H$14,0) -> 3 | E192: 1 | F192: =CONCATENATE(ADDRESS(14,5+'MC3'!D192,1,TRUE,"calculations"),":h14") -> calculations!$H$14:h14 | H192: 0 | I192: =CONCATENATE(ADDRESS(14,5+'MC3'!G192,1,TRUE,"calculations"),":h14") ->  | K192: 0 | L192: 0.67 | M192: =SUM(Calculations!$E$14:$H$14) -> 1 | N192: =Calculations!$L$11 -> 0.67 | O192: =Calculations!$D$14 -> 0.67
A193: C2c | B193: 0.5971742935 | C193: 1 | D193: =MATCH(1,Calculations!$E$15:$H$15,0) -> 4 | E193: 0 | F193: =CONCATENATE(ADDRESS(15,5+'MC3'!D193,1,TRUE,"calculations"),":h15") -> calculations!$I$15:h15 | G193: 5 | H193: 0 | I193: =CONCATENATE(ADDRESS(15,5+'MC3'!G193,1,TRUE,"calculations"),":h15") -> calculations!$J$15:h15 | J193: 6 | K193: 0 | L193: 0 | M193: =SUM(Calculations!$E$15:$H$15) -> 1 | N193: =Calculations!$L$13 -> 1.135 | O193: =Calculations!$D$15 -> 0
A194: C2d | B194: 0.5848510592 | C194: 1 | D194: =MATCH(1,Calculations!$E$16:$H$16,0) -> 4 | E194: 0 | F194: =CONCATENATE(ADDRESS(16,5+'MC3'!D194,1,TRUE,"calculations"),":h16") -> calculations!$I$16:h16 | G194: 5 | H194: 0 | I194: =CONCATENATE(ADDRESS(16,5+'MC3'!G194,1,TRUE,"calculations"),":h16") -> calculations!$J$16:h16 | J194: 6 | K194: 0 | L194: 0 | M194: =SUM(Calculations!$E$16:$H$16) -> 1 | N194: =Calculations!$L$13 -> 1.135 | O194: =Calculations!$D$16 -> 0
A195: C3 | B195: 0.5761688146 | C195: 1 | D195: =MATCH(1,Calculations!$E$17:$H$17,0) -> 4 | E195: 0 | F195: =CONCATENATE(ADDRESS(17,5+'MC3'!D195,1,TRUE,"calculations"),":h17") -> calculations!$I$17:h17 | G195: 5 | H195: 0 | I195: =CONCATENATE(ADDRESS(17,5+'MC3'!G195,1,TRUE,"calculations"),":h17") -> calculations!$J$17:h17 | J195: 6 | K195: 0 | L195: 0 | M195: =SUM(Calculations!$E$17:$H$17) -> 1 | N195: =Calculations!$L$13 -> 1.135 | O195: =Calculations!$D$17 -> 0
A196: C4a | B196: 0.9799311299 | C196: 0.5 | D196: =MATCH(1,Calculations!$E$18:$H$18,0) -> 3 | E196: 1 | F196: =CONCATENATE(ADDRESS(18,5+'MC3'!D196,1,TRUE,"calculations"),":h18") -> calculations!$H$18:h18 | G196: 4 | H196: 0 | I196: =CONCATENATE(ADDRESS(18,5+'MC3'!G196,1,TRUE,"calculations"),":h18") -> calculations!$I$18:h18 | J196: 5 | K196: 0 | L196: 0 | M196: =SUM(Calculations!$E$18:$H$18) -> 2 | N196: =Calculations!$L$13 -> 1.135 | O196: =Calculations!$D$18 -> 0.5675
A197: C4b | B197: 0.1067702728 | C197: 1 | D197: =MATCH(1,Calculations!$E$19:$H$19,0) -> 4 | E197: 0 | F197: =CONCATENATE(ADDRESS(19,5+'MC3'!D197,1,TRUE,"calculations"),":h19") -> calculations!$I$19:h19 | G197: =D197+MATCH(1,INDIRECT(F197),0) -> 5 | H197: 0 | I197: =CONCATENATE(ADDRESS(19,5+'MC3'!G197,1,TRUE,"calculations"),":h19") -> calculations!$J$19:h19 | J197: 6 | K197: 0 | L197: =IF(PlantAnimal="A",IF(M197>1,IF(M197=2,IF(B197<C197,E197*N197,H197*N197),IF(B197<C197,E197*N197,IF(B197<2*C197,H197*N197,K197*N197))),O197),0) -> 0 | M197: =SUM(Calculations!$E$19:$H$19) -> 1 | N197: =Calculations!$L$13 -> 1.135 | O197: =Calculations!$D$19 -> 0
A198: C4c | B198: 0.7525299596 | D198: =MATCH(1,Calculations!$E$20:$H$20,0) ->  | F198: =CONCATENATE(ADDRESS(20,5+'MC3'!D198,1,TRUE,"calculations"),":h20") ->  | G198: =D198+MATCH(1,INDIRECT(F198),0) ->  | H198: 0 | I198: =CONCATENATE(ADDRESS(20,5+'MC3'!G198,1,TRUE,"calculations"),":h20") ->  | K198: 0 | L198: =IF(PlantAnimal="P",IF(M198>1,IF(M198=2,IF(B198<C198,E198*N198,H198*N198),IF(B198<C198,E198*N198,IF(B198<2*C198,H198*N198,K198*N198))),O198),0) -> 0 | M198: =SUM(Calculations!$E$20:$H$20) -> 0 | N198: =Calculations!$L$13 -> 1.135 | O198: =Calculations!$D$20 -> 0
A199: C4d | B199: 0.07709627647 | C199: 1 | D199: =MATCH(1,Calculations!$E$21:$H$21,0) -> 4 | E199: 0 | F199: =CONCATENATE(ADDRESS(21,5+'MC3'!D199,1,TRUE,"calculations"),":h21") -> calculations!$I$21:h21 | G199: 5 | H199: 0 | I199: =CONCATENATE(ADDRESS(21,5+'MC3'!G199,1,TRUE,"calculations"),":h21") -> calculations!$J$21:h21 | J199: 6 | K199: 0 | L199: =IF(M199>1,IF(M199=2,IF(B199<C199,E199*N199,H199*N199),IF(B199<C199,E199*N199,IF(B199<2*C199,H199*N199,K199*N199))),O199) -> 0 | M199: =SUM(Calculations!$E$21:$H$21) -> 1 | N199: =Calculations!$L$13 -> 1.135 | O199: =Calculations!$D$21 -> 0
A200: C4e | B200: 0.04010132888 | C200: 1 | D200: =MATCH(1,Calculations!$E$22:$H$22,0) -> 3 | E200: 1 | F200: =CONCATENATE(ADDRESS(22,5+'MC3'!D200,1,TRUE,"calculations"),":h22") -> calculations!$H$22:h22 | H200: 0 | I200: =CONCATENATE(ADDRESS(22,5+'MC3'!G200,1,TRUE,"calculations"),":h22") ->  | K200: 0 | L200: 1.135 | M200: =SUM(Calculations!$E$22:$H$22) -> 1 | N200: =Calculations!$L$13 -> 1.135 | O200: =Calculations!$D$22 -> 1.135
A201: C4f | B201: 0.06241636461 | C201: 1 | D201: =MATCH(1,Calculations!$E$23:$H$23,0) -> 4 | E201: 0 | F201: =CONCATENATE(ADDRESS(23,5+'MC3'!D201,1,TRUE,"calculations"),":h23") -> calculations!$I$23:h23 | G201: 5 | H201: 0 | I201: =CONCATENATE(ADDRESS(23,5+'MC3'!G201,1,TRUE,"calculations"),":h23") -> calculations!$J$23:h23 | J201: 6 | K201: 0 | L201: 0 | M201: =SUM(Calculations!$E$23:$H$23) -> 1 | N201: =Calculations!$L$13 -> 1.135 | O201: =Calculations!$D$23 -> 0
A202: C4g | B202: 0.4814752061 | C202: 1 | D202: =MATCH(1,Calculations!$E$24:$H$24,0) -> 4 | E202: 0 | F202: =CONCATENATE(ADDRESS(24,5+'MC3'!D202,1,TRUE,"calculations"),":h24") -> calculations!$I$24:h24 | G202: 5 | H202: 0 | I202: =CONCATENATE(ADDRESS(24,5+'MC3'!G202,1,TRUE,"calculations"),":h24") -> calculations!$J$24:h24 | J202: 6 | K202: 0 | L202: 0 | M202: =SUM(Calculations!$E$24:$H$24) -> 1 | N202: =Calculations!$L$13 -> 1.135 | O202: =Calculations!$D$24 -> 0
A203: C5a | B203: 0.6871520919 | D203: =MATCH(1,Calculations!$E$25:$H$25,0) ->  | F203: =CONCATENATE(ADDRESS(25,5+'MC3'!D203,1,TRUE,"calculations"),":h25") ->  | H203: 0 | I203: =CONCATENATE(ADDRESS(25,5+'MC3'!G203,1,TRUE,"calculations"),":h25") ->  | K203: 0 | L203: 0 | M203: =SUM(Calculations!$E$25:$H$25) -> 0 | N203: =Calculations!$L$13 -> 1.135 | O203: =Calculations!$D$25 -> 0
A204: C5b | B204: 0.3628040359 | C204: 1 | D204: =MATCH(1,Calculations!$E$26:$H$26,0) -> 4 | E204: 0 | F204: =CONCATENATE(ADDRESS(26,5+'MC3'!D204,1,TRUE,"calculations"),":h26") -> calculations!$I$26:h26 | G204: 5 | H204: 0 | I204: =CONCATENATE(ADDRESS(26,5+'MC3'!G204,1,TRUE,"calculations"),":h26") -> calculations!$J$26:h26 | J204: 6 | K204: 0 | L204: =IF(M203=0,IF(M204>1,IF(M204=2,IF(B204<C204,E204*N204,H204*N204),IF(B204<C204,E204*N204,IF(B204<2*C204,H204*N204,K204*N204))),O204),0) -> 0 | M204: =SUM(Calculations!$E$26:$H$26) -> 1 | N204: =Calculations!$L$13 -> 1.135 | O204: =Calculations!$D$26 -> 0
A205: C5c | B205: 0.5695011907 | D205: =MATCH(1,Calculations!$E$27:$H$27,0) ->  | F205: =CONCATENATE(ADDRESS(27,5+'MC3'!D205,1,TRUE,"calculations"),":h27") ->  | H205: 0 | I205: =CONCATENATE(ADDRESS(27,5+'MC3'!G205,1,TRUE,"calculations"),":h27") ->  | K205: 0 | L205: =IF(PlantAnimal="P",IF(M203=0,IF(M204=0,IF(M205>1,IF(M205=2,IF(B205<C205,E205*N205,H205*N205),IF(B205<C205,E205*N205,IF(B205<2*C205,H205*N205,K205*N205))),O205),0),0),0) -> 0 | M205: =SUM(Calculations!$E$27:$H$27) -> 0 | N205: =Calculations!$L$13 -> 1.135 | O205: =Calculations!$D$27 -> 0
A206: C6 | B206: 0.5628360066 | C206: 1 | D206: =MATCH(1,Calculations!$E$28:$H$28,0) -> 4 | E206: 0 | F206: =CONCATENATE(ADDRESS(28,5+'MC3'!D206,1,TRUE,"calculations"),":h28") -> calculations!$I$28:h28 | G206: 5 | H206: 0 | I206: =CONCATENATE(ADDRESS(28,5+'MC3'!G206,1,TRUE,"calculations"),":h28") -> calculations!$J$28:h28 | J206: 6 | K206: 0 | L206: =IF(M206>1,IF(M206=2,IF(B206<C206,E206*N206,H206*N206),IF(B206<C206,E206*N206,IF(B206<2*C206,H206*N206,K206*N206))),O206) -> 0 | M206: =SUM(Calculations!$E$28:$H$28) -> 1 | N206: =Calculations!$L$13 -> 1.135 | O206: =Calculations!$D$28 -> 0
L207: =SUM(L184:L206) -> 3.405 | N207: B-C Subscore: | O207: =Calculations!$D$29 -> 3.9725
A208: D1 | B208: =RAND() -> 0.2231977127 | C208: =1/M208 ->  | D208: =MATCH(1,Calculations!$E$30:$H$30,0) ->  | F208: =CONCATENATE(ADDRESS(30,5+'MC3'!D208,1,TRUE,"calculations"),":h30") ->  | G208: =D208+MATCH(1,INDIRECT(F208),0) ->  | H208: =IF(M208>1,IF(G208=2,2,IF(G208=3,1,0)),0) -> 0 | I208: =CONCATENATE(ADDRESS(30,5+'MC3'!G208,1,TRUE,"calculations"),":h30") ->  | J208: =G208+MATCH(1,INDIRECT(I208),0) ->  | K208: =IF(J208=3,1,IF(J208=4,0,IF(J208=5,-1,-2))) ->  | L208: =IF(M208>1,IF(M208=2,IF(B208<C208,E208*N208,H208*N208),IF(B208<C208,E208*N208,IF(B208<2*C208,H208*N208,K208*N208))),O208) -> 0 | M208: =SUM(Calculations!$E$30:$H$30) -> 0 | N208: 1 | O208: =Calculations!$D$30 -> 0
A209: D2 | B209: 0.6 | C209: =1/M209 ->  | D209: =MATCH(1,Calculations!$E$31:$H$31,0) ->  | F209: =CONCATENATE(ADDRESS(31,5+'MC3'!D209,1,TRUE,"calculations"),":h31") ->  | G209: =D209+MATCH(1,INDIRECT(F209),0) ->  | H209: 0 | I209: =CONCATENATE(ADDRESS(31,5+'MC3'!G209,1,TRUE,"calculations"),":h31") ->  | J209: =G209+MATCH(1,INDIRECT(I209),0) ->  | K209: =IF(J209=3,1,IF(J209=4,0,IF(J209=5,-1,-2))) ->  | L209: 0 | M209: =SUM(Calculations!$E$31:$H$31) -> 0 | N209: 1 | O209: =Calculations!$D$31 -> 0
A210: D3 | B210: =RAND() -> 0.2322637415 | C210: =1/M210 ->  | D210: =MATCH(1,Calculations!$E$32:$H$32,0) ->  | F210: =CONCATENATE(ADDRESS(32,5+'MC3'!D210,1,TRUE,"calculations"),":h32") ->  | G210: =D210+MATCH(1,INDIRECT(F210),0) ->  | H210: 0 | I210: =CONCATENATE(ADDRESS(32,5+'MC3'!G210,1,TRUE,"calculations"),":h32") ->  | J210: =G210+MATCH(1,INDIRECT(I210),0) ->  | K210: =IF(J210=3,1,IF(J210=4,0,IF(J210=5,-1,-2))) ->  | L210: 0 | M210: =SUM(Calculations!$E$32:$H$32) -> 0 | N210: 1 | O210: =Calculations!$D$32 -> 0
A211: D4 | B211: =RAND() -> 0.2031431436 | C211: =1/M211 ->  | D211: =MATCH(1,Calculations!$E$33:$H$33,0) ->  | F211: =CONCATENATE(ADDRESS(33,5+'MC3'!D211,1,TRUE,"calculations"),":h33") ->  | G211: =D211+MATCH(1,INDIRECT(F211),0) ->  | H211: 0 | I211: =CONCATENATE(ADDRESS(33,5+'MC3'!G211,1,TRUE,"calculations"),":h33") ->  | J211: =G211+MATCH(1,INDIRECT(I211),0) ->  | K211: =IF(J211=3,1,IF(J211=4,0,IF(J211=5,-1,-2))) ->  | L211: 0 | M211: =SUM(Calculations!$E$33:$H$33) -> 0 | N211: 1 | O211: =Calculations!$D$33 -> 0
... 4055 more rows

Sheet Monte carlo1
A1: Monte Carlo Simulation of Vulnerability Score
A3: Monte Carlo repetitions on MC3 worksheet
A5: Repetition | B5: Ref Row | C5: Score | E5: Summary | F5: #
A6: 1 | B6: 0 | C6: =OFFSET('MC3'!M37,B6,0) -> LV | E6: EV | F6: =IF(Calculations!K47=TRUE,COUNTIF(C$6:C$1005,"ev")/10,0) -> 0
A7: 2 | B7: 36 | C7: =OFFSET('MC3'!$M$37,B7,0) -> MV | E7: HV | F7: =IF(Calculations!K47=TRUE,COUNTIF(C$6:C$1005,"hv")/10,0) -> 0
A8: 3 | B8: 72 | C8: =OFFSET('MC3'!$M$37,B8,0) -> LV | E8: MV | F8: =IF(Calculations!K47=TRUE,COUNTIF(C$6:C$1005,"mv")/10,0) -> 49.7
A9: 4 | B9: 108 | C9: =OFFSET('MC3'!$M$37,B9,0) -> MV | E9: LV | F9: =IF(Calculations!K47=TRUE,COUNTIF(C$6:C$1005,"lv")/10,0) -> 50.3
A10: 5 | B10: 144 | C10: =OFFSET('MC3'!$M$37,B10,0) -> LV
A11: 6 | B11: 180 | C11: =OFFSET('MC3'!$M$37,B11,0) -> LV
A12: 7 | B12: 216 | C12: =OFFSET('MC3'!$M$37,B12,0) -> MV | E12: Confidence Score
A13: 8 | B13: 252 | C13: =OFFSET('MC3'!$M$37,B13,0) -> LV | E13: =IF(Calculations!L38="ie","—-",IF(Calculations!L38="ev",'Monte carlo1'!F6,IF(Calculations!L38="hv",'Monte carlo1'!F7,IF(Calculations!L38="mv",'Monte carlo1'!F8,'Monte carlo1'!F9)))) -> 50.3
A14: 9 | B14: 288 | C14: =OFFSET('MC3'!$M$37,B14,0) -> MV
A15: 10 | B15: 324 | C15: =OFFSET('MC3'!$M$37,B15,0) -> LV
A16: 11 | B16: 360 | C16: =OFFSET('MC3'!$M$37,B16,0) -> LV
A17: 12 | B17: 396 | C17: =OFFSET('MC3'!$M$37,B17,0) -> LV
A18: 13 | B18: 432 | C18: =OFFSET('MC3'!$M$37,B18,0) -> LV
A19: 14 | B19: 468 | C19: =OFFSET('MC3'!$M$37,B19,0) -> MV
A20: 15 | B20: 504 | C20: =OFFSET('MC3'!$M$37,B20,0) -> LV
A21: 16 | B21: 540 | C21: =OFFSET('MC3'!$M$37,B21,0) -> MV
A22: 17 | B22: 576 | C22: =OFFSET('MC3'!$M$37,B22,0) -> LV
A23: 18 | B23: 612 | C23: =OFFSET('MC3'!$M$37,B23,0) -> LV
A24: 19 | B24: 648 | C24: =OFFSET('MC3'!$M$37,B24,0) -> MV
A25: 20 | B25: 684 | C25: =OFFSET('MC3'!$M$37,B25,0) -> MV
A26: 21 | B26: 720 | C26: =OFFSET('MC3'!$M$37,B26,0) -> LV
A27: 22 | B27: 756 | C27: =OFFSET('MC3'!$M$37,B27,0) -> MV
A28: 23 | B28: 792 | C28: =OFFSET('MC3'!$M$37,B28,0) -> MV
A29: 24 | B29: 828 | C29: =OFFSET('MC3'!$M$37,B29,0) -> MV
A30: 25 | B30: 864 | C30: =OFFSET('MC3'!$M$37,B30,0) -> LV
A31: 26 | B31: 900 | C31: =OFFSET('MC3'!$M$37,B31,0) -> MV
A32: 27 | B32: 936 | C32: =OFFSET('MC3'!$M$37,B32,0) -> MV
A33: 28 | B33: 972 | C33: =OFFSET('MC3'!$M$37,B33,0) -> MV
A34: 29 | B34: 1008 | C34: =OFFSET('MC3'!$M$37,B34,0) -> MV
A35: 30 | B35: 1044 | C35: =OFFSET('MC3'!$M$37,B35,0) -> MV
A36: 31 | B36: 1080 | C36: =OFFSET('MC3'!$M$37,B36,0) -> MV
A37: 32 | B37: 1116 | C37: =OFFSET('MC3'!$M$37,B37,0) -> LV
A38: 33 | B38: 1152 | C38: =OFFSET('MC3'!$M$37,B38,0) -> LV
A39: 34 | B39: 1188 | C39: =OFFSET('MC3'!$M$37,B39,0) -> LV
A40: 35 | B40: 1224 | C40: =OFFSET('MC3'!$M$37,B40,0) -> LV
A41: 36 | B41: 1260 | C41: =OFFSET('MC3'!$M$37,B41,0) -> LV
A42: 37 | B42: 1296 | C42: =OFFSET('MC3'!$M$37,B42,0) -> MV
A43: 38 | B43: 1332 | C43: =OFFSET('MC3'!$M$37,B43,0) -> LV
A44: 39 | B44: 1368 | C44: =OFFSET('MC3'!$M$37,B44,0) -> MV
A45: 40 | B45: 1404 | C45: =OFFSET('MC3'!$M$37,B45,0) -> LV
A46: 41 | B46: 1440 | C46: =OFFSET('MC3'!$M$37,B46,0) -> LV
A47: 42 | B47: 1476 | C47: =OFFSET('MC3'!$M$37,B47,0) -> LV
A48: 43 | B48: 1512 | C48: =OFFSET('MC3'!$M$37,B48,0) -> LV
A49: 44 | B49: 1548 | C49: =OFFSET('MC3'!$M$37,B49,0) -> MV
A50: 45 | B50: 1584 | C50: =OFFSET('MC3'!$M$37,B50,0) -> MV
A51: 46 | B51: 1620 | C51: =OFFSET('MC3'!$M$37,B51,0) -> LV
A52: 47 | B52: 1656 | C52: =OFFSET('MC3'!$M$37,B52,0) -> MV
A53: 48 | B53: 1692 | C53: =OFFSET('MC3'!$M$37,B53,0) -> LV
A54: 49 | B54: 1728 | C54: =OFFSET('MC3'!$M$37,B54,0) -> MV
A55: 50 | B55: 1764 | C55: =OFFSET('MC3'!$M$37,B55,0) -> LV
A56: 51 | B56: 1800 | C56: =OFFSET('MC3'!$M$37,B56,0) -> LV
A57: 52 | B57: 1836 | C57: =OFFSET('MC3'!$M$37,B57,0) -> MV
A58: 53 | B58: 1872 | C58: =OFFSET('MC3'!$M$37,B58,0) -> MV
A59: 54 | B59: 1908 | C59: =OFFSET('MC3'!$M$37,B59,0) -> MV
A60: 55 | B60: 1944 | C60: =OFFSET('MC3'!$M$37,B60,0) -> LV
A61: 56 | B61: 1980 | C61: =OFFSET('MC3'!$M$37,B61,0) -> LV
A62: 57 | B62: 2016 | C62: =OFFSET('MC3'!$M$37,B62,0) -> LV
A63: 58 | B63: 2052 | C63: =OFFSET('MC3'!$M$37,B63,0) -> LV
A64: 59 | B64: 2088 | C64: =OFFSET('MC3'!$M$37,B64,0) -> MV
A65: 60 | B65: 2124 | C65: =OFFSET('MC3'!$M$37,B65,0) -> MV
A66: 61 | B66: 2160 | C66: =OFFSET('MC3'!$M$37,B66,0) -> LV
A67: 62 | B67: 2196 | C67: =OFFSET('MC3'!$M$37,B67,0) -> MV
A68: 63 | B68: 2232 | C68: =OFFSET('MC3'!$M$37,B68,0) -> LV
A69: 64 | B69: 2268 | C69: =OFFSET('MC3'!$M$37,B69,0) -> MV
A70: 65 | B70: 2304 | C70: =OFFSET('MC3'!$M$37,B70,0) -> LV
A71: 66 | B71: 2340 | C71: =OFFSET('MC3'!$M$37,B71,0) -> MV
A72: 67 | B72: 2376 | C72: =OFFSET('MC3'!$M$37,B72,0) -> MV
A73: 68 | B73: 2412 | C73: =OFFSET('MC3'!$M$37,B73,0) -> LV
A74: 69 | B74: 2448 | C74: =OFFSET('MC3'!$M$37,B74,0) -> MV
A75: 70 | B75: 2484 | C75: =OFFSET('MC3'!$M$37,B75,0) -> LV
A76: 71 | B76: 2520 | C76: =OFFSET('MC3'!$M$37,B76,0) -> MV
A77: 72 | B77: 2556 | C77: =OFFSET('MC3'!$M$37,B77,0) -> LV
A78: 73 | B78: 2592 | C78: =OFFSET('MC3'!$M$37,B78,0) -> LV
A79: 74 | B79: 2628 | C79: =OFFSET('MC3'!$M$37,B79,0) -> LV
A80: 75 | B80: 2664 | C80: =OFFSET('MC3'!$M$37,B80,0) -> LV
A81: 76 | B81: 2700 | C81: =OFFSET('MC3'!$M$37,B81,0) -> MV
A82: 77 | B82: 2736 | C82: =OFFSET('MC3'!$M$37,B82,0) -> LV
A83: 78 | B83: 2772 | C83: =OFFSET('MC3'!$M$37,B83,0) -> MV
A84: 79 | B84: 2808 | C84: =OFFSET('MC3'!$M$37,B84,0) -> MV
A85: 80 | B85: 2844 | C85: =OFFSET('MC3'!$M$37,B85,0) -> MV
A86: 81 | B86: 2880 | C86: =OFFSET('MC3'!$M$37,B86,0) -> MV
A87: 82 | B87: 2916 | C87: =OFFSET('MC3'!$M$37,B87,0) -> MV
A88: 83 | B88: 2952 | C88: =OFFSET('MC3'!$M$37,B88,0) -> MV
A89: 84 | B89: 2988 | C89: =OFFSET('MC3'!$M$37,B89,0) -> MV
A90: 85 | B90: 3024 | C90: =OFFSET('MC3'!$M$37,B90,0) -> MV
A91: 86 | B91: 3060 | C91: =OFFSET('MC3'!$M$37,B91,0) -> MV
A92: 87 | B92: 3096 | C92: =OFFSET('MC3'!$M$37,B92,0) -> LV
A93: 88 | B93: 3132 | C93: =OFFSET('MC3'!$M$37,B93,0) -> LV
A94: 89 | B94: 3168 | C94: =OFFSET('MC3'!$M$37,B94,0) -> MV
A95: 90 | B95: 3204 | C95: =OFFSET('MC3'!$M$37,B95,0) -> MV
A96: 91 | B96: 3240 | C96: =OFFSET('MC3'!$M$37,B96,0) -> LV
A97: 92 | B97: 3276 | C97: =OFFSET('MC3'!$M$37,B97,0) -> MV
A98: 93 | B98: 3312 | C98: =OFFSET('MC3'!$M$37,B98,0) -> LV
A99: 94 | B99: 3348 | C99: =OFFSET('MC3'!$M$37,B99,0) -> MV
A100: 95 | B100: 3384 | C100: =OFFSET('MC3'!$M$37,B100,0) -> MV
A101: 96 | B101: 3420 | C101: =OFFSET('MC3'!$M$37,B101,0) -> MV
A102: 97 | B102: 3456 | C102: =OFFSET('MC3'!$M$37,B102,0) -> MV
A103: 98 | B103: 3492 | C103: =OFFSET('MC3'!$M$37,B103,0) -> MV
A104: 99 | B104: 3528 | C104: =OFFSET('MC3'!$M$37,B104,0) -> MV
A105: 100 | B105: 3564 | C105: =OFFSET('MC3'!$M$37,B105,0) -> LV
A106: 101 | B106: 3600 | C106: =OFFSET('MC3'!$M$37,B106,0) -> MV
A107: 102 | B107: 3636 | C107: =OFFSET('MC3'!$M$37,B107,0) -> MV
A108: 103 | B108: 3672 | C108: =OFFSET('MC3'!$M$37,B108,0) -> MV
A109: 104 | B109: 3708 | C109: =OFFSET('MC3'!$M$37,B109,0) -> MV
A110: 105 | B110: 3744 | C110: =OFFSET('MC3'!$M$37,B110,0) -> MV
A111: 106 | B111: 3780 | C111: =OFFSET('MC3'!$M$37,B111,0) -> MV
A112: 107 | B112: 3816 | C112: =OFFSET('MC3'!$M$37,B112,0) -> MV
A113: 108 | B113: 3852 | C113: =OFFSET('MC3'!$M$37,B113,0) -> LV
A114: 109 | B114: 3888 | C114: =OFFSET('MC3'!$M$37,B114,0) -> LV
A115: 110 | B115: 3924 | C115: =OFFSET('MC3'!$M$37,B115,0) -> MV
A116: 111 | B116: 3960 | C116: =OFFSET('MC3'!$M$37,B116,0) -> LV
A117: 112 | B117: 3996 | C117: =OFFSET('MC3'!$M$37,B117,0) -> MV
A118: 113 | B118: 4032 | C118: =OFFSET('MC3'!$M$37,B118,0) -> MV
A119: 114 | B119: 4068 | C119: =OFFSET('MC3'!$M$37,B119,0) -> LV
A120: 115 | B120: 4104 | C120: =OFFSET('MC3'!$M$37,B120,0) -> LV
A121: 116 | B121: 4140 | C121: =OFFSET('MC3'!$M$37,B121,0) -> LV
A122: 117 | B122: 4176 | C122: =OFFSET('MC3'!$M$37,B122,0) -> MV
A123: 118 | B123: 4212 | C123: =OFFSET('MC3'!$M$37,B123,0) -> LV
A124: 119 | B124: 4248 | C124: =OFFSET('MC3'!$M$37,B124,0) -> LV
A125: 120 | B125: 4284 | C125: =OFFSET('MC3'!$M$37,B125,0) -> MV
A126: 121 | B126: 4320 | C126: =OFFSET('MC3'!$M$37,B126,0) -> LV
A127: 122 | B127: 4356 | C127: =OFFSET('MC3'!$M$37,B127,0) -> LV
A128: 123 | B128: 4392 | C128: =OFFSET('MC3'!$M$37,B128,0) -> MV
A129: 124 | B129: 4428 | C129: =OFFSET('MC3'!$M$37,B129,0) -> LV
A130: 125 | B130: 4464 | C130: =OFFSET('MC3'!$M$37,B130,0) -> MV
A131: 126 | B131: 4500 | C131: =OFFSET('MC3'!$M$37,B131,0) -> MV
A132: 127 | B132: 4536 | C132: =OFFSET('MC3'!$M$37,B132,0) -> MV
A133: 128 | B133: 4572 | C133: =OFFSET('MC3'!$M$37,B133,0) -> LV
A134: 129 | B134: 4608 | C134: =OFFSET('MC3'!$M$37,B134,0) -> MV
A135: 130 | B135: 4644 | C135: =OFFSET('MC3'!$M$37,B135,0) -> LV
A136: 131 | B136: 4680 | C136: =OFFSET('MC3'!$M$37,B136,0) -> MV
A137: 132 | B137: 4716 | C137: =OFFSET('MC3'!$M$37,B137,0) -> MV
A138: 133 | B138: 4752 | C138: =OFFSET('MC3'!$M$37,B138,0) -> MV
A139: 134 | B139: 4788 | C139: =OFFSET('MC3'!$M$37,B139,0) -> MV
A140: 135 | B140: 4824 | C140: =OFFSET('MC3'!$M$37,B140,0) -> MV
A141: 136 | B141: 4860 | C141: =OFFSET('MC3'!$M$37,B141,0) -> LV
A142: 137 | B142: 4896 | C142: =OFFSET('MC3'!$M$37,B142,0) -> MV
A143: 138 | B143: 4932 | C143: =OFFSET('MC3'!$M$37,B143,0) -> LV
A144: 139 | B144: 4968 | C144: =OFFSET('MC3'!$M$37,B144,0) -> LV
A145: 140 | B145: 5004 | C145: =OFFSET('MC3'!$M$37,B145,0) -> LV
A146: 141 | B146: 5040 | C146: =OFFSET('MC3'!$M$37,B146,0) -> MV
A147: 142 | B147: 5076 | C147: =OFFSET('MC3'!$M$37,B147,0) -> LV
A148: 143 | B148: 5112 | C148: =OFFSET('MC3'!$M$37,B148,0) -> MV
A149: 144 | B149: 5148 | C149: =OFFSET('MC3'!$M$37,B149,0) -> LV
A150: 145 | B150: 5184 | C150: =OFFSET('MC3'!$M$37,B150,0) -> MV
A151: 146 | B151: 5220 | C151: =OFFSET('MC3'!$M$37,B151,0) -> MV
A152: 147 | B152: 5256 | C152: =OFFSET('MC3'!$M$37,B152,0) -> MV
A153: 148 | B153: 5292 | C153: =OFFSET('MC3'!$M$37,B153,0) -> MV
A154: 149 | B154: 5328 | C154: =OFFSET('MC3'!$M$37,B154,0) -> LV
A155: 150 | B155: 5364 | C155: =OFFSET('MC3'!$M$37,B155,0) -> MV
A156: 151 | B156: 5400 | C156: =OFFSET('MC3'!$M$37,B156,0) -> LV
A157: 152 | B157: 5436 | C157: =OFFSET('MC3'!$M$37,B157,0) -> LV
A158: 153 | B158: 5472 | C158: =OFFSET('MC3'!$M$37,B158,0) -> MV
A159: 154 | B159: 5508 | C159: =OFFSET('MC3'!$M$37,B159,0) -> MV
A160: 155 | B160: 5544 | C160: =OFFSET('MC3'!$M$37,B160,0) -> MV
A161: 156 | B161: 5580 | C161: =OFFSET('MC3'!$M$37,B161,0) -> MV
A162: 157 | B162: 5616 | C162: =OFFSET('MC3'!$M$37,B162,0) -> LV
A163: 158 | B163: 5652 | C163: =OFFSET('MC3'!$M$37,B163,0) -> LV
A164: 159 | B164: 5688 | C164: =OFFSET('MC3'!$M$37,B164,0) -> LV
A165: 160 | B165: 5724 | C165: =OFFSET('MC3'!$M$37,B165,0) -> LV
A166: 161 | B166: 5760 | C166: =OFFSET('MC3'!$M$37,B166,0) -> MV
A167: 162 | B167: 5796 | C167: =OFFSET('MC3'!$M$37,B167,0) -> MV
A168: 163 | B168: 5832 | C168: =OFFSET('MC3'!$M$37,B168,0) -> MV
A169: 164 | B169: 5868 | C169: =OFFSET('MC3'!$M$37,B169,0) -> LV
A170: 165 | B170: 5904 | C170: =OFFSET('MC3'!$M$37,B170,0) -> LV
A171: 166 | B171: 5940 | C171: =OFFSET('MC3'!$M$37,B171,0) -> LV
A172: 167 | B172: 5976 | C172: =OFFSET('MC3'!$M$37,B172,0) -> MV
A173: 168 | B173: 6012 | C173: =OFFSET('MC3'!$M$37,B173,0) -> LV
A174: 169 | B174: 6048 | C174: =OFFSET('MC3'!$M$37,B174,0) -> MV
A175: 170 | B175: 6084 | C175: =OFFSET('MC3'!$M$37,B175,0) -> LV
A176: 171 | B176: 6120 | C176: =OFFSET('MC3'!$M$37,B176,0) -> MV
A177: 172 | B177: 6156 | C177: =OFFSET('MC3'!$M$37,B177,0) -> MV
A178: 173 | B178: 6192 | C178: =OFFSET('MC3'!$M$37,B178,0) -> LV
A179: 174 | B179: 6228 | C179: =OFFSET('MC3'!$M$37,B179,0) -> MV
A180: 175 | B180: 6264 | C180: =OFFSET('MC3'!$M$37,B180,0) -> LV
A181: 176 | B181: 6300 | C181: =OFFSET('MC3'!$M$37,B181,0) -> MV
A182: 177 | B182: 6336 | C182: =OFFSET('MC3'!$M$37,B182,0) -> LV
A183: 178 | B183: 6372 | C183: =OFFSET('MC3'!$M$37,B183,0) -> LV
A184: 179 | B184: 6408 | C184: =OFFSET('MC3'!$M$37,B184,0) -> LV
A185: 180 | B185: 6444 | C185: =OFFSET('MC3'!$M$37,B185,0) -> MV
A186: 181 | B186: 6480 | C186: =OFFSET('MC3'!$M$37,B186,0) -> LV
A187: 182 | B187: 6516 | C187: =OFFSET('MC3'!$M$37,B187,0) -> MV
A188: 183 | B188: 6552 | C188: =OFFSET('MC3'!$M$37,B188,0) -> MV
A189: 184 | B189: 6588 | C189: =OFFSET('MC3'!$M$37,B189,0) -> LV
A190: 185 | B190: 6624 | C190: =OFFSET('MC3'!$M$37,B190,0) -> MV
A191: 186 | B191: 6660 | C191: =OFFSET('MC3'!$M$37,B191,0) -> LV
A192: 187 | B192: 6696 | C192: =OFFSET('MC3'!$M$37,B192,0) -> LV
A193: 188 | B193: 6732 | C193: =OFFSET('MC3'!$M$37,B193,0) -> MV
A194: 189 | B194: 6768 | C194: =OFFSET('MC3'!$M$37,B194,0) -> LV
A195: 190 | B195: 6804 | C195: =OFFSET('MC3'!$M$37,B195,0) -> MV
A196: 191 | B196: 6840 | C196: =OFFSET('MC3'!$M$37,B196,0) -> MV
A197: 192 | B197: 6876 | C197: =OFFSET('MC3'!$M$37,B197,0) -> LV
A198: 193 | B198: 6912 | C198: =OFFSET('MC3'!$M$37,B198,0) -> MV
A199: 194 | B199: 6948 | C199: =OFFSET('MC3'!$M$37,B199,0) -> LV
A200: 195 | B200: 6984 | C200: =OFFSET('MC3'!$M$37,B200,0) -> MV
A201: 196 | B201: 7020 | C201: =OFFSET('MC3'!$M$37,B201,0) -> MV
A202: 197 | B202: 7056 | C202: =OFFSET('MC3'!$M$37,B202,0) -> LV
... 803 more rows

Sheet Results Table
A1: =CONCATENATE("The NatureServe Climate Change Vulnerability Index release ",Calculator!C2) -> The NatureServe Climate Change Vulnerability Index release 3.0 | Y1: GI = Greatly Increase | AI1: N = Neutral
Y2: Inc = Increase | AI2: SD = Somewhat Decrease
Y3: SI = Somewhat Increase | AI3: Dec = Decrease
A4: Warning: Do not edit data on this tab. Instead: 1. Put your cursor in the row you want to edit. 2. Click the button above. 3. Edit your data on the Calculator tab. 4. Use button to Copy Data to Results. It will paste as a new row in the Results Table. 5. Delete the row of old data. | I4: Temperature Scope | O4: Hamon AET:PET Moisture Metric Scope | U4: Migratory Exposure | Y4: Sea level | Z4: Comments | AA4: Natl barriers | AB4: Comments | AC4: Anth barriers | AD4: Comments | AE4: CC mitigation | AF4: Comments | AG4: Dispersal/Movement | AH4: Comments | AI4: Hist. thermal niche | AJ4: Comments | AK4: Physiol. thermal niche | AL4: Comments | AM4: Hist. hydrol. niche | AN4: Comments | AO4: Physiol. hydrol. niche | AP4: Comments | AQ4: Disturbance | AR4: Comments | AS4: Ice/snow | AT4: Comments | AU4: Phys habitat | AV4: Comments | AW4: Other spp for hab | AX4: Comments | AY4: Diet | AZ4: Comments | BA4: Pollinators | BB4: Comments | BC4: Other spp disp | BD4: Comments | BE4: Pathogens/enemies | BF4: Comments | BG4: Competition | BH4: Comments | BI4: Other spp interaction | BJ4: Comments | BK4: Genetic var | BL4: Comments | BM4: Gen bottleneck | BN4: Comments | BO4: Reproductive system | BP4: Comments | BQ4: Phenol response | BR4: Comments | BS4: Doc response | BT4: Comments | BU4: Modeled change | BV4: Comments | BW4: Modeled overlap | BX4: Comments | BY4: Protected Areas | BZ4: Comments | CD4: Data Completeness
A5: Taxonomic Group | B5: Species | C5: English Name | D5: Geographic Area | E5: Cave/GW | F5: Migratory | G5: GRank | H5: SRank | I5: A >6.0F | J5: A 5.5F | K5: A 5.1F | L5: A 4.5F | M5: A 3.9F | N5: A <3.9F | O5: < -0.119 | P5: -0.119 | Q5: -0.096 | R5: -0.073 | S5: -0.05 | T5: >-0.028 | U5: >7 | V5: 6-7 | W5: 4-5 | X5: 2-3 | Y5: B1 | Z5: B1 | AA5: B2a | AB5: B2a | AC5: B2b | AD5: B2b | AE5: B3 | AF5: B3 | AG5: C1 | AH5: C1 | AI5: C2ai | AJ5: C2ai | AK5: C2aii | AL5: C2aii | AM5: C2bi | AN5: C2bi | AO5: C2bii | AP5: C2bii | AQ5: C2c | AR5: C2c | AS5: C2d | AT5: C2d | AU5: C3 | AV5: C3 | AW5: C4a | AX5: C4a | AY5: C4b | AZ5: C4b | BA5: C4c | BB5: C4c | BC5: C4d | BD5: C4d | BE5: C4e | BF5: C4e | BG5: C4f | BH5: C4f | BI5: C4g | BJ5: C4g | BK5: C5a | BL5: C5a | BM5: C5b | BN5: C5b | BO5: C5c | BP5: C5c | BQ5: C6 | BR5: C6 | BS5: D1 | BT5: D1 | BU5: D2 | BV5: D2 | BW5: D3 | BX5: D3 | BY5: D4 | BZ5: D4 | CA5: Index | CB5: Migr Exp | CC5: Confidence | CD5: B | CE5: C | CF5: D | CG5: Assessment Notes | CH5: Assessor | CI5: Date Pasted
A6: =IF(ISBLANK(Group),"",Group) -> Amphibian | B6: =IF(ISBLANK(Species),"",Species) -> Lithobates catesbeianus | C6: =IF(ISBLANK(EnglishName),"",EnglishName) -> American Bullfrog | D6: =IF(ISBLANK(Calculator!E7),"",Calculator!E7) -> US | E6: =IF(ISBLANK(Calculator!H15),"",Calculator!H15) ->  | F6: =IF(ISBLANK(Calculator!H17),"",Calculator!H17) ->  | G6: =IF(ISBLANK(Calculator!L14),"",Calculator!L14) ->  | H6: =IF(ISBLANK(Calculator!L15),"",Calculator!L15) ->  | I6: =IF(ISBLANK(Calculator!E30),0,Calculator!E30) -> 44.08452624 | J6: =IF(ISBLANK(Calculator!E31),0,Calculator!E31) -> 29.31152011 | K6: =IF(ISBLANK(Calculator!E32),0,Calculator!E32) -> 19.5064758 | L6: =IF(ISBLANK(Calculator!E33),0,Calculator!E33) -> 5.837764145 | M6: =IF(ISBLANK(Calculator!E34),0,Calculator!E34) -> 1.180640763 | N6: =IF(ISBLANK(Calculator!E35),0,Calculator!E35) -> 0.07907293797 | O6: =IF(ISBLANK(Calculator!K30),0,Calculator!K30) -> 3.229061554 | P6: =IF(ISBLANK(Calculator!K31),0,Calculator!K31) -> 3.130880628 | Q6: =IF(ISBLANK(Calculator!K32),0,Calculator!K32) -> 7.069026645 | R6: =IF(ISBLANK(Calculator!K33),0,Calculator!K33) -> 10.06354488 | S6: =IF(ISBLANK(Calculator!K34),0,Calculator!K34) -> 18.68983009 | T6: =IF(ISBLANK(Calculator!K35),0,Calculator!K35) -> 57.8176562 | U6: =IF(ISBLANK(Calculator!E41),"",Calculator!E41) ->  | V6: =IF(ISBLANK(Calculator!E42),"",Calculator!E42) ->  | W6: =IF(ISBLANK(Calculator!E43),"",Calculator!E43) ->  | X6: =IF(ISBLANK(Calculator!E44),"",Calculator!E44) ->  | Y6: =concatEffect(Calculator!B53:F53) ->  | Z6: =IF(ISBLANK(Calculator!G53),"",Calculator!G53) ->  | AA6: =concatEffect(Calculator!B55:F55) ->  | AB6: =IF(ISBLANK(Calculator!G55),"",Calculator!G55) ->  | AC6: =concatEffect(Calculator!B56:F56) ->  | AD6: =IF(ISBLANK(Calculator!G56),"",Calculator!G56) ->  | AE6: =concatEffect(Calculator!B57:F57) ->  | AF6: =IF(ISBLANK(Calculator!G57),"",Calculator!G57) ->  | AG6: =concatEffect(Calculator!B65:F65) ->  | AH6: =IF(ISBLANK(Calculator!G65),"",Calculator!G65) ->  | AI6: =concatEffect(Calculator!B68:F68) ->  | AJ6: =IF(ISBLANK(Calculator!G68),"",Calculator!G68) ->  | AK6: =concatEffect(Calculator!B69:F69) ->  | AL6: =IF(ISBLANK(Calculator!G69),"",Calculator!G69) ->  | AM6: =concatEffect(Calculator!B71:F71) ->  | AN6: =IF(ISBLANK(Calculator!G71),"",Calculator!G71) ->  | AO6: =concatEffect(Calculator!B72:F72) ->  | AP6: =IF(ISBLANK(Calculator!G72),"",Calculator!G72) ->  | AQ6: =concatEffect(Calculator!B73:F73) ->  | AR6: =IF(ISBLANK(Calculator!G73),"",Calculator!G73) ->  | AS6: =concatEffect(Calculator!B74:F74) ->  | AT6: =IF(ISBLANK(Calculator!G74),"",Calculator!G74) ->  | AU6: =concatEffect(Calculator!B75:F75) ->  | AV6: =IF(ISBLANK(Calculator!G75),"",Calculator!G75) ->  | AW6: =concatEffect(Calculator!B77:F77) ->  | AX6: =IF(ISBLANK(Calculator!G77),"",Calculator!G77) ->  | AY6: =IF(ISNA(VLOOKUP(A6,TaxaLookup,2,FALSE)),concatEffect(Calculator!B78:F78),IF(VLOOKUP(A6,TaxaLookup,2,FALSE)="A",concatEffect(Calculator!B78:F78),"N/A")) ->  | AZ6: =IF(ISBLANK(Calculator!G78),"",Calculator!G78) ->  | BA6: =IF(ISNA(VLOOKUP(A6,TaxaLookup,2,FALSE)),concatEffect(Calculator!B79:F79),IF(VLOOKUP(A6,TaxaLookup,2,FALSE)="P",concatEffect(Calculator!B79:F79),"N/A")) -> N/A | BB6: =IF(ISBLANK(Calculator!G79),"",Calculator!G79) ->  | BC6: =concatEffect(Calculator!B80:F80) ->  | BD6: =IF(ISBLANK(Calculator!G80),"",Calculator!G80) ->  | BE6: =concatEffect(Calculator!B81:F81) ->  | BF6: =IF(ISBLANK(Calculator!G81),"",Calculator!G81) ->  | BG6: =concatEffect(Calculator!B82:F82) ->  | BH6: =IF(ISBLANK(Calculator!G82),"",Calculator!G82) ->  | BI6: =concatEffect(Calculator!B83:F83) ->  | BJ6: =IF(ISBLANK(Calculator!G83),"",Calculator!G83) ->  | BK6: =concatEffect(Calculator!B85:F85) ->  | BL6: =IF(ISBLANK(Calculator!G85),"",Calculator!G85) ->  | BM6: =IF(BK6="U",concatEffect(Calculator!B86:F86),"N/A") ->  | BN6: =IF(ISBLANK(Calculator!G86),"",Calculator!G86) ->  | BO6: =IF(BK6="U",IF(BM6="U",concatEffect(Calculator!B87:F87),"N/A"), "N/A") ->  | BP6: =IF(ISBLANK(Calculator!G87),"",Calculator!G87) ->  | BQ6: =concatEffect(Calculator!B88:F88) ->  | BR6: =IF(ISBLANK(Calculator!G88),"",Calculator!G88) ->  | BS6: =concatEffect(Calculator!B96:F96) ->  | BT6: =IF(ISBLANK(Calculator!G96),"",Calculator!G96) ->  | BU6: =concatEffect(Calculator!B97:F97) ->  | BV6: =IF(ISBLANK(Calculator!G97),"",Calculator!G97) ->  | BW6: =concatEffect(Calculator!B98:F98) ->  | BX6: =IF(ISBLANK(Calculator!G98),"",Calculator!G98) ->  | BY6: =concatEffect(Calculator!B99:F99) ->  | BZ6: =IF(ISBLANK(Calculator!G99),"",Calculator!G99) ->  | CA6: =Calculations!L38 -> LV | CB6: =IF(ISBLANK(Calculator!E110),"",Calculator!E110) -> -- | CC6: =VLOOKUP(Calculator!J106,Confidence,2,FALSE) -> Low | CD6: =IF(ISBLANK(Calculator!O105),"",Calculator!O105) -> 4/4 factors | CE6: =IF(ISBLANK(Calculator!O105),"",Calculator!O106) -> 16/16 factors | CF6: =IF(ISBLANK(Calculator!O105),"",Calculator!O107) -> 0/4 factors | CG6: =IF(ISBLANK(Notes),"",Notes) ->  | CH6: =IF(ISBLANK(Assessor),"",Assessor) -> MV & JD | CI6: =NOW() -> 2016-11-25T21:57:31.140

Sheet Import from 2.1
A1: Import Results from The NatureServe Climate Change Vulnerability Index release 2.1 | T1: GI = Greatly Increase | Y1: N = Neutral
T2: Inc = Increase | Y2: SD = Somewhat Decrease
T3: SI = Somewhat Increase | Y3: Dec = Decrease
A4: Warning: Do not edit data on this tab. Instead: 1. Put your cursor in the row you want to edit. 2. Click the button above. 3. Edit your data on the Calculator tab. 4. Use button to Copy Data to Results. It will paste as a new row in the Results Table. 5. Delete the row of old data. | I4: Temperature Scope | N4: Hamon AET:PET Moisture Metric Scope | T4: Sea level | U4: Natl barriers | V4: Anth barriers | W4: CC mitigation | X4: Dispersal/Movement | Y4: historical thermal niche | Z4: physiological thermal niche | AA4: historical hydrological niche | AB4: physiological hydrological niche | AC4: Disturbance | AD4: Ice/snow | AE4: Phys habitat | AF4: Other spp for hab | AG4: Diet | AH4: Pollinators | AI4: Other spp disp | AJ4: Other spp interaction | AK4: Genetic var | AL4: Gen bottleneck | AM4: Phenol response | AN4: Doc response | AO4: Modeled change | AP4: Modeled overlap | AQ4: Protected Areas
A5: Taxonomic Group | B5: Species | C5: English Name | D5: Geographic Area | E5: Range Rel. | F5: Cave/GW | G5: GRank | H5: SRank | I5: A >5.5F | J5: A 5.1F | K5: A 4.5F | L5: A 3.9F | M5: A <3.9F | N5: < -0.119 | O5: -0.119 | P5: -0.096 | Q5: -0.073 | R5: -0.05 | S5: >-0.028 | T5: B1 | U5: B2a | V5: B2b | W5: B3 | X5: C1 | Y5: C2ai | Z5: C2aii | AA5: C2bi | AB5: C2bii | AC5: C2c | AD5: C2d | AE5: C3 | AF5: C4a | AG5: C4b | AH5: C4c | AI5: C4d | AJ5: C4e | AK5: C5a | AL5: C5b | AM5: C6 | AN5: D1 | AO5: D2 | AP5: D3 | AQ5: D4 | AR5: Index | AS5: Confidence | AT5: Index Notes | AU5: Assessment Notes | AV5: Assessor | AW5: Date Pasted

Sheet A. Climate Exposure
A1: =CONCATENATE("The NatureServe Climate Change Vulnerability Index release ",Calculator!C2) -> The NatureServe Climate Change Vulnerability Index release 3.0
A3: Definitions and Guidelines for Scoring Risk Factors - Section A
B5: A. Exposure to Local Climate Change
B7: All factors refer to ranges and populations within the assessment area.
B9: Scope = percent of total range, population, occurrences, or area affected, either within the state or within the area of assessment
B10: Severity = how severe the aspect of climate change driving this factor is projected to be within the range of the species assessed
B13: Instructions
B14: Temperature
B15: 1. Use the Climate Wizard (climatewizard.org) to estimate scope and severity of projected climate change.
B16: 2. Under Analysis Area, select the state you are working in.
B17: 3. For Time Period, select mid-century (2050s).
B18: 4. Under Map Options, select Map of Change.
B19: 5. Under Measurement, select Average Temperature. Make sure Annual is selected on the drop-down menu.
B20: 6. Under Future Climate Model, for Emission Scenario choose Medium A1B and for General Circulation Model choose Ensemble Average.
B21: 7. Either download the Climate Wizard data into a GIS (preferred) or use the data on screen.
B22: 8. For the range within the assessment area where the species occurs, estimate or calculate the percentage of the range of the species in each of the following categories:
C24: >6.0° F warmer | F24: >3.3 ° C warmer
C25: 5.6-6.0° F warmer | F25: 3.2-3.3 ° C warmer
C26: 5.1-5.5 ° F warmer | F26: 2.8-3.1 ° C warmer
C27: 4.5-5.0 ° F warmer | F27: 2.5-2.7° C warmer
C28: 3.9-4.4 ° F warmer | F28: 2.2-2.4 ° C warmer
C29: <3.9 ° F warmer | F29: <2.2 ° C warmer
B31: 10. Enter the results in the corresponding boxes for temperature under Section A on the Calculator.
B32: 11. Check to make sure that the percentages entered sum to 100.
B34: Hamon AET:PET Moisture Metric
B35: (This index integrates projected temperature and precipitation changes to indicate how much drying will take place.)
B37: 1. Download the annual Hamon AET:PET Moisture Metric data from www.natureserve.org/climatechange (preferred) or use the image at the bottom of the the C. Sp-Spec tab.
B38: 2. For the range within the assessment area where the species occurs, estimate or calculate the percentage of the range of the species in each of the following categories:
C39: < -0.119
C40: -0.097 - -0.119
C41: -0.074 - -0.096
C42: -0.051 - -0.073
C43: -0.028 - -0.050
C44: >-0.028
B46: 3. Enter the results in the corresponding boxes for precipitation under Section A on the Calculator.
B47: 4. Check to make sure that the percentages entered sum to 100.
B49: Migratory Exposure
B51: The values for this measure refer to the migratory ranges (outside of the primary assessment area) of the species being assessed.
B53: Definitions
B54: Migratory Range = Area where population assessed is likely to occur during the migratory season when it is not present in the assessment area
B55: Scope = percent of total migratory range
B56: Severity = how severe the climate is projected to change within the migratory range, measured by the Climate Change Exposure Index.
B58: 1. Download the Climate Change Exposure Index data set from www.natureserve.org/ccvi.
B59: 2. Open the data in GIS. Note that the file is in img format, which opens as a raster in ArcGIS.
B60: 3. Overlay a map of the range of the species during the season when it is not present in the assessment area on the Climate Change Exposure Index raster.
B61: 4. Calculate the percentage of the range of the species in each of the following categories of the Climate Change Exposure Index values:
C63: >7
C64: 6-7
C65: 4-5
C66: <4
B68: 5. Enter the results in the corresponding boxes at the top of this sheetof the Migratory Exposure under Section A on the Calculator.
B69: 6. Check to make sure that the percentages entered sum to 100.
B71: Notes
B72: Migratory Range - In some instances, banding or stable isotope data have indicated the area where the population of the species being assessed migrates to. If this information is available, limit the range used in Step 3 above accordingly. If there is no indication of the migratory destination of the particular population being assessed, use the migratory range of the species for this section.
B73: Climate Change Exposure Index - Using the A1B scenario, the Climate Change Exposure Index calculates for each pixel the standard Euclidean distance that annual temperature and the climate moisture deficit will differ in 2050 from the 1961-1990 baseline. The (Hargreaves) climate moisture deficit is the sum of the monthly difference between evaporative demand and precipitation. This data set is available only for the Western Hemisphere south of the continental United States, including the Caribbean. See Guidelines document for more detail.
B74: Taxonomic Restrictions - Migratory exposure will only be calculated for birds, mammals, and insects.

Sheet B. Climate-Indirect
A1: =CONCATENATE("The NatureServe Climate Change Vulnerability Index release ",Calculator!C2) -> The NatureServe Climate Change Vulnerability Index release 3.0
A3: Definitions and Guidelines for Scoring Risk Factors - Section B
B4: Response required for at least 3 factors.
A6: B. Indirect Exposure to Climate Change
A8: 1) Exposure to Sea Level Rise
B9: NOTES: | C9: This factor comes into play only in the case that all or a portion of the range within the assessment area may be subject to the effects of a 0.5-1 m or greater sea level rise and the consequent influence of storm surges and intrusion of salt water. Most climate model scenarios predict at least a 0.5 m sea level rise. Because projected sea level rise (0.5-2 m by 2100) is great compared to historical sea level changes, the negative impact on habitats for most affected species is expected to be high.
B10: TOOLS: | C10: To visualize potential sea level rise in coastal areas of the U.S., see coast.noaa.gov/digitalcoast/tools/slr.
D11: Greatly Increase Vulnerability: | E11: >90% of range occurs in area subject to sea level rise (on low-lying island(s) or in coastal zone).
D12: Increase Vulnerability: | E12: 50-90% of range occurs in area subject to sea level rise (on low-lying island(s) or in coastal zone).
D13: Somewhat Increase Vulnerability: | E13: 10-49% of range occurs in area subject to sea level rise (on low-lying island(s) or in coastal zone).
D14: Neutral: | E14: <10% of range occur in area subject to sea level rise (on low-lying island(s) or in coastal zone). Includes inland areas not subject to sea level rise. Also, species that occur in an intertidal habitat that is expected to increase in extent with a rising sea level.
A16: 2) Distribution to Barriers
B17: NOTES: | C17: This factor assesses the degree to which natural (e.g., topographic, geographic, ecological) or anthropogenic barriers limit a species' ability to shift its range in response to climate change. Barriers are defined here as features or areas that completely or almost completely prevent movement or dispersal of the species (currently and for the foreseeable future). Species for which barriers would inhibit distributional shifts with climate change-caused shifts in climate envelopes likely are more vulnerable to climate change than are species whose movements are not affected by barriers. Barriers must be identified for each species (but often are the same for a group of closely related species). Natural and anthropogenic barriers are defined for many species and taxonomic groups in NatureServe's Element Occurrence Specifications (viewable in the Population/Occurrence Delineation section of species accounts on Natureserve Explorer, www.natureserve.org/explorer), but usually these readily can be determined by considering a species' basic movement capacity and ecological tolerances.
C18: The distinction between a barrier and unsuitable habitat sometimes may be unclear; in these cases assume the feature or area is unsuitable habitat (habitat through which the species can disperse or move but that does not support reproduction or long-term survival) and score the species here and/or in factor C1 as appropriate. Note that caves are considered under factor C3: Restriction to Uncommon Landscape/Geological Features, and not here where the focus is on barriers that affect the wide array of nonsubterranean species.
C19: A) NATURAL BARRIERS: Examples of features that may function as natural barriers for various species: upland habitat (i.e., absence of aquatic stream, lake, or pond habitat) is a barrier for fishes (but not for semiaquatic or amphibious species that may occupy the same body of water); high mountain ranges (especially those that extend west-east) are a barrier for many lowland plants and nonvolant lowland animals; warm lowlands are a barrier for some alpine species such as American pika but not for elk or American pipit; large expanses of water are barriers for pocket gophers and many other small terrestrial animals (but not for many volant species, or for plant species that are dispersed by wide-ranging birds, or for species that readily swim between land areas if the distance is not too great); a high waterfall is a barrier for fishes (but not for American dippers or gartersnakes that occur along the same stream).
C20: B) ANTHROPOGENIC BARRIERS: Examples of features that may function as anthropogenic barriers: large areas of intensive urban or agricultural development are barriers for many animals and plants; waters subject to chronic chemical pollution (e.g., acid mine drainage) can be a barrier for fishes and other strictly aquatic species; waters subject to thermal pollution (e.g., from power plants) may be a barrier for some strictly aquatic species but not for others (note thermal alterations associated with reservoirs often produce unsuitable habitat rather than impose a barrier); dams without fish passage facilities and improperly installed culverts can be barriers for fishes and certain other strictly aquatic species; tortoise-proof fencing may be barrier for small reptiles and certain other nonvolant animals (but not for most plants, large mammals, or large snakes).
C21: Note that no barriers exist for most temperate-zone bird species that simply fly over or around potential obstructions. Species restricted to habitats that are believed to persist unchanged in spite of climate change are scored as Neutral (because in these situations barriers do not contribute to vulnerability even if climate changes). If a feature or area does not completely or almost completely prevent dispersal or movement then it is categorized here as unsuitable or suitable habitat, and the dispersal/movement of individuals across that feature or area is assessed under factor C1 (Dispersal and Movements). In most cases, unsuitable habitat is habitat through which propagules or individuals may move but that does not support reproduction or long-term survival.
C22: The degree to which a barrier may affect a species' ability to shift its range in response to climate change depends in part on the distance of the barrier from the species' current distribution. Barriers that are separated from a species' range by a long distance of relatively flat topography can nevertheless affect range shifts because in gentle terrain relatively small changes in climate can result in large shifts in the location of a particular climate envelope. If a species changed its range accordingly (to track a particular climate envelope), it might encounter barriers that were far from its original range. In contrast, in landscapes in which climatic conditions change rapidly over small horizontal distances (e.g., mountainous areas, steep slopes, or other topographically diverse landscapes) a species' distribution would have to shift a relatively small distance in order to track a particular climate envelope, so the species is less likely to encounter distant barriers.
C23: To count as a barrier for the purposes of this factor, a feature can be up to 50 km from the species' current range when measured across areas where climate changes gradually over latutude or longitude (e.g., relatively flat terrain) and up to 10 km when measured across areas where climate changes abruptly over latutude or longitude (e.g., mountainous or steep terrain). Use 25 km for species that occur in intermediate topography, such as moderate hill country. These distances apply to both terrestrial and aquatic species. These distances are derived from Loarie et al. (2009, Nature 462:1052).
C24: The following categories and criteria apply to both natural and anthropogenic barriers, but the two types of barriers are scored separately. Note that it is illogical for natural and anthropogenic barriers to both cause greatly increased vulnerability to climate change for a single species (only one or the other can completely surround a species' range). If both barriers occur, estimate the relative portions of the circumference of the range blocked by each and then score accordingly.
B25: TOOLS: | C25: One useful data source for assessing intensity of land use as a potential anthropogenic barrier in the 48 contiguous United States is the published maps and downloadable GIS data for Wildland-Urban Interface of the Silvis Lab (University of Wisconsin-Madison and the USDA Forest Service North Central Research Station, silvis.forest.wisc.edu/maps/wui_main). Other data sets, such as the Global Land Cover Facility (NASA; glcfapp.glcf.umd.edu/data/) are also acceptable (and offer wider coverage) but may require more advanced GIS capabilities. Readily available online sources of satellite imagery also may be useful in assessing anthropogenic or certain other barriers.
B26: Greatly Increase Vulnerability: | E26: Barriers completely OR almost completely surround the current distribution such that the species' range in the assessment area is unlikely to be able to shift significantly with climate change, or the direction of climate change-caused shift in the species' favorable climate envelope is fairly well understood and barriers prevent a range shift in that direction. See Neutral for species in habitats not vulnerable to climate change.
E27: Examples for natural barriers: lowland terrestrial species completely surrounded by high mountains (or bordered closely and completely on the north side by high mountains); cool-water stream fishes for which barriers would completely prevent access to other cool-water areas if the present occupied habitat became too warm as a result of climate change; most nonvolant species that exist only on the south side of a very large lake in an area where habitats are expected to shift northward with foreseeable climate change.
E28: Examples for anthropogenic barriers: species limited to small habitats within intensively developed urban or agricultural landscapes through which the species cannot pass, A specific example of this category is provided by the quino checkerspot butterfly (Euphydryas editha quino), a resident of northern Baja California and southern California; warming climates are forcing this butterfly northward, but urbanization in San Diego blocks its movement (Parmesan 1996, Nature 382:765).
B29: Increase Vulnerability: | E29: Barriers border the current distribution such that climate change-caused distributional shifts in the assessment area are likely to be greatly but not completely or almost completely impaired.
E30: Examples for natural barriers: certain lowland plant or small mammal species whose ranges are mostly (50-90%) bordered by high mountains or a large lake.
E31: Examples for anthropogenic barriers: most streams inhabited by a fish species have dams that would prevent access to suitable habitat if the present occupied habitat became too warm as a result of climate change; intensive urbanization surrounds 75% of the range of a salamander species.
B32: Somewhat Increase Vulnerability: | E32: Barriers border the current distribution such that climate change-caused distributional shifts in the assessment area are likely to be significantly but not greatly or completely impaired.
E33: Examples for natural barriers: certain lowland plant or small mammal species whose ranges are partially but not mostly bordered by high mountains or a large lake.
E34: Examples for anthropogenic barriers: 10-50% of the margin of a plant species' range is bordered by intensive urban development; 25% of the streams occupied by a fish species include dams that are likely to impede range shifts driven by climate change.
B35: Neutral: | E35: Significant barriers do not exist for this species, OR small barriers exist in the assessment area but likely would not significantly impair distributional shifts with climate change, OR substantial barriers exist but are not likely to contribute significantly to a reduction or loss of the species' habitat or area of occupancy with projected climate change in the assessment area.
E36: Examples of species in this category: most birds (for which barriers do not exist); terrestrial snakes in extensive plains or deserts that may have small barriers that would not impede distributional shifts with climate change; small alpine-subalpine mammal (e.g., ermine, snowshoe hare) in extensive mountainous wilderness area lacking major rivers or lakes; fishes in large deep lakes or large main-stem rivers that are basically invulnerable to projected climate change and lack dams, waterfalls, and significant pollution; a plant whose climate envelope is shifting northward and range is bordered on the west by a barrier but for which no barriers exist to the north.
A38: 3) Predicted Impact of Land Use Changes Resulting from Human Responses to Climate Change
C39: (e.g., plantations for carbon offsets, new seawalls in response to sea level rise, and renewable energy projects such as wind-farms, solar arrays, or biofuels production)
B40: NOTES: | C40: Strategies designed to mitigate or adapt to climate change have the potential to affect very large areas of land, and the species that depend on these areas, in both positive and negative ways. This factor arguably should be considered in conservation status assessments, but considering that for most species this factor has not yet been considered in these assessments, we include it here. If the land use changes for alternative energy projects have already been considered in the conservation status assessment for the species, consider not scoring this factor, especially if the vulnerability assessment results will be used to revise status ranks.
C41: This factor is NOT intended to include habitat loss or destruction due to on-going human activities, as these should already be reflected in existing conservation status ranks. Include only new activities related directly to climate change mitigation here. There is much uncertainty about the types of mitigation action that are likely to threaten habitats and species. Remember that multiple categories can be checked for each factor to capture uncertainty. As federal and state climate change legislation is enacted, some of the mitigation directions (and associated threats or benefits to species) will become clearer.
B42: TOOLS: | C42: For a map of clean energy sites in the western U.S. see www.nrdc.org/land/sitingrenewables/usersguide.asp. A library of energy-related maps can be found at www.nrel.gov/gis/mapsearch/.
D43: Increase Vulnerability: | E43: The natural history/requirements of the species are known to be incompatible with mitigation-related land use changes that are likely to very likely to occur within its current and/or potential future range. This includes (but is not limited to) the following:
E44: - Species requiring open habitats within landscapes likely to be reforested or afforested. If the species requires openings within forests that are created/maintained by natural processes (e.g., fire), and if those processes have a reasonable likelihood of continuing to operate within its range, a lesser impact category may be appropriate.
E45: - Bird and bat species whose migratory routes, foraging territory, or lekking sites include existing and/or suitable wind farm sites and for which studies indicate substantial negative impact (e.g., mortality from or avoidance of turbines). If such studies indicate a relatively low impact from wind energy development, a lesser impact category may be appropriate.
E46: - Greater than 20% of the species' range within the assessment area occurs on marginal agricultural land, such as CRP land or other open areas with suitable soils for agriculture ("prime farmland", etc.) that are not currently in agricultural production OR > 50% of the species' range within the assessment area occurs on any non-urbanized land with suitable soils, where there is a reasonable expectation that such land may be converted to biofuel production.
E47: - The species occurs in one or more river/stream reaches not yet developed for hydropower, but with the potential to be so developed.
E48: - Species of deserts or other permanently open, flat lands with potential for placement of solar arrays.
E49: - Species dependent on dynamic shoreline habitats (e.g., active dunes or salt marshes) likely to be destroyed by human fortifications against rising sea levels.
D50: Somewhat Increase Vulnerability: | E50: The natural history/requirements of the species are known to be incompatible with mitigation-related land use changes that may possibly occur within its current and/or potential future range, including any of the above (under Increase).
D51: Neutral: | E51: The species is unlikely to be significantly affected by mitigation-related land use changes that may occur within its current and/or potential future range, including any of the above; OR it is unlikely that any mitigation-related land use changes will occur within the species' current and/or potential future range, OR it may benefit from mitigation-related land use changes.

Sheet C. Sens & AC
A1: =CONCATENATE("The NatureServe Climate Change Vulnerability Index release ",Calculator!C2) -> The NatureServe Climate Change Vulnerability Index release 3.0
A3: Definitions and Guidelines for Scoring Risk Factors - Section C
B4: Response required for at least 10 factors.
A6: C. Sensitivity and Adaptive Capacity Factors
B7: Notes: | C7: Specific instructions for each factor are as follows. At least 10 of the 19 factors must be assessed. Note that these factors relate to characteristics of the species only. Anthropogenic effects, such as on the availability of dispersal corridors, should not be considered in this section.
A9: 1) Dispersal and Movements
B10: NOTES: | C10: This factor pertains to known or predicted dispersal or movement capacities and characteristics and ability to shift location in the absence of barriers as conditions change over time as a result of climate change. Species in which individuals exhibit substantial dispersal, readily move long distances as adults or juveniles, or exhibit flexible movement patterns should be better able to track shifting climate envelopes than are species in which dispersal and movements are more limited or inflexible. This factor pertains specifically to dispersal through unsuitable habitat, which, in most cases, is habitat through which propagules or individuals may move but that does not support reproduction or long-term survival. If all habitat is regarded as suitable (i.e., species can reproduce and persist in every habitat in which it occurs), then dispersal ability is assessed for suitable habitat. If appropriate, scoring of species whose dispersal capacity is not known can be based on characteristics of closely related species (or species of similar body size in the same major group) with similar and relevant morphological features.
C11: Barriers, which are here defined as features or areas that completely or almost completely block dispersal, are treated in factor B2. If a species requires other species for propagule dispersal, please also complete factor C5d. The following categorization for plants is loosely based on Vittoz and Engler (2007 Botanica Helvetica 117:109–124).
C12: A small number of species are confined by barriers to areas that are smaller than the species' potential dispersal distance (fishes in small isolated springs or plants that only occur in vernal pools are classic examples). Most if not all of the fish species that occur in the smallest such habitat patches could disperse farther than the greatest extent of the occupied patch if a larger extent of habitat were available to them. For the purposes of this factor, the dispersal ability of these species is scored as if the species occurred in a large patch of habitat (longer than the dispersal distance), based on dispersal or movement patterns or capabilities of closely related species (or species of similar body size in the same major group of animals).
C13: Migratory species should be scored according to their ability to shift their distribution within the assessment area during the period of occupation or from one year to the next (whichever is larger).
C14: Species in which propagule dispersal is both synchronous among all members of the population in the assessment area and infrequent (average of several years between successful reproduction events) should be scored as one category more vulnerable than the category that would otherwise apply. An example is the monocarpic giant cane (Arundinaria gigantea), a bamboo species that reproduces synchronously every 25-50 years and then dies.
B15: TOOLS: | C15: Seed biological trait data for some species can be found at http://data.kew.org/sid/sidsearch.html.
D16: Greatly Increase Vulnerability: | E16: Species is characterized by severely restricted dispersal or movement capability. Species is represented by sessile organisms that almost never disperse more than 10 meters per dispersal event. Examples: plants with large or heavy propagules for which the disperser is extinct or so rare as to be ineffective; species with dispersal limited to vegetative shoots, buds, or similar structures that do not survive (at least initially) if detached from the parent; plants dispersed only ballistically.
D17: Increase Vulnerability: | E17: Species is characterized by highly restricted dispersal or movement capability. Species rarely disperses through unsuitable habitat more than about 10-100 meters per dispersal event; OR dispersal beyond a very limited distance (or outside a small isolated patch of suitable habitat) periodically or irregularly occurs but is dependent on highly fortuitous or rare events; OR species has substantial movement capability but exhibits a very high degree of site fidelity. Examples: branchiopods whose resting stages sometimes are transported in mud attached to birds or mammals; small clams that may disperse while clamped onto bird feathers or frog toes; small, nonvolant animals of relatively low vagility, including small, slow-moving animals such as slugs, snails, and the smallest terrestrial salamanders that rarely shift location by more than 100 meters within a single year; many ant-dispersed plant species; plant or animal species with free-living propagules or individuals that may be carried more than 100 meters by a tornado or unusually strong hurricane or large flood but that otherwise rarely disperse more than 100 meters; plants that do not fit criteria for Greatly Increase Vulnerability but lack obvious dispersal adaptations (i.e., propagules lack any known method for moving more than 100 meters away from the source plant); birds that exhibit an extremely high degree of site fidelity or exceptionally low rate of colonization of vacant suitable habitat.
D18: Somewhat Increase Vulnerability: | E18: Species is characterized by limited or moderate but not highly or severely restricted dispersal or movement capability. A significant percentage (at least approximately 5%) of propagules or individuals disperse approximately 100-1,000 meters per dispersal event (rarely farther); OR species has substantial movement capability but exhibits a moderate to high degree of site fidelity and has very limited existing or potential habitat within the assessment area; OR dispersal likely is consistent with one of the following examples. Examples: species that exist in small isolated patches of suitable habitat but regularly disperse or move among patches that are up to 1,000 meters (rarely farther) apart; plants whose propagules are dispersed primarily by small animals (e.g., some rodents) that typically move propagules approximately 100-1,000 meters from the source (propagules may be cached or transported incidentally on fur or feathers); plants dispersed by wind with low efficiency (e.g., species with inefficiently plumed seeds and/or that occur predominantly in forests); many small but somewhat vagile animals (e.g., many small mammals and lizards); species whose individuals exist in small isolated patches of suitable habitat but regularly disperse or move among patches that are 100-1,000 meters (rarely farther) apart; plant and animal species whose propagules or individuals are dispersed by small animals (e.g., rodents, grouse) that regularly but perhaps infrequently move propagules approximately 100-1,000 meters from the source; many denning snakes and some pond-breeding amphibians that are otherwise terrestrial as adults) (note that these short-distance migratory animals may exhibit strong fidelity to natal areas but nevertheless generally include individuals that colonize or move into other nearby areas); birds that exhibit a high degree of site fidelity or relatively low rate of colonization of vacant suitable habitat (as in Increase Vulnerability but the degree site fidelity or colonization rate is not as extreme).
D19: Neutral: | E19: Species is characterized by good to excellent dispersal or movement capability. Species has propagules or dispersing individuals that commonly move more than 1 kilometer from natal or source areas; OR species tends to occupy all or most areas of suitable habitat , or readily or predictably moves more than 1 kilometer to colonize newly available habitat (e.g., recently restored areas, areas that become suitable as a result of fire, insect infestations, or other environmental changes, etc.); OR dispersal capability likely is consistent with one of the following examples. Note that species in the Neutral category are not necessarily "early successional" or "r-selected" species but also may include certain "late successional" or equilibrium ("K-selected") species that have excellent innate or vector-aided dispersal capability. Examples: plant species regularly dispersed more than 1 km by large or mobile animals (e.g., plant has seeds that are cached, regurgitated, or defecated at least 1 km from the source by birds [e.g., corvids, songbirds that eat small fleshy fruits] or mammals or that are transported on fur of large mobile animals such as most Carnivora or ungulates); animal species that regularly disperse or move long distances via their own locomotory abilities (e.g., most large and some medium-sized mammals, most bats, many common birds); many plant species dispersed by wind with high efficiency (e.g., species with efficiently plumed seeds or very small propagules that occur predominantly in open areas); plant or animal species whose individuals often or regularly are dispersed more than 1 kilometer by air or ocean currents, or humans, including species that readily become established outside their native ranges as a result of intentional or unintentional translocations by humans; animal species whose populations within the assessment area are known to migrate facultatively according to changing environmental conditions (e.g., some northern finches and owls exhibit short or long migrations in some years but not in others); nonmigratory species whose populations may shift location by 1 kilometer or more in response to changing environmental conditions (e.g., the black-backed woodpecker [Picoides arcticus] often makes substantial shifts in its distribution in accordance with concentrations of wood-boring insects); migratory species that show clear ability to track variable resources over broad geographies; bird species lacking a high degree of site fidelity; bird species that readily colonize vacant suitable habitat.
A20: 2) Predicted Sensitivity to Temperature and Moisture Changes
B21: NOTES: | C21: This factor pertains to the breadth of temperature and precipitation conditions, at both broad and local scales, within which a species is known to be capable of reproducing, feeding, growing, or otherwise existing. Species with narrow environmental tolerances/requirements may be more vulnerable to habitat loss from climate change than are species that thrive under diverse conditions.
A23: a) Predicted sensitivity to changes in temperature, based on current/recent past temperature tolerance
B24: i) Historical thermal niche (exposure to past variations in temperature)
B25: NOTES: | C25: This factor measures large-scale temperature variation that a species has experienced in recent historical times (i.e., the past 50 years), as approximated by mean seasonal temperature variation (difference between highest mean monthly maximum temperature and lowest mean monthly minimum temperature) for occupied cells within the assessment area. It is a proxy for species' temperature tolerance at a broad scale. This factor may be evaluated by comparing the species range with the Annual Temperature Variation map 1951-2006 (see first image at bottom of this page) or calculated using GIS data downloaded from NatureServe (www.natureserve.org/ccvi). For aquatic species, follow the same procedure as for terrestrial species, since this factor measures broad regional patterns.
C26: Use the annual map for both resident and migratory species. Although migratory species are not physically present to experience temperature variations, they nonetheless are affected by these variations through effects on food supply and habitat availability.
D27: Greatly Increase Vulnerability: | E27: Considering the mean seasonal temperature variation for occupied cells, the species has experienced very small (< 37° F/20.8° C) temperature variation in the past 50 years. Includes cave obligates and species occurring in thermally stable groundwater habitats.
D28: Increase Vulnerability: | E28: Considering the mean seasonal temperature variation for occupied cells, the species has experienced small (37 - 47° F/20.8 - 26.3° C) temperature variation in the past 50 years. Includes facultative cave invertebrates.
D29: Somewhat Increase Vulnerability: | E29: Considering the mean seasonal temperature variation for occupied cells, the species has experienced slightly lower than average (47.1 - 57° F/26.3 - 31.8° C) temperature variation in the past 50 years.
D30: Neutral: | E30: Considering the mean seasonal temperature variation for occupied cells, the species has experienced average or greater than average (>57.1° F/43.0° C) temperature variation in the past 50 years.
B32: ii) Physiological thermal niche
B33: NOTES: | C33: Current projections indicate that climate warming will be nearly pervasive in North America over the next several decades. Species associated with cool or cold conditions likely will experience a reduction in habitat extent or quality and may experience declines in distribution or abundance within a given assessment area. This factor assesses the degree to which a species is restricted to relatively cool or cold above-ground terrestrial or aquatic environments that are thought to be vulnerable to loss or significant reduction as a result of climate change. Species that depend on these cool/cold environments include (but may not be limited to) those that occur in the assessment area's highest elevational zones, northernmost areas, or the coldest waters. The restriction to these relatively cool environments may be permanent or seasonal.
C34: Species that occur in frost pockets, on north-facing slopes, in shady ravines, in alpine areas, or similar cool sites are scored here if those areas represent or are among the coldest environments in the assessment area; lacking this stipulation, species occurring in such sites may not be vulnerable to climate change because favorable sites may simply shift in location without reduction or loss. Species that are associated specifically with snow or ice are assessed separately in factor C2d. Note that temperature conditions and hydrological regimes often covary and often are not neatly separable; these situations should be scored here if temperature per se appears to be the overriding factor; otherwise they should be scored under factor C2bii: Physiological Hydrological Niche.
D35: Greatly Increase Vulnerability: | E35: Species is completely or almost completely (> 90% of occurrences or range) restricted to relatively cool or cold environments that may be lost or reduced in the assessment area as a result of climate change.
D36: Increase Vulnerability: | E36: Species is moderately (50-90% of occurrences or range) restricted to relatively cool or cold environments that may be lost or reduced in the assessment area as a result of climate change.
D37: Somewhat Increase Vulnerability: | E37: Species is somewhat (10-50% of occurrences or range) restricted to relatively cool or cold environments that may be lost or reduced in the assessment area as a result of climate change.
D38: Neutral: | E38: Species distribution is not significantly affected by thermal characteristics of the environment in the assessment area, species occupies habitats that are thought to be not vulnerable to projected climate change, or species shows a preference for environments at the warmer end of the spectrum.
A40: b) Predicted sensitivity to changes in precipitation, hydrology, or moisture regime.
B41: i) Historical hydrological niche (exposure to past variations in precipitation)
B42: NOTES: | C42: This factor measures large-scale precipitation variation that a species has experienced in recent historical times (i.e., the past 50 years), as approximated by mean annual precipitation variation across occupied cells within the assessment area. Overlay the species’ range on the Climate Wizard mean annual precipitation map 1951-2006. Subtract the lowest pixel value from the highest value to assess this factor. Use the extreme pixel values for this calculation. Use annual data for migratory species, as this measure reflects the precipitation regime of the ecosystem as a whole.
D43: Greatly Increase Vulnerability: | E43: Considering the range of mean annual precipitation across occupied cells, the species has experienced very small (< 4 inches/100 mm) precipitation variation in the past 50 years.
D44: Increase Vulnerability: | E44: Considering the range of mean annual precipitation across occupied cells, the species has experienced small (4 - 10 inches/100 - 254 mm) precipitation variation in the past 50 years.
D45: Somewhat Increase Vulnerability: | E45: Considering the range of mean annual precipitation across occupied cells, the species has experienced slightly lower than average (11 - 20 inches/255 - 508 mm) precipitation variation in the past 50 years.
D46: Neutral: | E46: Considering the range of mean annual precipitation across occupied cells, the species has experienced averageor greater than average >40 inches/1,016 mm) precipitation variation in the past 50 years.
B48: ii) Physiological hydrological niche
B49: NOTES: | C49: This factor pertains to a species' dependence on a narrowly defined precipitation/hydrologic regime, including strongly seasonal precipitation patterns and/or specific aquatic/wetland habitats (e.g., certain springs, vernal pools, seeps, seasonal standing or flowing water) or localized moisture conditions that may be highly vulnerable to loss or reduction with climate change. Dependence may be permanent or seasonal, and for migratory species may include staging areas, migration stops, and wintering areas outside the assessment area. Aquatic cave obligate species are considered here according to their hydrological needs and habitat vulnerability. Species nesting on islands in lakes, reservoirs, and/or wetlands that prevent predator access can be scored here to the extent that a changed hydrological regime may influence the availability of these predator-free breeding sites (for example, birds nesting on islands to avoid predation by mammals). If a species is dependent on aquatic/wetland habitats that are actively managed to maintain a particular hydrology, consider whether this management would be sufficient to ameliorate projected climate change impacts (and, if so, score as Neutral).
C50: For plant species, the advantage of the C4 photosynthetic pathway for water use efficiency will likely enable C4 plants to be less vulnerable to decline under drying conditions than C3 plants (Taylor et al. 2010, New Phytologist 185:780). The predicted vulnerability of these plants with respect to this factor has been adjusted accordingly.
C51: For nonmigratory species, "range" refers to the range within the assessment area. For migratory species, “range” encompasses the assessment area and additional areas (e.g., migration stops, staging areas, wintering areas) that are used to a significant extent by the populations being assessed. For example, a migratory bird species for which 95% of the significant migration stops are in shallow inland/interior wetlands should be assigned to the Greatly Increase Vulnerability category, even if the species is not dependent on such habitats within the assessment area.
C52: Note that temperature conditions and hydrological regimes often covary and often are not neatly separable. These situations should be scored under factor C2aii (Physiological Thermal Niche) if temperature per se appears to be the overriding factor; otherwise they should be scored here.
D53: Greatly Increase Vulnerability: | E53: Completely or almost completely (>90% of occurrences or range) dependent on a specific aquatic/wetland habitat or localized moisture regime that is likely to be highly vulnerable to loss or reduction with climate change. Examples: species dependent on small/isolated/shallow water-bodies or wetlands in arid landscapes; ephemeral-pool-dependent branchiopods; plants that are exclusively or very strongly associated with localized moist microsites (e.g., "hanging gardens" in arid landscapes).
D54: Increase Vulnerability: | E54: Moderately (50-90% of occurrences or range) dependent on a strongly seasonal hydrologic regime and/or a specific aquatic/wetland habitat or localized moisture regime that is likely to be highly vulnerable to loss or reduction with climate change. Examples: certain amphibians that often breed in vernal pools but also regularly use other aquatic or wetland habitats; certain plants whose life cycles are highly synchronized with Mediterranean precipitation patterns in areas vulnerable to large changes in the amount and seasonal distribution of precipitation; desert or semidesert plants that frequently occur in but are not restricted to or almost restricted to moisture-accumulating microsites; plants (and animals that depend on these species) for which >50% of populations occur in areas such as sandy soils that are highly prone to desiccation; plants that use the C4 photosynthetic pathway and that otherwise qualify for the Greatly Increase Vulnerability category.
D55: Somewhat Increase Vulnerability: | E55: Somewhat (10-50%) dependent on a strongly seasonal hydrologic regime and/or a specific aquatic/wetland habitat or localized moisture regime that is highly vulnerable to loss or reduction with climate change. Examples: plants (and animals that depend on these species) for which 10-50% of populations occur in areas such as sandy soils that are sensitive to changes in precipitation; certain plants with ranges restricted to seasonal precipitation environments (e.g., summer rainfall deserts) and which have a moderate degree of adaptation to that seasonality; plants that use the C4 photosynthetic pathway and that otherwise qualify for the Increase Vulnerability category.
D56: Neutral: | E56: Species has little or no dependence on a strongly seasonal hydrologic regime and/or a specific aquatic/wetland habitat or localized moisture regime that is highly vulnerable to loss or reduction with climate change; OR hydrological requirements are not likely to be significantly disrupted in major portion of the range; OR species tolerates a very wide range of moisture conditions. Examples: water-limited species in areas with increasing water availability; arid-adapted species in areas with decreasing moisture availability; species dependent on springs tied to a regional aquifer that would not be expected to change significantly with climate change; aquatic species inhabiting caves fed by groundwater aquifers that are not expected to change significantly with climate change; plants that use the C4 photosynthetic pathway and that otherwise qualify for the Somewhat Increase Vulnerability category.
A58: c) Dependence on a specific disturbance regime likely to be impacted by climate change
B59: NOTES: | C59: This factor pertains to a species' response to specific disturbance regimes such as fires, floods, severe winds, pathogen outbreaks, or similar events. It includes disturbances that impact species directly as well as those that impact species via abiotic aspects of habitat quality. For example, changes in flood and fire frequency/intensity may cause changes in water turbidity, silt levels, and chemistry, thus impacting aquatic species sensitive to these aspects of water quality. The potential impacts of altered disturbance regimes on species that require specific river features created by peak flows should also be considered here; for example, some fish require floodplain wetlands for larval/juvenile development or high peak flows to renew suitable spawning habitat. Use care when estimating the most likely effects of increased fires; in many ecosystems, while a small increase in fire frequency might be beneficial, a greatly increased fire frequency could result in complete habitat destruction.
C60: Be sure to also consider species that benefit from a lack of disturbance and may suffer due to disturbance increases when scoring this factor.
B61: TOOLS: | C61: Information on fire effects: www.fs.fed.us/database/feis/plants/index.html. For a map of modeled future fire regime, see Figure 2 in Krawchuk et al. (2009, PLoS ONE 4:e5102).
D62: Increase Vulnerability: | E62: Strongly affected by specific disturbance regime, and climate change is likely to change the frequency, severity, or extent of that disturbance regime in a way that reduces the species' distribution, abundance, or habitat quality. For example, many sagebrush-associated species in regions predicted to experience increased fire frequency/intensity would be scored here due to the anticipated deleterious effects of increased fire on their habitat.
D63: Somewhat Increase Vulnerability: | E63: Moderately affected by specific disturbance regime, and climate change is likely to change the frequency, severity, or extent of that disturbance regime in a way that reduces the species' distribution, abundance, or habitat quality, OR strongly affected by specific disturbance regime, and climate change is likely to change that regime in a way that causes minor disruption to the species' distribution, abundance, or habitat quality. For example, plants in a riverscour community that are strongly tied to natural erosion and deposition flood cycles, which may shift position within the channel rather than disappear as a result of climate change.
D64: Neutral: | E64: Little or no response to a specific disturbance regime, OR climate change is unlikely to change the frequency, severity, or extent of that disturbance regime in a way that affects the range or abundance of the species, OR climate change is likely to change the characteristics of the disturbance regime in a way that increases the species' distribution.
A66: d) Dependence on ice, ice-edge, or snow cover habitats
B67: NOTES: | C67: This factor pertains to a species' dependence on habitats associated with ice (e.g., sea ice, glaciers) or snow (e.g., long-lasting snow beds, avalanche chutes) throughout the year or seasonally during an essential period of the life cycle. For aquatic species, the importance of snowpack for maintaining downstream water temperatures should be considered here. "Range" refers to the range within the assessment area.
B68: Greatly Increase Vulnerability: | E68: Highly dependent (>80% of subpopulations or range) on ice- or snow-associated habitats; or found almost exclusively on or near ice or snow during at least one stage of the life cycle. For example, polar bear (Ursus maritimus) is strongly dependent on sea ice throughout its range.
D69: Increase Vulnerability: | E69: Moderately dependent (50-80% of subpopulations or range) on ice- or snow-associated habitats; or often found most abundantly on or near ice or snow but also regularly occurs away from such areas. For example, Kittlitz's murrelet (Brachyramphus brevirostris) feeding habitat is moderately to strongly associated with tidewater glaciers.
D70: Somewhat Increase Vulnerability: | E70: Somewhat (10-49% of subpopulations or range) dependent on ice- or snow-associated habitats, or may respond positively to snow or ice but is not dependent on it. For example, certain alpine plants are often associated with long-lasting snowbeds but also commonly occur away from such areas; certain small mammals experience increased survival and may develop relatively large populations under winter snow cover but do not depend on snow cover. Species that benefit from a minimum thickness of ice or snowpack for winter insulation should also be scored here.
D71: Neutral: | E71: Little dependence on ice- or snow-associated habitats (may be highly dependent in up to 10% of the range).
A73: 3) Restriction to Uncommon Landscape/Geological Features or Derivatives
B74: NOTES: | C74: This factor pertains to a species' need for a particular soil/substrate, geology, water chemistry, or specific physical or landscape feature (e.g., caves, cliffs, active sand dunes, islands) for reproduction, feeding, growth, shelter, or other aspects of the life cycle. It focuses on the commonness of suitable conditions for the species on the landscape, as indicated by the commonness of the features themselves combined with the degree of the species' restriction to them. Climate envelopes may shift away from the locations of fixed (within at least a 50 year timeframe) landscape or geological features or their derivatives, making species tied to these uncommon features potentially more vulnerable to habitat loss from climate change than are species that thrive under diverse conditions.
C75: This factor does NOT include habitat preferences based on temperature, hydrology, or disturbance regime, as these are covered elsewhere in the Index. For example, species dependent on springs or ephemeral pools should not be scored as more vulnerable for this factor solely on that basis (addressed under factor C2bii: Physiological Hydrological Niche). However, restriction to aquatic features with regionally uncommon water chemistry should be considered here. This factor also does NOT include habitat features such as stream riffles or basking rocks. Finally, this factor does NOT include biotic habitat components; for example, species that require features such as tree snags or a particular type/condition of plant community (e.g., old growth forest) should not be scored as more vulnerable for this factor.
C76: If the idea of specificity to soil/substrate, geology, or specific physical or landscape features is not relevant to the species (e.g., many birds and mammals), choose Neutral.
B77: TOOLS: | C77: Map of deposits and rock types of the southwestern U.S.: esp.cr.usgs.gov/projects/sw/images/sw_map.gif. Map of deserts of the southwestern U.S.: www.desertmuseum.org/images/csds/sonoran_map-lg.jpg. Map of serpentine areas of North America: botany.si.edu/projects/cpd/na/map5.htm.
D78: Increase Vulnerability: | E78: Highly dependent upon (i.e., more or less endemic to, or > 85% of occurrences found on) a particular highly uncommon landscape or geological feature or derivative (e.g., soil, water chemistry). Examples: serpentine (broad and strict) endemic plants; plants of calcareous substrates where such substrates are uncommon (e.g., California, karst in the southeastern U.S.); plants restricted to one or a few specific rock strata; species more or less restricted to inland sand dunes or shale barrens; obligate cave-dwelling organisms; springsnails restricted to springs with high dissolved CO2; fish species that require a highly uncommon substrate particle size, such as Colorado pikeminnows (Ptychocheilus lucius) that spawn only on rare cobble bars cleared of debris by seasonal high streamflows; many colonially nesting seabirds that are essentially restricted to predator-free islands for successful reproduction.
D79: Somewhat Increase Vulnerability: | E79: Moderately dependent upon a particular uncommon landscape or geological feature or derivative, i.e., (1) an indicator of but not an endemic to (65-85% of occurrences found on) the types of features described under Increase, OR (2) more or less restricted to a landscape or geological feature or derivative that is not highly uncommon within the species’ range, but is not one of the dominant types. Examples: as in Increase Vulnerability but with a lesser degree of dependence; species moderately restricted to active coastal sand dunes, cliffs, salt flats (including shorebirds that require sodic soils), inland waters within a particular salinity range, or nondominant rock types such as occasional igneous rock intrusions within a landscape mostly dominated by sedimentary and/or metamorphic rocks; species that inhabit multiple geological features each of which is uncommon; fish species that require a specific substrate particle size, if that of stream bottom type is not one of the dominant types within the species' range.
D80: Neutral: | E80: Having a clear preference for (> 85% of occurrences found on) a particular landscape or geological feature or derivative, but the feature/derivative is among the dominant types within the species’ range; OR somewhat flexible in dependence upon geological features or derivatives (i.e., found on a subset of the dominant substrate/water chemistry types within its range); OR highly generalized relative to dependence upon geological features or derivatives; species is described as a generalist and/or occurrences have been documented on widely varied substrates or water chemistries. Examples: plants (e.g., red spruce) that are usually associated with acidic organic soils that are not uncommon within the range; many species whose habitat descriptions specify one pH category (acidic, neutral, or basic) and/or one soil particle size (e.g., rocky, sandy, or loamy) but that substrate type is not particularly uncommon within the species’ range; species inhabiting multiple relatively widespread geological features; species with many occurrences associated with both acidic and basic soils or waters, or with both sandy and clay soils); species not strongly tied to any specific landscape or geological feature or derivative, such as common yarrow (Achillea millefolium), coyote (Canis latrans), and many other plants and animals.
A83: 4) Interspecific Interactions
B84: NOTES: | C84: The primary impact of climate change on many species may occur via effects on synchrony with other species on which they depend (Parmesan 2006, ARES 37:637), rather than through direct physiological stress.
A86: a) Dependence on other species to generate habitat
B87: NOTES: | C87: This factor pertains to a species’ dependence on uncommon/restricted habitats that are generated or maintained by other species. Species that are dependent on a small number of other species likely are more vulnerable to climate change than are species that have more flexibility or that do not have specialized habitat requirements.
C88: Habitat refers to any habitat (e.g., for reproduction, feeding, hibernation, seedling establishment) necessary for completion of the life cycle, including those used only on a seasonal basis. This includes specific (often structural) features within a more generalized habitat type (e.g., burrows created by other species in a grassland habitat; woodpecker-created cavities in a forest habitat). These habitats must be required for completion of the life cycle (e.g., reproduction, feeding, hibernation, seedling establishment, etc.) and may include habitats used only on a seasonal basis. For plants, species-specific relationships involved in creating specific habitat conditions necessary for seedling establishment should be considered here; nutritional relationships necessary for seedling establishment (e.g., parasitic or obligately myco-heterotrophic plants) should be considered under C4g. The relationship between freshwater mussels and their larval hosts should be scored only under factor C4d (Dependence on other species for propagule dispersal).
C89: This factor is concerned specifically with habitats generated or maintained by particular species and does NOT include ecological dependencies based primarily on disturbance regime, geological features, or diet, as these are covered elsewhere in the Index. Required habitats involving temperature/hydrological conditions that are generated by a small number of particular species are included in this factor, but temperature/hydrology-related habitats that are not primarily species dependent are considered under C2aii and C2bii (thermal and hydrological niches); if in doubt, score under C2aii or C2bii.
D90: Increase Vulnerability: | E90: Required habitat is generated primarily by one species. Examples: several insect species (e.g., the beetle Onthophilus giganteus) that depend entirely on southeastern pocket gopher (Geomys pinetis) tunnels for required habitat; the spider Masoncus pogonophilus, which depends on habitat provided by colony chambers of the Florida harvester ant (Pogonomyrmex badius); lichens (e.g., Nephroma occultum) strongly associated with old-growth forests of the Pacific Northwest; animals that require marshes dominated by a single plant species (such as Spartina sp. or Typha sp.).
D91: Somewhat Increase Vulnerability: | E91: Required habitat is generated by only a few species. Examples: certain cacti that depend on a few specific plant species for creating required specific habitat conditions necessary for seedling establishment; plants species that depend on biological soil crusts for favorable conditions for seed germination, water and nutrient flow to vegetation, and soil stability; plant species with preference for particular canopy species like long leaf pine (Pinus palustris); species such as nesting burrowing owls (Athene cunicularia) that depend on excavations made by relatively few species of burrowing mammals; birds such as marbled murrelets (Brachyramphus marmoratus) that strongly depend on a few species of large trees to provide suitable nesting platforms; certain plant species that depend on large grazing animals to generate habitats (localized disturbances) required for establishment and early growth.
D92: Neutral: | E92: Required habitat is generated by more than a few species; or species does not require any uncommon/restricted habitats; or habitat requirements do not involve species-specific processes. Examples: many mammal species that do not rely on burrows or shelters made by one or a few other species; many bird species that do not depend on one or a few other species to provide suitable nesting or foraging sites; most species of reptiles, amphibians, fishes, aquatic invertebrates, and butterflies and moths; epiphytic species (orchids, lichens, bromeliads) with no host preference; many species of forest understory plants that thrive under a wide range of forest tree species.
A94: b) Dietary versatility (animals only)
B95: NOTES: | C95: This factor pertains to the diversity of food types consumed by animal species. Dietary specialists are more likely to be negatively affected by climate change than are species that readily switch among different food types.
C96: Note that the relationship between freshwater mussels and their larval hosts should be scored only under factor C5d (Dependence on other species for propagule dispersal).
D97: Increase Vulnerability: | E97: Completely or almost completely (>90%) dependent on one species during any part of the year; equivalent alternatives to this single-species food resource are not readily available. Examples: Clark's nutcracker (Nucifraga columbiana), which depends heavily on the seeds of whitebark pine (Pinus albicaulis); red knot, some populations of which during spring migration may be completely or almost completely dependent on horseshoe crab (Limulus) eggs.
D98: Somewhat Increase Vulnerability: | E98: Completely or almost completely (>90%) dependent during any part of the year on (1) a few species from a restricted taxonomic group or (2) a narrow guild the members of which are thought to respond similarly to climate change. Examples: larvae of various fritillary butterflies that rely heavily on a few species of Viola violets; great purple hairstreak (Atlites halesus), which is dependent on a few mistletoe species; swifts and swallows that are dependent on aerial insects (often a limited number of species at any particular time) that may become unavailable or less available as a result of climate change (e.g., through increased incidence of prolonged rainy conditions that restrict aerial feeding opportunities, or increased incidence of conditions that reduce populations of aerial insects).
D99: Neutral: | E99: Diet flexible; during any season species readily switches among multiple food resources according to availability; not strongly dependent on one or a few species; omnivorous, with diet including numerous species of both plants and animals. Examples: most Carnivora, ungulates, nonmigratory birds, amphibians, reptiles, fishes, and many Lepidoptera (e.g., mule deer seasonally may focus their foraging on only a few favored plant species, but in the absence of those species they readily switch to other species); great horned owl (Bubo virginianus), which has a flexible diet and is not strongly dependent on one or a few species (although its diet may be dominated by one or a few readily available species in a particular location or season); black-capped chickadee (Poecile atricapillus) and other birds that are highly opportunistic during any season and readily switch among different food resources as availability changes.
A101: c) Pollinator versatility (plants only)
B102: NOTES: | C102: Quantitative thresholds loosely follow data in Waser et al. (1996, Ecology 77:1043). If appropriate, scoring of species whose pollinators is not known can be based on characteristics of closely related species that have similar and relevant morphological floral features that may have similar pollination syndromes (Willmer 2011, Pollination and Floral Ecology, Princeton Press).
C103: In some cases, sympatric, sequentially flowering species may enhance reproductive success for each other through maintenance of pollinator populations. Species that are documented to benefit from such interactions with one or only a few sympatric species should be scored one category higher (Hegland et al. 2009, Ecology Letters 12:184).
B104: TOOLS: | C104: The Inouye Pollinator Reference Database is a source for literature references to pollination: www.mendeley.com/groups/2544001/inouye-pollinator-reference-database/. A table describing traits of pollinator syndromes can be found at www.fs.fed.us/wildflowers/pollinators/What_is_Pollination/syndromes.shtml.
D105: Increase Vulnerability: | E105: Completely or almost completely dependent on one species for pollination (> 90% of effective pollination accomplished by 1 species) or, if no observations exist, morphology suggests very significant limitation of potential pollinators (e.g., very long corolla tube).
D106: Somewhat Increase Vulnerability: | E106: Completely or almost completely dependent on 2-4 species for pollination (> 90% of effective pollination accomplished by 2-4 species) or, if no observations exist, morphology suggests conformation to a specific "pollination syndrome" (e.g., van der Pijl 1961, Evolution 15: 44-59, http://www.fs.fed.us/wildflowers/pollinators/syndromes.shtml).
D107: Neutral: | E107: Pollination apparently flexible; five or more species make significant contributions to pollination or, if no observations exist, morphology does not suggest pollinator limitation or pollination syndrome. Score wind-pollinated species as Neutral.
A109: d) Dependence on other species for propagule dispersal
B110: NOTES: | C110: Can be applied to plants or animals. Examples: Different species of freshwater mussels can be dispersed by one to many fish species; fruit dispersal by animals.
D111: Increase Vulnerability: | E111: Completely or almost completely (roughly > 90%) dependent on a single species for propagule dispersal.For example, whitebark pine would fit here because Clark's nutcracker is the primary dispersal agent.
D112: Somewhat Increase Vulnerability: | E112: Completely or almost completely (roughly > 90%) dependent on a small number of species for propagule dispersal. For example, a freshwater mussel for which only a few species of fish can disperse larvae.
D113: Neutral: | E113: Disperses on its own (most animals, wind-dispersed plants) OR propagules can be dispersed by more than a few species (many plants).
A115: e) Sensitivity to pathogens or natural enemies
B116: NOTES: | C116: This factor refers to pathogens and natural enemies (e.g., predators, parasitoids, or herbivores) that can increase or become more pathogenic due to climate change, or vectors of disease when they expand their distributions due to changes in climate and therefore become more harmful or influence a greater portion of the distribution of the species being evaluated. Examples include the chytrid fungal pathogen that can become more harmful to frogs because of climate change (Pounds et al. 2006 Nature 439:161) or sudden oak death in California caused by a pathogen that is invasive under favorable climate conditions (Meentenmeyer et al. 2011 Ecosphere 2:1).
D117: Increase Vulnerability: | E117: Species is negatively affected to a high degree by a pathogen or natural enemy that is likely to increase in distribution, abundance, or impact as a result of climate change. Example: The cold-sensitive non-native hemlock woolly adelgid commonly causes a high level of mortality in eastern hemlock, and the distribution/abundance/impact of the adelgid may increase in areas where winter temperatures become milder.
D118: Somewhat Increase Vulnerability: | E118: Species is negatively affected to a moderate degree by a pathogen or natural enemy that is likely to increase in distribution, abundance, or impact as a result of climate change.
D119: Neutral: | E119: There is no indication that the species is currently or in the foreseeable future likely to be significantly affected by a pathogen or natural enemy that is likely to increase in distribution, abundance, or impact as a result of climate change; OR the negative impact of pathogens or natural enemies is likely to decrease with climate change. Example: A warmer/drier climate may reduce the negative impact of certain fungal pathogens that depend/thrive on relatively cold/moist conditions.
A121: f) Sensitivity to competition from native or non-native species
B122: NOTES: | C122: Species may suffer when competitors are favored by both changing climates and the effects these climates have on disturbance regimes (Abatzoglou and Kolden 2011 Rangeland Ecology & Management 64:471, Dukes et al. 2011 Ecological Applications 21:1887, Pintó-Marijuan and Munné-Bosch 2013, Grossman and Rice 2014 Ecology Letters 17:710). However, in some cases climate change will decrease the spread of particular invasive species (Bradley et al. 2010 Trends in Ecology & Evolution 25:310). To score this factor, some indication is needed that a potential competitor is favored by projected future climates.
D123: Increase Vulnerability: | E123: Strongly affected by a native or non-native competing species that is likely to be favored by climate change.
D124: Somewhat Increase Vulnerability: | E124: Moderately affected to a moderate degree by a native or non-native competing species that is likely to be favored by climate change.
D125: Neutral: | E125: Little or no response to a native or non-native species that is likely to shift its distribution or abundance due to climate change OR climate change is likely to decrease or have no effect on the spread or abundance of a native or non-native species that negatively impacts the species.
A127: g) Forms part of an interspecific interaction not covered by C5a-f
B128: NOTES: | C128: Can be applied to plants or animals. Here an interspecific interaction can include mutualism, parasitism, or commensalism. Refers to interactions unrelated to habitat, seedling establishment, diet, pollination, or propagule dispersal. For example, an acacia bush requiring an ant colony for protection against herbivores.
D129: Increase Vulnerability: | E129: Requires an interaction with a single other species for persistence.
D130: Somewhat Increase Vulnerability: | E130: Requires an interaction with a one member of a small group of taxonomically related species for persistence. Could also include cases where specificity is not known for certain, but is suspected. Many Orchidaceae will be in this category because of their requirement for a specific fungal partner for germination (Tupac Otero and Flanagan 2006, TREE 21: 64-65).
D131: Neutral: | E131: Does not require an interspecific interaction or, if it does, many potential candidates for partners are available.
A133: 6) Genetic Factors
A134: a) Measured genetic variation
B135: NOTES: | C135: Species with less standing genetic variation will be less able to adapt because the appearance of beneficial mutations is not expected to keep pace with the rate of 21st century climate change. Throughout this question, "genetic variation" may refer neutral marker variation, quantitative genetic variation, or both. To answer the question, genetic variation should have been assessed over a substantial proportion of a species' range.
C136: Because measures of genetic variability vary across taxonomic groups, there cannot be specific threshold numbers to distinguish among the categories. The assessor should interpret genetic variation in a species relative to that measured in related species to determine if it is low, high, or in between.
D137: Increase Vulnerability: | E137: Genetic variation reported as "very low" compared to findings using similar techniques on related taxa, i.e., lack of genetic variation has been identified as a conservation issue for the species.
D138: Somewhat Increase Vulnerability: | E138: Genetic variation reported as "low" compared to findings using similar techniques on related taxa.
D139: Neutral: | E139: Genetic variation reported as "average" or "high" compared to findings using similar techniques on related taxa.
A141: b) Occurrence of bottlenecks in recent evolutionary history (use only if C6a is "unknown")
B142: NOTES: | C142: In the absence of rangewide genetic variation information (C6a), this factor can be used to infer whether reductions in species-level genetic variation that would potentially impede its adaptation to climate change may have occurred. Only species that suffered population reductions and then subsequently rebounded qualify for the Somewhat Increase or Increase Vulnerability categories.
D143: Increase Vulnerability: | E143: Evidence that total population was reduced to ≤ 250 mature individuals, to one occurrence, and/or that occupied area was reduced by >70% at some point in the past 500 years.
D144: Somewhat Increase Vulnerability: | E144: Evidence that total population was reduced to 251-1000 mature individuals, to less than 10 occurrences, and/or that occupied area was reduced by 30-70% at some point in the past 500 years.
D145: Neutral: | E145: No evidence that total population was reduced to ≤ 1000 mature individuals and/or that occupied area was reduced by > 30% at some point in the past 500 years.
A151: 7) Phenological Response to Changing Seasonal Temperature or Precipitation Dynamics
B152: NOTES: | C152: Recent research suggests that some phylogenetic groups are declining due to lack of response to changing annual temperature dynamics (e.g., earlier onset of spring, longer growing season), including European bird species that have not advanced their migration times (Moller et al. 2008), and some temperate zone plants that are not moving their flowering times (Willis et al. 2008) to correspond to earlier spring onset. This may be assessed using either published multi-species studies such as those cited above or large databases such as that of the U.S. National Phenology Network.
B153: TOOLS: | C153: Some phenological information can be gleaned from papers listed in the Inouye Phenology Database, www.mendeley.com/groups/2544001/inouye-pollinator-reference-database/. The National Phenology Network website is www.usanpn.org/.
D154: Increase Vulnerability: | E154: Seasonal temperature or precipitation dynamics within the species' range show detectable change, but phenological variables measured for the species show no detectable change.
D155: Somewhat Increase Vulnerability: | E155: Seasonal temperature or precipitation dynamics within the species' range show detectable change, and phenological variables measured for the species show some detectable change, but the change is significantly less than that of other species in similar habitats or taxonomic groups.
D156: Neutral: | E156: Seasonal temperature or precipitation dynamics within the species' range show detectable change, and phenological variables measured for the species show some detectable change, but the change is significantly less than that of other species in similar habitats or taxonomic groups.

Sheet D. Docum
A1: =CONCATENATE("The NatureServe Climate Change Vulnerability Index release ",Calculator!C2) -> The NatureServe Climate Change Vulnerability Index release 3.0
A3: Definitions and Guidelines for Scoring Risk Factors - Section D
A5: D. Documented or Modeled Response to Climate Change (optional)
A6: 1) Documented Response to Recent Climate Change (e.g., range contraction or phenology mismatch with critical resources)
B7: NOTES: | C7: This factor pertains to the degree to which a species is known to have responded to recent climate change based on published accounts in the peer-reviewed literature. Time frame for the reduction or increase is 10 years or three generations, whichever is longer. Some examples include population declines due to phenology mismatches between species and critical food or pollinator resources, e.g., great tits (Parus major) or pied flycatchers (Ficedula hypoleuca) with winter moth (Operophtera brumata) caterpillars, or honey-buzzards (Pernis apivorus) with wasps.
C8: Note that not all responses to climate change necessarily indicate vulnerability. Species that respond to climate change by shifting (but not contracting) their range, for example, show adaptability to climate change and should be scored as Neutral for this factor. Similarly, species that respond by changing their phenology (without a related decline in population) should also be scored as Neutral.
D9: Greatly Increase Vulnerability: | E9: Distribution or abundance undergoing major reduction (>70% over 10 years or three generations) believed to be associated with climate change.
D10: Increase Vulnerability: | E10: Distribution or abundance undergoing moderate reduction (30-70% over 10 years or three generations) believed to be associated with climate change.
D11: Somewhat Increase Vulnerability: | E11: Distribution or abundance undergoing small but measureable (10-30% over 10 years or three generations) believed to be associated with climate change.
D12: Neutral: | E12: Distribution and abundance not known to be decreasing with climate change. Includes species undergoing range shifts without loss of distributional area or species undergoing changes in phenology but no net loss in range size or population size. Includes species in which climate change is documented to be causing an increase in range size or abundance.
A14: 2) Modeled Future (2050) Change in Range or Population Size
B15: NOTES: | C15: This factor can include both distribution models and population models. Models should be developed based on reasonably accurate locality data (error < 5km) using algorithms that are supported by peer-reviewed literature. Areas of obvious overprediction should be removed from current and predicted future distributions. Projections should be based on "middle of the road" climate scenarios for the year 2050. Range size should be based on "extent of occurrence" sensu IUCN Red List. Population models should be based on known processes as described in peer-reviewed literature. Examples include (a) phenological changes that are likely to result in a mismatch with critical dietary, pollination, or habitat resources (Visser and Both 2005) or (b) documented narrow temperature tolerances and thermal safely levels, particularly in insects (Deutsch et al. 2008, Calosi et al. 2008).
C16: If necessary, check multiple boxes to reflect variation in model output.
D17: Greatly Increase Vulnerability: | E17: Predicted future range disappears entirely from the assessment area OR predicted future abundance declines to zero as a result of climate change processes.
D18: Increase Vulnerability: | E18: Predicted future range represents 50-99% decrease relative to current range within the assessment area OR predicted future abundance represents 50-99% decrease associated with climate change processes.
D19: Somewhat Increase Vulnerability: | E19: Predicted future range represents a 20-50% decrease relative to current range within the assessment area OR predicted future abundance represents 20-50% decrease associated with climate change processes.
D20: Neutral: | E20: Predicted future range represents an increase, no change, or a decrease of less than a 20% relative to current range within the assessment area OR predicted future abundance increases, remains stable, or decreases < 20% as a result of climate change processes.
A22: 3) Overlap of Modeled Future (2050) Range with Current Range
B23: NOTES: | C23: Distribution models of current and projected future ranges should meet standards described in the notes for D2. Overlap is calculated as the percent of the current range represented by an intersection of the predicted future and current ranges. If the range disappears or declines > 70% within the assessment area, such that factor D2 is coded as Greatly Increase Vulnerability, this factor should be skipped to avoid double-counting model results.
D24: Greatly Increase Vulnerability: | E24: There is no overlap between the current and predicted future range within the assessment area.
D25: Increase Vulnerability: | E25: Predicted future range overlaps the current range by 30% or less within the assessment area.
D26: Somewhat Increase Vulnerability: | E26: Predicted future range overlaps the current range by 30-60% within the assessment area.
D27: Neutral: | E27: Predicted future range overlaps the current range by > 60% within the assessment area.
A29: 4) Occurrence of Protected Areas in Modeled Future (2050) Distribution
B30: NOTES: | C30: "Protected area" refers to existing parks, refuges, wilderness areas, and other designated conservation areas that are relatively invulnerable to outright habitat destruction from human activities and that are likely to provide suitable conditions for the existence of viable populations of the species. Models of current and projected future ranges should meet standards described in the notes for D2. Modeled future distribution may refer to a single season (e.g., breeding season distribution or winter distribution) for migratory species. This factor considers ranges and protected areas within the assessment area only.
D31: Increase Vulnerability: | E31: < 5% of the modeled future distribution within the assessment area is encompassed by one or more protected areas.
D32: Somewhat Increase Vulnerability: | E32: 5-30% of the modeled future distribution within the assessment area is encompassed by one or more protected areas.
D33: Neutral: | E33: >30% of the modeled future distribution within the assessment area is encompassed by one or more protected areas.

Sheet License
A1: =CONCATENATE("The NatureServe Climate Change Vulnerability Index release ",Calculator!C2) -> The NatureServe Climate Change Vulnerability Index release 3.0
A3: Software License
A5: Copyright © NatureServe 2015
A6: http://www.natureserve.org/climatechange
A9: END-USER LICENCE AGREEMENT
A10: This End-User License Agreement is a legal agreement between you (an individual or a single entity) and NatureServe for the software product “The NatureServe Climate Change Vulnerability Index.” By downloading, copying, or otherwise using the NatureServe Climate Change Vulnerability Index; you agree to be bound by the terms of this License. If you do not agree to the terms of this License do not download, install or use the NatureServe Climate Change Vulnerability Index.
A12: PRODUCT LICENCE
A13: The NatureServe Climate Change Vulnerability Index is protected by copyright laws and international copyright treaties, as well as other intellectual property laws and treaties. The NatureServe Climate Change Vulnerability Index is licensed, not sold. The definition of the NatureServe Climate Change Vulnerability Index includes computer software, associated media and product documentation consisting of both printed and digital material.
A15: GRANT OF LICENSE
A16: This License grants you the right to install and use an unlimited number of copies of the NatureServe Climate Change Vulnerability Index for personal non-commercial use only. You may not sell for profit, incorporate into any commercially sold software application or distribute the NatureServe Climate Change Vulnerability Index without first obtaining written approval from NatureServe.
A18: COPYRIGHT
A19: All title and copyrights in and to the NatureServe Climate Change Vulnerability Index (including but not limited to any images, animations, video, audio, music, text and applets incorporated into the NatureServe Climate Change Vulnerability Index ), any accompanying printed materials, all and any copies of the NatureServe Climate Change Vulnerability Index are owned by NatureServe. The NatureServe Climate Change Vulnerability Index is protected by copyright laws and international treaty provisions as well as by other intellectual property laws and treaties. Therefore, you must treat the NatureServe Climate Change Vulnerability Index like any other copyrighted material.
A22: WARRANTY
A23: NatureServe expressly disclaims any warranty for the NatureServe Climate Change Vulnerability Index. The NatureServe Climate Change Vulnerability Index and any related documentation is provided "as is" without warranty of any kind, either express or implied, including, without limitation, the implied warranties or merchantability, fitness for a particular purpose, or non infringement. The entire risk arising out of use or performance of the NatureServe Climate Change Vulnerability Index remains with the user. More information about the NatureServe Climate Change Vulnerability Index can be found at www.natureserve.org/climatechange.
A25: LIABILITY
A26: In no event shall NatureServe be liable for any damages whatsoever (including, without limitation, damages for loss of business profits, business interruption, loss of business information, or any other financial loss) arising out of the use of or inability to use the NatureServe Climate Change Vulnerability Index, even if NatureServe has been advised of the possibility of such damages.
